Workbook

Sheet Summary
A1: Central Coast Broadband Consortium CASF Priority Communities version 1.2 25 February 2014
A3: Low Income (the lower the income, the higher the rank) | E3: High income (for comparison purposes, the higher the income, the higher the ranking)
A5: Monterey County | E5: Monterey County
A6: Community | B6: Priority | C6: Score | E6: Community | F6: Priority | G6: Score
A7: Greenfield | B7: 1 | C7: 16 | E7: Greenfield | F7: 1 | G7: 29
A8: King City | B8: 2 | C8: 19 | E8: Gonzales | F8: 2 | G8: 44
A9: Gonzales | B9: 3 | C9: 27 | E9: King City | F9: 2 | G9: 44
A10: Soledad | B10: 4 | C10: 30 | E10: Carmel-by-the-Sea | F10: 4 | G10: 45
A11: Castroville CDP | B11: 5 | C11: 38 | E11: Prunedale CDP | F11: 5 | G11: 53
A12: San Lucas CDP | B12: 7 | C12: 71 | E12: Soledad | F12: 5 | G12: 53
A13: Carmel-by-the-Sea | B13: 8 | C13: 72 | E13: Castroville CDP | F13: 8 | G13: 57
A14: San Ardo CDP | B14: 8 | C14: 72 | E14: Big Sur CBG | F14: 9 | G14: 59
A15: Pine Canyon CDP | B15: 10 | C15: 74 | E15: Chualar CDP | F15: 10 | G15: 63
A16: Prunedale CDP | B16: 10 | C16: 74 | E16: San Ardo CDP | F16: 11 | G16: 65
A17: Chualar CDP | B17: 12 | C17: 76 | E17: Monterey | F17: 12 | G17: 67
A18: Big Sur CBG | B18: 13 | C18: 78 | E18: Pine Canyon CDP | F18: 13 | G18: 71
A19: Salinas | B19: 14 | C19: 80 | E19: Elkhorn CDP | F19: 14 | G19: 79
A20: Monterey | B20: 15 | C20: 82 | E20: Carmel Valley Village CDP | F20: 15 | G20: 82
A21: Bradley CDP | B21: 16 | C21: 91 | E21: Bradley CDP | F21: 16 | G21: 84
A22: Lockwood CDP | B22: 16 | C22: 91 | E22: Lockwood CDP | F22: 16 | G22: 84
A23: Spreckels CDP | B23: 18 | C23: 92 | E23: San Lucas CDP | F23: 18 | G23: 86
A24: Elkhorn CDP | B24: 19 | C24: 96 | E24: Spreckels CDP | F24: 19 | G24: 95
A25: Marina | B25: 20 | C25: 104 | E25: Salinas | F25: 20 | G25: 101
A26: Carmel Valley Village CDP | B26: 21 | C26: 107 | E26: Marina | F26: 21 | G26: 115
A27: Moss Landing CDP | B27: 22 | C27: 109 | E27: Moss Landing CDP | F27: 21 | G27: 115
A28: Las Lomas CDP | B28: 23 | C28: 111 | E28: Las Lomas CDP | F28: 23 | G28: 117
A29: Seaside | B29: 24 | C29: 119 | E29: Del Monte Forest CDP | F29: 24 | G29: 119
A30: Sand City | B30: 25 | C30: 130 | E30: Seaside | F30: 25 | G30: 120
A31: Pajaro CDP | B31: 26 | C31: 131 | E31: Del Rey Oaks | F31: 26 | G31: 133
A32: Pacific Grove | B32: 27 | C32: 139 | E32: Pacific Grove | F32: 27 | G32: 138
A33: Boronda CDP | B33: 28 | C33: 140 | E33: Boronda CDP | F33: 28 | G33: 149
A34: Del Monte Forest CDP | B34: 29 | C34: 148 | E34: Pajaro CDP | F34: 29 | G34: 158
A35: Del Rey Oaks | B35: 30 | C35: 156 | E35: Sand City | F35: 30 | G35: 159
A37: San Benito County | E37: San Benito County
A38: Community | B38: Priority | C38: Score | E38: Community | F38: Priority | G38: Score
A39: Aromas CDP & area | B39: 1 | C39: 7 | E39: Airport/northeast | F39: 1 | G39: 12
A40: Airport/northeast | B40: 2 | C40: 17 | E40: Aromas CDP & area | F40: 1 | G40: 12
A41: Cienega Road area | B41: 2 | C41: 17 | E41: Cienega Road area | F41: 3 | G41: 16
A42: San Juan Canyon area | B42: 4 | C42: 20 | E42: San Juan Canyon area | F42: 4 | G42: 22
A43: Hollister | B43: 5 | C43: 31 | E43: Tres Pinos CDP | F43: 5 | G43: 25
A44: San Juan Bautista | B44: 6 | C44: 32 | E44: Hollister | F44: 6 | G44: 28
A45: Tres Pinos CDP | B45: 6 | C45: 32 | E45: Ridgemark CDP | F45: 7 | G45: 36
A46: Ridgemark CDP | B46: 8 | C46: 34 | E46: San Juan Bautista | F46: 8 | G46: 39
A48: Santa Cruz County | E48: Santa Cruz County
A49: Community | B49: Priority | C49: Score | E49: Community | F49: Priority | G49: Score
A50: Pleasure Point CDP | B50: 1 | C50: 22 | E50: Scotts Valley | F50: 1 | G50: 29
A51: Twin Lakes CDP | B51: 2 | C51: 32 | E51: Brookdale CDP | F51: 2 | G51: 36
A52: Soquel CDP | B52: 3 | C52: 41 | E52: Bonny Doon CDP | F52: 3 | G52: 39
A53: Brookdale CDP | B53: 4 | C53: 49 | E53: Soquel CDP | F53: 4 | G53: 44
A54: Santa Cruz | B54: 5 | C54: 50 | E54: Paradise Park CDP | F54: 5 | G54: 49
A55: Capitola | B55: 6 | C55: 54 | E55: Pleasure Point CDP | F55: 5 | G55: 49
A56: Bonny Doon CDP | B56: 7 | C56: 56 | E56: Day Valley CDP | F56: 7 | G56: 54
A57: Live Oak CDP | B57: 7 | C57: 56 | E57: Santa Cruz | F57: 8 | G57: 55
A58: La Selva Beach CDP | B58: 9 | C58: 58 | E58: Twin Lakes CDP | F58: 9 | G58: 57
A59: Scotts Valley | B59: 9 | C59: 58 | E59: La Selva Beach CDP | F59: 10 | G59: 58
A60: Seacliff CDP | B60: 11 | C60: 61 | E60: Davenport CDP | F60: 11 | G60: 68
A61: Corralitos CDP | B61: 12 | C61: 67 | E61: Capitola | F61: 12 | G61: 71
A62: Paradise Park CDP | B62: 13 | C62: 72 | E62: Live Oak CDP | F62: 12 | G62: 71
A63: Day Valley CDP | B63: 14 | C63: 79 | E63: Corralitos CDP | F63: 14 | G63: 75
A64: Felton CDP | B64: 15 | C64: 81 | E64: Felton CDP | F64: 15 | G64: 78
A65: Interlaken CDP | B65: 16 | C65: 84 | E65: Seacliff CDP | F65: 16 | G65: 82
A66: Aptos Hills-Larkin Valley CDP | B66: 17 | C66: 85 | E66: Lompico CDP | F66: 17 | G66: 88
A67: Davenport CDP | B67: 18 | C67: 87 | E67: Aptos CDP | F67: 18 | G67: 89
A68: Aptos CDP | B68: 19 | C68: 94 | E68: Boulder Creek CDP | F68: 18 | G68: 89
A69: Mount Herman CDP | B69: 20 | C69: 95 | E69: Aptos Hills-Larkin Valley CDP | F69: 20 | G69: 93
A70: Ben Lomond CDP | B70: 21 | C70: 101 | E70: Ben Lomond CDP | F70: 21 | G70: 94
A71: Lompico CDP | B71: 22 | C71: 103 | E71: Pasatiempo CDP | F71: 22 | G71: 96
A72: Boulder Creek CDP | B72: 23 | C72: 110 | E72: Interlaken CDP | F72: 23 | G72: 103
A73: Watsonville | B73: 23 | C73: 110 | E73: Mount Herman CDP | F73: 24 | G73: 106
A74: Amesti CDP | B74: 25 | C74: 117 | E74: Rio del Mar CDP | F74: 25 | G74: 120
A75: Freedom CDP | B75: 26 | C75: 118 | E75: Watsonville | F75: 26 | G75: 123
A76: Pasatiempo CDP | B76: 27 | C76: 123 | E76: Zayante CDP | F76: 27 | G76: 124
A77: Pajaro Dunes CDP | B77: 28 | C77: 129 | E77: Pajaro Dunes CDP | F77: 28 | G77: 129
A78: Rio del Mar CDP | B78: 28 | C78: 129 | E78: Amesti CDP | F78: 29 | G78: 143
A79: Zayante CDP | B79: 30 | C79: 135 | E79: Freedom CDP | F79: 29 | G79: 143
A81: Central Coast Broadband Consortium CASF Priority Communities version 1.2 25 February 2014
A83: Low Income (the lower the income, the higher the rank) | E83: High income (for comparison purposes, the higher the income, the higher the ranking)
A85: Central Coast Region | E85: Central Coast Region
A86: Community | B86: Regional priority | C86: Regional score | E86: Community | F86: Regional priority | G86: Regional score
A87: Greenfield | B87: 1 | C87: 19 | E87: Carmel-by-the-Sea | F87: 1 | G87: 59
A88: King City | B88: 2 | C88: 22 | E88: Greenfield | F88: 2 | G88: 63
A89: Gonzales | B89: 3 | C89: 30 | E89: Gonzales | F89: 3 | G89: 78
A90: Soledad | B90: 4 | C90: 35 | E90: King City | F90: 4 | G90: 80
A91: Castroville CDP | B91: 5 | C91: 43 | E91: Prunedale CDP | F91: 5 | G91: 83
A92: Aromas CDP & area | B92: 6 | C92: 82 | E92: Soledad | F92: 6 | G92: 91
A93: Chualar CDP | B93: 7 | C93: 92 | E93: Chualar CDP | F93: 7 | G93: 94
A94: San Ardo CDP | B94: 8 | C94: 95 | E94: Castroville CDP | F94: 8 | G94: 95
A95: Pine Canyon CDP | B95: 9 | C95: 97 | E95: Airport/northeast | F95: 9 | G95: 96
A96: San Lucas CDP | B96: 10 | C96: 104 | E96: Aromas CDP & area | F96: 10 | G96: 102
A97: Prunedale CDP | B97: 11 | C97: 105 | E97: San Ardo CDP | F97: 11 | G97: 107
A98: Carmel-by-the-Sea | B98: 12 | C98: 107 | E98: Big Sur CBG | F98: 12 | G98: 115
A99: Pleasure Point CDP | B99: 13 | C99: 111 | E99: Monterey | F99: 12 | G99: 115
A100: Salinas | B100: 14 | C100: 113 | E100: Pine Canyon CDP | F100: 12 | G100: 115
A101: Monterey | B101: 15 | C101: 115 | E101: Scotts Valley | F101: 12 | G101: 115
A102: Twin Lakes CDP | B102: 16 | C102: 118 | E102: Carmel Valley Village CDP | F102: 16 | G102: 120
A103: Airport/northeast | B103: 17 | C103: 120 | E103: Elkhorn CDP | F103: 17 | G103: 121
A104: Big Sur CBG | B104: 18 | C104: 121 | E104: Brookdale CDP | F104: 18 | G104: 127
A105: Elkhorn CDP | B105: 19 | C105: 123 | E105: Soquel CDP | F105: 19 | G105: 134
A106: Spreckels CDP | B106: 20 | C106: 125 | E106: Bonny Doon CDP | F106: 20 | G106: 137
A107: Bradley CDP | B107: 21 | C107: 138 | E107: Bradley CDP | F107: 21 | G107: 150
A108: Lockwood CDP | B108: 22 | C108: 146 | E108: San Lucas CDP | F108: 21 | G108: 150
A109: Soquel CDP | B109: 23 | C109: 154 | E109: Santa Cruz | F109: 23 | G109: 152
A110: Carmel Valley Village CDP | B110: 24 | C110: 158 | E110: Spreckels CDP | F110: 24 | G110: 157
A111: Moss Landing CDP | B111: 25 | C111: 159 | E111: Paradise Park CDP | F111: 24 | G111: 157
A112: Cienega Road area | B112: 26 | C112: 166 | E112: Lockwood CDP | F112: 26 | G112: 158
A113: Santa Cruz | B113: 27 | C113: 170 | E113: Day Valley CDP | F113: 27 | G113: 159
A114: Capitola | B114: 28 | C114: 172 | E114: La Selva Beach CDP | F114: 27 | G114: 159
A115: Las Lomas CDP | B115: 29 | C115: 173 | E115: Salinas | F115: 29 | G115: 167
A116: Marina | B116: 29 | C116: 173 | E116: Cienega Road area | F116: 30 | G116: 170
A117: Brookdale CDP | B117: 29 | C117: 173 | E117: Live Oak CDP | F117: 31 | G117: 172
A118: Live Oak CDP | B118: 32 | C118: 176 | E118: Pleasure Point CDP | F118: 32 | G118: 173
A119: Scotts Valley | B119: 33 | C119: 181 | E119: Twin Lakes CDP | F119: 33 | G119: 178
A120: Seacliff CDP | B120: 34 | C120: 183 | E120: Capitola | F120: 34 | G120: 188
A121: La Selva Beach CDP | B121: 35 | C121: 188 | E121: Corralitos CDP | F121: 35 | G121: 191
A122: Bonny Doon CDP | B122: 36 | C122: 189 | E122: Davenport CDP | F122: 35 | G122: 191
A123: Seaside | B123: 37 | C123: 190 | E123: Moss Landing CDP | F123: 37 | G123: 194
A124: San Juan Canyon area | B124: 38 | C124: 192 | E124: Felton CDP | F124: 38 | G124: 195
A125: Corralitos CDP | B125: 39 | C125: 204 | E125: San Juan Canyon area | F125: 39 | G125: 199
A126: Paradise Park CDP | B126: 40 | C126: 215 | E126: Del Monte Forest CDP | F126: 40 | G126: 206
A127: Day Valley CDP | B127: 41 | C127: 219 | E127: Aptos CDP | F127: 41 | G127: 207
A128: Interlaken CDP | B128: 42 | C128: 226 | E128: Las Lomas CDP | F128: 42 | G128: 208
A129: Felton CDP | B129: 43 | C129: 227 | E129: Seacliff CDP | F129: 43 | G129: 211
A130: Aptos Hills-Larkin Valley CDP | B130: 44 | C130: 236 | E130: Marina | F130: 44 | G130: 213
A131: Aptos CDP | B131: 45 | C131: 241 | E131: Boulder Creek CDP | F131: 45 | G131: 215
A132: Davenport CDP | B132: 46 | C132: 245 | E132: Lompico CDP | F132: 46 | G132: 216
A133: Pacific Grove | B133: 47 | C133: 251 | E133: Seaside | F133: 47 | G133: 220
A134: Mount Herman CDP | B134: 48 | C134: 254 | E134: Ben Lomond CDP | F134: 48 | G134: 222
A135: Sand City | B135: 49 | C135: 260 | E135: Aptos Hills-Larkin Valley CDP | F135: 49 | G135: 223
A136: Pajaro CDP | B136: 50 | C136: 261 | E136: Pasatiempo CDP | F136: 50 | G136: 228
A137: Ben Lomond CDP | B137: 51 | C137: 262 | E137: Tres Pinos CDP | F137: 51 | G137: 242
A138: Lompico CDP | B138: 52 | C138: 266 | E138: Mount Herman CDP | F138: 52 | G138: 244
A139: Del Monte Forest CDP | B139: 53 | C139: 268 | E139: Interlaken CDP | F139: 53 | G139: 252
A140: Tres Pinos CDP | B140: 53 | C140: 268 | E140: Hollister | F140: 54 | G140: 262
A141: Amesti CDP | B141: 53 | C141: 268 | E141: Rio del Mar CDP | F141: 55 | G141: 267
A142: Boulder Creek CDP | B142: 56 | C142: 271 | E142: Watsonville | F142: 56 | G142: 270
A143: Freedom CDP | B143: 57 | C143: 272 | E143: Zayante CDP | F143: 57 | G143: 271
A144: Boronda CDP | B144: 58 | C144: 274 | E144: Del Rey Oaks | F144: 58 | G144: 275
A145: Hollister | B145: 59 | C145: 278 | E145: Pacific Grove | F145: 58 | G145: 275
A146: Watsonville | B146: 59 | C146: 278 | E146: Pajaro Dunes CDP | F146: 60 | G146: 278
A147: San Juan Bautista | B147: 61 | C147: 282 | E147: Ridgemark CDP | F147: 61 | G147: 296
A148: Ridgemark CDP | B148: 62 | C148: 289 | E148: San Juan Bautista | F148: 62 | G148: 304
A149: Pasatiempo CDP | B149: 63 | C149: 292 | E149: Boronda CDP | F149: 63 | G149: 312
A150: Pajaro Dunes CDP | B150: 64 | C150: 307 | E150: Freedom CDP | F150: 64 | G150: 314
A151: Rio del Mar CDP | B151: 65 | C151: 309 | E151: Amesti CDP | F151: 65 | G151: 318
A152: Del Rey Oaks | B152: 66 | C152: 311 | E152: Pajaro CDP | F152: 66 | G152: 325
A153: Zayante CDP | B153: 67 | C153: 315 | E153: Sand City | F153: 67 | G153: 326

Sheet Analysis - county
C1: Eligible | I1: Total | S1: Ranking by County
A2: County | B2: Community | C2: Population | D2: Households | E2: Housing units | F2: Anchor institutions | G2: Area | H2: Household Income | I2: Population | J2: Households | K2: Housing units | L2: Anchor institutions | M2: Area | O2: Eligible pop % | P2: Population density (eligible) | Q2: Population density (total) | S2: Population | T2: Eligible pop % | U2: Population density (eligible) | V2: Anchor institutions | W2: Household Income | X2: Community | Y2: Score by County | Z2: Priority by County | AA2: County
A3: Monterey | B3: Aromas CDP | C3: 2,650 | D3: 884 | E3: 923 | F3: 2 | G3: 4.75 | H3: $64,727 | I3: 2,650 | J3: 884 | K3: 923 | L3: 2 | M3: 4.75 | N3: $64,727 | O3: =C3/I3 -> 100% | P3: =C3/G3 -> 558 | Q3: =I3/M3 -> 558 | S3: =_xlfn.RANK.EQ(C3,C$3:C$32) -> 9 | T3: =_xlfn.RANK.EQ(O3,O$3:O$32) -> 1 | U3: =_xlfn.RANK.EQ(P3,P$3:P$32) -> 14 | V3: =_xlfn.RANK.EQ(F3,F$3:F$32) -> 11 | W3: =_xlfn.RANK.EQ(H3,H$3:H$32,1) -> 21 | X3: Aromas CDP | Y3: =(2*S3)+T3+U3+V3+W3 -> 65 | Z3: =_xlfn.RANK.EQ(Y3,Y$3:Y$32,1) -> 6 | AA3: Monterey
A4: Monterey | B4: Big Sur CBG | C4: 1,710 | D4: 784 | E4: 1,121 | F4: 7 | G4: 259.02 | H4: $69,474 | I4: 1,710 | J4: 784 | K4: 1,121 | L4: 7 | M4: 259.02 | N4: $69,474 | O4: =C4/I4 -> 100% | P4: =C4/G4 -> 7 | Q4: =I4/M4 -> 7 | S4: 11 | T4: 1 | U4: 26 | V4: 4 | W4: =_xlfn.RANK.EQ(H4,H$3:H$32,1) -> 25 | X4: Big Sur CBG | Y4: =(2*S4)+T4+U4+V4+W4 -> 78 | Z4: 13 | AA4: Monterey
A5: Monterey | B5: Boronda CDP | C5: 0 | D5: 0 | E5: 0 | F5: 0 | G5: 0.00 | H5: $57,667 | I5: 1,710 | J5: 394 | K5: 413 | L5: 1 | M5: 0.55 | N5: $58,810 | O5: =C5/I5 -> 0% | P5: =C5/G5 -> 0 | Q5: 3,109 | S5: 27 | T5: 27 | U5: 27 | V5: 21 | W5: 11 | X5: Boronda CDP | Y5: 140 | Z5: 28 | AA5: Monterey
A6: Monterey | B6: Bradley CDP | C6: 93 | D6: 37 | E6: 40 | F6: 1 | G6: 0.09 | H6: $63,309 | I6: 93 | J6: 37 | K6: 40 | L6: 1 | M6: 0.09 | N6: $63,309 | O6: 100% | P6: 1,081 | Q6: 1,033 | S6: 23 | T6: 1 | U6: 11 | V6: 15 | W6: 18 | X6: Bradley CDP | Y6: 91 | Z6: 16 | AA6: Monterey
A7: Monterey | B7: Carmel Valley Village CDP | C7: 1,504 | D7: 619 | E7: 731 | F7: 1 | G7: 13.79 | H7: $81,129 | I7: 4,407 | J7: 1,895 | K7: 2,156 | L7: 2 | M7: 19.18 | N7: $81,129 | O7: 34% | P7: 109 | Q7: 230 | S7: 12 | T7: 19 | U7: 21 | V7: 15 | W7: 28 | X7: Carmel Valley Village CDP | Y7: 107 | Z7: 21 | AA7: Monterey
A8: Monterey | B8: Carmel-by-the-Sea | C8: 2,912 | D8: 1,693 | E8: 2,854 | F8: 3 | G8: 0.82 | H8: $84,259 | I8: 3,722 | J8: 2,095 | K8: 3,417 | L8: 3 | M8: 1.08 | N8: $83,690 | O8: 78% | P8: 3,564 | Q8: 3,446 | S8: 7 | T8: 14 | U8: 6 | V8: 9 | W8: 29 | X8: Carmel-by-the-Sea | Y8: 72 | Z8: 8 | AA8: Monterey
A9: Monterey | B9: Castroville CDP | C9: 5,928 | D9: 1,364 | E9: 1,431 | F9: 6 | G9: 0.87 | H9: $53,160 | I9: 6,481 | J9: 1,470 | K9: 1,539 | L9: 7 | M9: 1.06 | N9: $53,154 | O9: 91% | P9: 6,828 | Q9: 6,114 | S9: 6 | T9: 12 | U9: 2 | V9: 6 | W9: 6 | X9: Castroville CDP | Y9: 38 | Z9: 5 | AA9: Monterey
A10: Monterey | B10: Chualar CDP | C10: 1,190 | D10: 245 | E10: 251 | F10: 1 | G10: 0.63 | H10: $65,771 | I10: 1,190 | J10: 245 | K10: 251 | L10: 1 | M10: 0.63 | N10: $65,771 | O10: 100% | P10: 1,901 | Q10: 1,889 | S10: 15 | T10: 1 | U10: 8 | V10: 15 | W10: 22 | X10: Chualar CDP | Y10: 76 | Z10: 12 | AA10: Monterey
A11: Monterey | B11: Del Monte Forest CDP | C11: 84 | D11: 42 | E11: 104 | F11: 0 | G11: 4.51 | H11: $98,610 | I11: 4,514 | J11: 1,925 | K11: 2,811 | L11: 2 | M11: 10.64 | N11: $104,894 | O11: 2% | P11: 19 | Q11: 424 | S11: 25 | T11: 22 | U11: 25 | V11: 21 | W11: 30 | X11: Del Monte Forest CDP | Y11: 148 | Z11: 29 | AA11: Monterey
A12: Monterey | B12: Del Rey Oaks | C12: 0 | D12: 0 | E12: 0 | F12: 0 | G12: 0.00 | H12: $80,417 | I12: 1,235 | J12: 541 | K12: 576 | L12: 0 | M12: 0.28 | N12: $80,417 | O12: 0% | P12: 0 | Q12: 4,411 | S12: 27 | T12: 27 | U12: 27 | V12: 21 | W12: 27 | X12: Del Rey Oaks | Y12: 156 | Z12: 30 | AA12: Monterey
A13: Monterey | B13: Elkhorn CDP | C13: 1,306 | D13: 444 | E13: 471 | F13: 1 | G13: 3.97 | H13: $68,263 | I13: 1,565 | J13: 532 | K13: 565 | L13: 1 | M13: 4.83 | N13: $68,093 | O13: 83% | P13: 329 | Q13: 324 | S13: 13 | T13: 13 | U13: 18 | V13: 15 | W13: 24 | X13: Elkhorn CDP | Y13: 96 | Z13: 19 | AA13: Monterey
A14: Monterey | B14: Gonzales | C14: 8,187 | D14: 1,906 | E14: 1,989 | F14: 7 | G14: 1.94 | H14: $55,251 | I14: 8,187 | J14: 1,906 | K14: 1,989 | L14: 7 | M14: 1.94 | N14: $55,251 | O14: 100% | P14: 4,210 | Q14: 4,220 | S14: 5 | T14: 1 | U14: 5 | V14: 4 | W14: 7 | X14: Gonzales | Y14: 27 | Z14: 3 | AA14: Monterey
A15: Monterey | B15: Greenfield | C15: 16,330 | D15: 3,460 | E15: 3,752 | F15: 14 | G15: 2.14 | H15: $55,591 | I15: 16,330 | J15: 3,460 | K15: 3,752 | L15: 14 | M15: 2.14 | N15: $55,591 | O15: 100% | P15: 7,649 | Q15: 7,631 | S15: 1 | T15: 1 | U15: 1 | V15: 3 | W15: 9 | X15: Greenfield | Y15: 16 | Z15: 1 | AA15: Monterey
A16: Monterey | B16: King City | C16: 12,874 | D16: 3,008 | E16: 3,218 | F16: 19 | G16: 3.95 | H16: $49,747 | I16: 12,874 | J16: 3,008 | K16: 3,218 | L16: 19 | M16: 3.95 | N16: $49,747 | O16: 100% | P16: 3,263 | Q16: 3,259 | S16: 3 | T16: 1 | U16: 7 | V16: 2 | W16: 3 | X16: King City | Y16: 19 | Z16: 2 | AA16: Monterey
A17: Monterey | B17: Las Lomas CDP | C17: 85 | D17: 19 | E17: 20 | F17: 0 | G17: 0.07 | H17: $57,763 | I17: 3,024 | J17: 598 | K17: 623 | L17: 1 | M17: 1.04 | N17: $57,763 | O17: 3% | P17: 1,262 | Q17: 2,908 | S17: 24 | T17: 21 | U17: 9 | V17: 21 | W17: 12 | X17: Las Lomas CDP | Y17: 111 | Z17: 23 | AA17: Monterey
A18: Monterey | B18: Lockwood CDP | C18: 379 | D18: 163 | E18: 197 | F18: 1 | G18: 10.91 | H18: $63,309 | I18: 379 | J18: 163 | K18: 197 | L18: 1 | M18: 10.91 | N18: $63,309 | O18: 100% | P18: 35 | Q18: 35 | S18: 17 | T18: 1 | U18: 23 | V18: 15 | W18: 18 | X18: Lockwood CDP | Y18: 91 | Z18: 16 | AA18: Monterey
A19: Monterey | B19: Marina | C19: 247 | D19: 85 | E19: 103 | F19: 3 | G19: 5.53 | H19: $57,460 | I19: 19,718 | J19: 6,845 | K19: 7,200 | L19: 16 | M19: 9.75 | N19: $52,276 | O19: 1% | P19: 45 | Q19: 2,022 | S19: 20 | T19: 23 | U19: 22 | V19: 9 | W19: 10 | X19: Marina | Y19: 104 | Z19: 20 | AA19: Monterey
A20: Monterey | B20: Monterey | C20: 2,668 | D20: 295 | E20: 437 | F20: 5 | G20: 4.93 | H20: $67,874 | I20: 27,810 | J20: 12,184 | K20: 13,584 | L20: 40 | M20: 11.75 | N20: $65,120 | O20: 10% | P20: 542 | Q20: 2,367 | S20: 8 | T20: 20 | U20: 16 | V20: 7 | W20: 23 | X20: Monterey | Y20: 82 | Z20: 15 | AA20: Monterey
A21: Monterey | B21: Moss Landing CDP | C21: 150 | D21: 75 | E21: 79 | F21: 0 | G21: 0.51 | H21: $57,763 | I21: 204 | J21: 100 | K21: 108 | L21: 1 | M21: 0.60 | N21: $57,763 | O21: 74% | P21: 296 | Q21: 340 | S21: 21 | T21: 15 | U21: 19 | V21: 21 | W21: 12 | X21: Moss Landing CDP | Y21: 109 | Z21: 22 | AA21: Monterey
A22: Monterey | B22: Pacific Grove | C22: 32 | D22: 18 | E22: 26 | F22: 0 | G22: 1.38 | H22: $61,109 | I22: 15,041 | J22: 7,020 | K22: 8,169 | L22: 13 | M22: 4.00 | N22: $65,993 | O22: 0% | P22: 23 | Q22: 3,760 | S22: 26 | T22: 26 | U22: 24 | V22: 21 | W22: 16 | X22: Pacific Grove | Y22: 139 | Z22: 27 | AA22: Monterey
A23: Monterey | B23: Pajaro CDP | C23: 0 | D23: 0 | E23: 0 | F23: 0 | G23: 0.05 | H23: $41,281 | I23: 3,054 | J23: 618 | K23: 652 | L23: 3 | M23: 0.91 | N23: $41,281 | O23: 0% | P23: 0 | Q23: 3,356 | S23: 27 | T23: 27 | U23: 27 | V23: 21 | W23: 2 | X23: Pajaro CDP | Y23: 131 | Z23: 26 | AA23: Monterey
A24: Monterey | B24: Pine Canyon CDP | C24: 1,822 | D24: 554 | E24: 587 | F24: 0 | G24: 3.34 | H24: $63,000 | I24: 1,822 | J24: 554 | K24: 587 | L24: 0 | M24: 3.34 | N24: $63,000 | O24: =C24/I24 -> 100% | P24: =C24/G24 -> 546 | Q24: =I24/M24 -> 546 | S24: 10 | T24: 1 | U24: 15 | V24: 21 | W24: 17 | X24: Pine Canyon CDP | Y24: 74 | Z24: 10 | AA24: Monterey
A25: Monterey | B25: Prunedale CDP | C25: 12,400 | D25: 4,014 | E25: 4,260 | F25: 5 | G25: 35.54 | H25: $76,970 | I25: 17,560 | J25: 5,703 | K25: 6,047 | L25: 9 | M25: 46.20 | N25: $77,030 | O25: 71% | P25: 349 | Q25: 380 | S25: 4 | T25: 16 | U25: 17 | V25: 7 | W25: 26 | X25: Prunedale CDP | Y25: 74 | Z25: 10 | AA25: Monterey
A26: Monterey | B26: Salinas | C26: 1,258 | D26: 448 | E26: 489 | F26: 2 | G26: 1.55 | H26: $52,404 | I26: 150,420 | J26: 40,368 | K26: 42,631 | L26: 119 | M26: 23.12 | N26: $54,074 | O26: 1% | P26: 811 | Q26: 6,506 | S26: 14 | T26: 24 | U26: 12 | V26: 11 | W26: 5 | X26: Salinas | Y26: 80 | Z26: 14 | AA26: Monterey
A27: Monterey | B27: San Ardo CDP | C27: 517 | D27: 140 | E27: 158 | F27: 2 | G27: 0.45 | H27: $63,309 | I27: 517 | J27: 140 | K27: 158 | L27: 2 | M27: 0.45 | N27: $63,309 | O27: 100% | P27: 1,151 | Q27: 1,149 | S27: 16 | T27: 1 | U27: 10 | V27: 11 | W27: 18 | X27: San Ardo CDP | Y27: 72 | Z27: 8 | AA27: Monterey
A28: Monterey | B28: San Lucas CDP | C28: 269 | D28: 67 | E28: 76 | F28: 2 | G28: 0.39 | H28: $55,546 | I28: 269 | J28: 67 | K28: 76 | L28: 2 | M28: 0.39 | N28: $55,546 | O28: 100% | P28: 683 | Q28: 690 | S28: 19 | T28: 1 | U28: 13 | V28: 11 | W28: 8 | X28: San Lucas CDP | Y28: 71 | Z28: 7 | AA28: Monterey
A29: Monterey | B29: Sand City | C29: 0 | D29: 0 | E29: 0 | F29: 0 | G29: 2.68 | H29: $37,393 | I29: 334 | J29: 128 | K29: 145 | L29: 2 | M29: 2.94 | N29: $43,777 | O29: 0% | P29: 0 | Q29: 114 | S29: 27 | T29: 27 | U29: 27 | V29: 21 | W29: 1 | X29: Sand City | Y29: 130 | Z29: 25 | AA29: Monterey
A30: Monterey | B30: Seaside | C30: 138 | D30: 46 | E30: 48 | F30: 1 | G30: 0.67 | H30: $58,593 | I30: 33,100 | J30: 10,129 | K30: 10,908 | L30: 23 | M30: 9.39 | N30: $56,392 | O30: 0% | P30: 206 | Q30: 3,525 | S30: 22 | T30: 25 | U30: 20 | V30: 15 | W30: 15 | X30: Seaside | Y30: 119 | Z30: 24 | AA30: Monterey
A31: Monterey | B31: Soledad | C31: 15,205 | D31: 3,552 | E31: 3,755 | F31: 21 | G31: 3.11 | H31: $50,265 | I31: 25,738 | J31: 3,664 | K31: 3,876 | L31: 21 | M31: 4.56 | N31: $43,796 | O31: 59% | P31: 4,889 | Q31: 5,644 | S31: 2 | T31: 17 | U31: 4 | V31: 1 | W31: 4 | X31: Soledad | Y31: 30 | Z31: 4 | AA31: Monterey
A32: Monterey | B32: Spreckels CDP | C32: 312 | D32: 105 | E32: 107 | F32: 0 | G32: 0.05 | H32: $58,363 | I32: 673 | J32: 229 | K32: 246 | L32: 1 | M32: 0.12 | N32: $59,186 | O32: 46% | P32: 5,710 | Q32: 5,608 | S32: 18 | T32: 18 | U32: 3 | V32: 21 | W32: 14 | X32: Spreckels CDP | Y32: 92 | Z32: 18 | AA32: Monterey
A33: Monterey | B33: zUnattached | C33: 22,885 | D33: 8,254 | E33: 10,017 | F33: 30 | G33: 3,483.48 | H33: $63,494 | I33: 51728 | J33: 19482 | K33: 22648 | L33: 49 | M33: 3,593.05 | N33: $66,302 | O33: 44% | P33: 7 | Q33: 14 | X33: zUnattached | AA33: Monterey
C34: =SUM(C3:C33) -> 113,135 | D34: =SUM(D3:D33) -> 32,321 | E34: 37,244 | F34: 134 | G34: 3,851 | I34: =SUM(I3:I32) -> 366,331 | J34: =SUM(J3:J32) -> 107,686 | K34: =SUM(K3:K32) -> 117,978 | L34: =SUM(L3:L32) -> 321 | M34: =SUM(M3:M32) -> 440 | O34: 31%
B39: Airport/northeast | C39: 2,768 | D39: 895 | E39: 954 | F39: 2 | G39: 38.71 | H39: $77,175 | I39: 2,768 | J39: 895 | K39: 954 | L39: 2 | M39: 38.70 | N39: $77,175 | O39: =C39/I39 -> 100% | P39: =C39/G39 -> 72 | Q39: =I39/M39 -> 72 | S39: =_xlfn.RANK.EQ(C39,C$39:C$46) -> 2 | T39: =_xlfn.RANK.EQ(O39,O$39:O$46) -> 1 | U39: =_xlfn.RANK.EQ(P39,P$39:P$46) -> 3 | V39: =_xlfn.RANK.EQ(F39,F$39:F$46) -> 2 | W39: =_xlfn.RANK.EQ(H39,H$39:H$46,1) -> 7 | X39: Airport/northeast | Y39: =(2*S39)+T39+U39+V39+W39 -> 17 | Z39: =_xlfn.RANK.EQ(Y39,Y$39:Y$46,1) -> 2 | AA39: San Benito
A40: San Benito | B40: Aromas CDP & area | C40: 3,596 | D40: 1,242 | E40: 1,312 | F40: 3 | G40: 18.57 | H40: $62,446 | I40: 3,596 | J40: 1,242 | K40: 1,312 | L40: 3 | M40: 18.57 | N40: $62,446 | O40: 100% | P40: 194 | Q40: 194 | S40: 1 | T40: 1 | U40: 1 | V40: 1 | W40: =_xlfn.RANK.EQ(H40,H$39:H$46,1) -> 2 | X40: Aromas CDP & area | Y40: 7 | Z40: 1 | AA40: San Benito
A41: San Benito | B41: Cienega Road area | C41: 173 | D41: 58 | E41: 59 | F41: 0 | G41: 1.45 | H41: $64,659 | I41: 173 | J41: 58 | K41: 59 | L41: 0 | M41: 1.45 | N41: $64,659 | O41: 100% | P41: 119 | Q41: 119 | S41: 3 | T41: 1 | U41: 2 | V41: 3 | W41: 5 | X41: Cienega Road area | Y41: 17 | Z41: 2 | AA41: San Benito
A42: San Benito | B42: Hollister | C42: 24 | D42: 6 | E42: 15 | F42: 0 | G42: 1.61 | H42: $75,735 | I42: 34,450 | J42: 9,744 | K42: 10,285 | L42: 33 | M42: 7.17 | N42: $63,139 | O42: 0% | P42: 15 | Q42: 4,805 | S42: 5 | T42: 6 | U42: 6 | V42: 3 | W42: 6 | X42: Hollister | Y42: 31 | Z42: 5 | AA42: San Benito
A43: San Benito | B43: Ridgemark CDP | C43: 0 | D43: 0 | E43: 0 | F43: 0 | G43: 0.00 | H43: $63,504 | I43: 3,016 | J43: 1,207 | K43: 1,260 | L43: 1 | M43: 2.57 | N43: $95,538 | O43: 0% | P43: 0 | Q43: 1,174 | S43: =_xlfn.RANK.EQ(C43,C$39:C$46) -> 7 | T43: =_xlfn.RANK.EQ(O43,O$39:O$46) -> 7 | U43: =_xlfn.RANK.EQ(P43,P$39:P$46) -> 7 | V43: =_xlfn.RANK.EQ(F43,F$39:F$46) -> 3 | W43: 3 | X43: Ridgemark CDP | Y43: 34 | Z43: =_xlfn.RANK.EQ(Y43,Y$39:Y$46,1) -> 8 | AA43: San Benito
A44: San Benito | B44: San Juan Bautista | C44: 0 | D44: 0 | E44: 0 | F44: 0 | G44: 0.00 | H44: $61,650 | I44: 1,808 | J44: 644 | K44: 708 | L44: 3 | M44: 0.68 | N44: $61,650 | O44: 0% | P44: 0 | Q44: 2,659 | S44: =_xlfn.RANK.EQ(C44,C$39:C$46) -> 7 | T44: =_xlfn.RANK.EQ(O44,O$39:O$46) -> 7 | U44: =_xlfn.RANK.EQ(P44,P$39:P$46) -> 7 | V44: =_xlfn.RANK.EQ(F44,F$39:F$46) -> 3 | W44: 1 | X44: San Juan Bautista | Y44: 32 | Z44: =_xlfn.RANK.EQ(Y44,Y$39:Y$46,1) -> 6 | AA44: San Benito
A45: San Benito | B45: San Juan Canyon area | C45: 75 | D45: 29 | E45: 38 | F45: 0 | G45: 2.15 | H45: $63,504 | I45: 75 | J45: 29 | K45: 38 | L45: 0 | M45: 2.15 | N45: $63,504 | O45: 100% | P45: 35 | Q45: 35 | S45: 4 | T45: 1 | U45: 5 | V45: 3 | W45: 3 | X45: San Juan Canyon area | Y45: 20 | Z45: 4 | AA45: San Benito
A46: San Benito | B46: Tres Pinos CDP | C46: 6 | D46: 2 | E46: 2 | F46: 0 | G46: 0.12 | H46: $78,333 | I46: 476 | J46: 166 | K46: 176 | L46: 1 | M46: 3.60 | N46: $78,333 | O46: =C46/I46 -> 1% | P46: =C46/G46 -> 50 | Q46: =I46/M46 -> 132 | S46: 6 | T46: 5 | U46: 4 | V46: 3 | W46: 8 | X46: Tres Pinos CDP | Y46: 32 | Z46: 6 | AA46: San Benito
A47: San Benito | B47: zUnattached | C47: 2,663 | D47: 963 | E47: 1,114 | F47: 5 | G47: 1,252.49 | H47: $76,726 | I47: 10,161 | J47: 3,226 | K47: 3,502 | L47: 12 | M47: 1,286.89 | N47: $75,382 | O47: =C47/I47 -> 26% | P47: =C47/G47 -> 2 | Q47: =I47/M47 -> 8 | X47: zUnattached | AA47: San Benito
C48: =SUM(C43:C47) -> 2,744 | D48: =SUM(D43:D47) -> 994 | E48: 1,154 | F48: 5 | G48: 1,255 | I48: 15,536 | J48: 5,272 | K48: 5,684 | L48: 17 | M48: 1,296 | O48: 18%
A52: Santa Cruz | B52: Amesti CDP | C52: 0 | D52: 0 | E52: 0 | F52: 0 | G52: 0 | H52: $54,829 | I52: 3,478 | J52: 982 | K52: 1,015 | L52: 2 | M52: 3.06 | N52: $54,829 | O52: =C52/I52 -> 0% | P52: 0 | Q52: =I52/M52 -> 1,137 | S52: =_xlfn.RANK.EQ(C52,C$52:C$81) -> 27 | T52: =_xlfn.RANK.EQ(O52,O$52:O$81) -> 27 | U52: =_xlfn.RANK.EQ(P52,P$52:P$81) -> 27 | V52: =_xlfn.RANK.EQ(F52,F$52:F$81) -> 6 | W52: =_xlfn.RANK.EQ(H52,H$52:H$81,1) -> 3 | X52: Amesti CDP | Y52: =(2*S52)+T52+U52+V52+W52 -> 117 | Z52: =_xlfn.RANK.EQ(Y52,Y$52:Y$81,1) -> 25 | AA52: Santa Cruz
A53: Santa Cruz | B53: Aptos CDP | C53: 28 | D53: 9 | E53: 9 | F53: 3 | G53: 0.16 | H53: $79,922 | I53: 6,220 | J53: 2,549 | K53: 2,711 | L53: 13 | M53: 6.34 | N53: $80,539 | O53: 0% | P53: =C53/G53 -> 180 | Q53: 982 | S53: =_xlfn.RANK.EQ(C53,C$52:C$81) -> 20 | T53: =_xlfn.RANK.EQ(O53,O$52:O$81) -> 20 | U53: =_xlfn.RANK.EQ(P53,P$52:P$81) -> 15 | V53: =_xlfn.RANK.EQ(F53,F$52:F$81) -> 1 | W53: =_xlfn.RANK.EQ(H53,H$52:H$81,1) -> 18 | X53: Aptos CDP | Y53: 94 | Z53: =_xlfn.RANK.EQ(Y53,Y$52:Y$81,1) -> 19 | AA53: Santa Cruz
A54: Santa Cruz | B54: Aptos Hills-Larkin Valley CDP | C54: 61 | D54: 18 | E54: 19 | G54: 0.56 | H54: $75,443 | I54: 2,381 | J54: 872 | K54: 922 | M54: 9.29 | N54: $75,183 | O54: 3% | P54: 110 | Q54: 256 | S54: 18 | T54: 14 | U54: 18 | V54: 6 | W54: 11 | X54: Aptos Hills-Larkin Valley CDP | Y54: 85 | Z54: 17 | AA54: Santa Cruz
A55: Santa Cruz | B55: Ben Lomond CDP | C55: 24 | D55: 10 | E55: 10 | G55: 0.10 | H55: $82,595 | I55: 6,188 | J55: 2,420 | K55: 2,598 | L55: 5 | M55: 8.32 | N55: $79,392 | O55: 0% | P55: 249 | Q55: 744 | S55: 21 | T55: 21 | U55: 13 | V55: 6 | W55: 19 | X55: Ben Lomond CDP | Y55: 101 | Z55: 21 | AA55: Santa Cruz
A56: Santa Cruz | B56: Bonny Doon CDP | C56: 748 | D56: 310 | E56: 360 | G56: 7.64 | H56: $87,099 | I56: 2,678 | J56: 1,088 | K56: 1,218 | L56: 1 | M56: 16.69 | N56: $86,867 | O56: 28% | P56: 98 | Q56: 160 | S56: 3 | T56: 1 | U56: 19 | V56: 6 | W56: 24 | X56: Bonny Doon CDP | Y56: 56 | Z56: 7 | AA56: Santa Cruz
A57: Santa Cruz | B57: Boulder Creek CDP | C57: 13 | D57: 5 | E57: 6 | G57: 0.03 | H57: $89,554 | I57: 4,923 | J57: 2,124 | K57: 2,455 | L57: 3 | M57: 7.51 | N57: $88,979 | O57: 0% | P57: 485 | Q57: 655 | S57: 22 | T57: 24 | U57: 10 | V57: 6 | W57: 26 | X57: Boulder Creek CDP | Y57: 110 | Z57: 23 | AA57: Santa Cruz
A58: Santa Cruz | B58: Brookdale CDP | C58: 413 | D58: 154 | E58: 187 | G58: 0.53 | H58: $84,134 | I58: 1,991 | J58: 806 | K58: 912 | M58: 3.85 | N58: $84,965 | O58: 21% | P58: 775 | Q58: 518 | S58: 7 | T58: 2 | U58: 5 | V58: 6 | W58: 22 | X58: Brookdale CDP | Y58: 49 | Z58: 4 | AA58: Santa Cruz
A59: Santa Cruz | B59: Capitola | C59: 244 | D59: 144 | E59: 250 | G59: 0.32 | H59: $63,236 | I59: 9,840 | J59: 4,587 | K59: 5,494 | L59: 10 | M59: 1.68 | N59: $56,985 | O59: 2% | P59: 760 | Q59: 5,873 | S59: 10 | T59: 15 | U59: 6 | V59: 6 | W59: 7 | X59: Capitola | Y59: 54 | Z59: 6 | AA59: Santa Cruz
A60: Santa Cruz | B60: Corralitos CDP | C60: 241 | D60: 92 | E60: 98 | G60: 3.39 | H60: $75,443 | I60: 2,293 | J60: 810 | K60: 868 | L60: 2 | M60: 8.87 | N60: $75,443 | O60: 11% | P60: 71 | Q60: 258 | S60: 11 | T60: 8 | U60: 20 | V60: 6 | W60: 11 | X60: Corralitos CDP | Y60: 67 | Z60: 12 | AA60: Santa Cruz
A61: Santa Cruz | B61: Davenport CDP | C61: 77 | D61: 11 | E61: 14 | G61: 1.78 | H61: $87,606 | I61: 408 | J61: 123 | K61: 139 | L61: 3 | M61: 2.84 | N61: $87,606 | O61: 19% | P61: 43 | Q61: 143 | S61: 15 | T61: 4 | U61: 22 | V61: 6 | W61: 25 | X61: Davenport CDP | Y61: 87 | Z61: 18 | AA61: Santa Cruz
A62: Santa Cruz | B62: Day Valley CDP | C62: 407 | D62: 146 | E62: 166 | G62: 12.21 | H62: $94,107 | I62: 3,442 | J62: 1,299 | K62: 1,386 | L62: 1 | M62: 18.93 | N62: $87,597 | O62: 12% | P62: 33 | Q62: 182 | S62: 8 | T62: 6 | U62: 23 | V62: 6 | W62: 28 | X62: Day Valley CDP | Y62: 79 | Z62: 14 | AA62: Santa Cruz
A63: Santa Cruz | B63: Felton CDP | C63: 96 | D63: 58 | E63: 65 | G63: 0.62 | H63: $79,347 | I63: 4,057 | J63: 1,700 | K63: 1,895 | L63: 2 | M63: 4.72 | N63: $78,048 | O63: 2% | P63: 154 | Q63: 859 | S63: 13 | T63: 16 | U63: 16 | V63: 6 | W63: 17 | X63: Felton CDP | Y63: 81 | Z63: 15 | AA63: Santa Cruz
A64: Santa Cruz | B64: Freedom CDP | C64: 0 | D64: 0 | E64: 0 | F64: 0 | G64: 0.00 | H64: $56,181 | I64: 3,070 | J64: 776 | K64: 805 | L64: 2 | M64: 1.08 | N64: $56,181 | O64: 0% | P64: 0 | Q64: 2,839 | S64: 27 | T64: 27 | U64: 27 | V64: 6 | W64: 4 | X64: Freedom CDP | Y64: 118 | Z64: 26 | AA64: Santa Cruz
A65: Santa Cruz | B65: Interlaken CDP | C65: 70 | D65: 19 | E65: 19 | G65: 1.06 | H65: $60,179 | I65: 7,331 | J65: 1,695 | K65: 1,764 | L65: 4 | M65: 10.22 | N65: $70,343 | O65: 1% | P65: 66 | Q65: 717 | S65: 16 | T65: 19 | U65: 21 | V65: 6 | W65: 6 | X65: Interlaken CDP | Y65: 84 | Z65: 16 | AA65: Santa Cruz
A66: Santa Cruz | B66: La Selva Beach CDP | C66: 329 | D66: 160 | E66: 315 | G66: 1.23 | H66: $79,143 | I66: 2,843 | J66: 1,076 | K66: 1,376 | L66: 3 | M66: 5.30 | N66: $79,143 | O66: 12% | P66: 269 | Q66: 537 | S66: 9 | T66: 7 | U66: 12 | V66: 6 | W66: 15 | X66: La Selva Beach CDP | Y66: 58 | Z66: 9 | AA66: Santa Cruz
A67: Santa Cruz | B67: Live Oak CDP | C67: 207 | D67: 111 | E67: 125 | F67: 1 | G67: 0.13 | H67: $68,900 | I67: 17,158 | J67: 6,441 | K67: 6,726 | L67: 20 | M67: 3.24 | N67: $63,164 | O67: 1% | P67: 1,552 | Q67: 5,293 | S67: 12 | T67: 18 | U67: 4 | V67: 2 | W67: 8 | X67: Live Oak CDP | Y67: 56 | Z67: 7 | AA67: Santa Cruz
A68: Santa Cruz | B68: Lompico CDP | C68: 38 | D68: 8 | E68: 8 | G68: 1.16 | H68: $85,131 | I68: 1,137 | J68: 480 | K68: 550 | M68: 3.37 | N68: $84,520 | O68: 3% | P68: 33 | Q68: 337 | S68: 19 | T68: 12 | U68: 24 | V68: 6 | W68: 23 | X68: Lompico CDP | Y68: 103 | Z68: 22 | AA68: Santa Cruz
A69: Santa Cruz | B69: Mount Herman CDP | C69: 4 | D69: 2 | E69: 2 | G69: 0.01 | H69: $73,472 | I69: 1,037 | J69: 408 | K69: 530 | M69: 0.89 | N69: $73,472 | O69: 0% | P69: 290 | Q69: 1,166 | S69: 23 | T69: 22 | U69: 11 | V69: 6 | W69: 10 | X69: Mount Herman CDP | Y69: 95 | Z69: 20 | AA69: Santa Cruz
A70: Santa Cruz | B70: Pajaro Dunes CDP | C70: 0 | D70: 0 | E70: 0 | G70: 0.00 | H70: $79,143 | I70: 144 | J70: 53 | K70: 567 | M70: 2.59 | N70: $79,143 | O70: 0% | P70: 0 | Q70: 56 | S70: 27 | T70: 27 | U70: 27 | V70: 6 | W70: 15 | X70: Pajaro Dunes CDP | Y70: 129 | Z70: 28 | AA70: Santa Cruz
A71: Santa Cruz | B71: Paradise Park CDP | C71: 64 | D71: 31 | E71: 46 | G71: 0.03 | H71: $91,766 | I71: 324 | J71: 168 | K71: 330 | M71: 0.22 | N71: $80,247 | O71: 20% | P71: 1,883 | Q71: 1,488 | S71: 17 | T71: 3 | U71: 2 | V71: 6 | W71: 27 | X71: Paradise Park CDP | Y71: 72 | Z71: 13 | AA71: Santa Cruz
A72: Santa Cruz | B72: Pasatiempo CDP | C72: 3 | D72: 2 | E72: 2 | G72: 0.02 | H72: $102,865 | I72: 1,041 | J72: 423 | K72: 449 | M72: 0.90 | N72: $102,865 | O72: 0% | P72: 140 | Q72: 1,156 | S72: 24 | T72: 23 | U72: 17 | V72: 6 | W72: 29 | X72: Pasatiempo CDP | Y72: 123 | Z72: 27 | AA72: Santa Cruz
A73: Santa Cruz | B73: Pleasure Point CDP | C73: 1,043 | D73: 485 | E73: 603 | G73: 1.48 | H73: $46,608 | I73: 5,924 | J73: 2,689 | K73: 3,131 | L73: 1 | M73: 2.01 | N73: $52,693 | O73: 18% | P73: 707 | Q73: 2,942 | S73: 1 | T73: 5 | U73: 8 | V73: 6 | W73: 1 | X73: Pleasure Point CDP | Y73: 22 | Z73: 1 | AA73: Santa Cruz
A74: Santa Cruz | B74: Rio del Mar CDP | C74: 2 | D74: 1 | E74: 1 | G74: 1.65 | H74: $83,106 | I74: 9,216 | J74: 3,916 | K74: 4,924 | L74: 2 | M74: 4.62 | N74: $88,511 | O74: 0% | P74: 1 | Q74: 1,996 | S74: 26 | T74: 25 | U74: 26 | V74: 6 | W74: 20 | X74: Rio del Mar CDP | Y74: 129 | Z74: 28 | AA74: Santa Cruz
A75: Santa Cruz | B75: Santa Cruz | C75: 1,009 | D75: 509 | E75: 573 | F75: 1 | G75: 4.36 | H75: $76,440 | I75: 59,938 | J75: 21,655 | K75: 23,314 | L75: 54 | M75: 15.89 | N75: $68,103 | O75: 2% | P75: 231 | Q75: 3,773 | S75: 2 | T75: 17 | U75: 14 | V75: 2 | W75: 13 | X75: Santa Cruz | Y75: 50 | Z75: 5 | AA75: Santa Cruz
A76: Santa Cruz | B76: Scotts Valley | C76: 515 | D76: 283 | E76: 310 | G76: 0.32 | H76: $110,297 | I76: 11,613 | J76: 4,435 | K76: 4,619 | L76: 9 | M76: 4.63 | N76: $111,423 | O76: 4% | P76: 1,630 | Q76: 2,506 | S76: 4 | T76: 11 | U76: 3 | V76: 6 | W76: 30 | X76: Scotts Valley | Y76: 58 | Z76: 9 | AA76: Santa Cruz
A77: Santa Cruz | B77: Seacliff CDP | C77: 95 | D77: 52 | E77: 75 | G77: 0.18 | H77: $59,105 | I77: 3,267 | J77: 1,536 | K77: 1,923 | L77: 1 | M77: 0.78 | N77: $58,279 | O77: 3% | P77: 532 | Q77: 4,196 | S77: 14 | T77: 13 | U77: 9 | V77: 6 | W77: 5 | X77: Seacliff CDP | Y77: 61 | Z77: 11 | AA77: Santa Cruz
A78: Santa Cruz | B78: Soquel CDP | C78: 496 | D78: 288 | E78: 311 | G78: 0.13 | H78: $76,639 | I78: 9,644 | J78: 3,912 | K78: 4,107 | L78: 5 | M78: 4.60 | N78: $76,472 | O78: 5% | P78: 3,882 | Q78: 2,098 | S78: 5 | T78: 10 | U78: 1 | V78: 6 | W78: 14 | X78: Soquel CDP | Y78: 41 | Z78: 3 | AA78: Santa Cruz
A79: Santa Cruz | B79: Twin Lakes CDP | C79: 450 | D79: 245 | E79: 371 | F79: 1 | G79: 0.60 | H79: $48,389 | I79: 4,917 | J79: 2,223 | K79: 2,741 | L79: 7 | M79: 1.21 | N79: $51,028 | O79: 9% | P79: 752 | Q79: 4,061 | S79: 6 | T79: 9 | U79: 7 | V79: 2 | W79: 2 | X79: Twin Lakes CDP | Y79: 32 | Z79: 2 | AA79: Santa Cruz
A80: Santa Cruz | B80: Watsonville | C80: 3 | D80: 1 | E80: 1 | F80: 1 | G80: 0.57 | H80: $72,541 | I80: 51,189 | J80: 13,523 | K80: 14,084 | L80: 49 | M80: 6.76 | N80: $48,235 | O80: 0% | P80: 5 | Q80: 7,574 | S80: 24 | T80: 26 | U80: 25 | V80: 2 | W80: 9 | X80: Watsonville | Y80: 110 | Z80: 23 | AA80: Santa Cruz
A81: Santa Cruz | B81: Zayante CDP | C81: 0 | D81: 0 | E81: 0 | G81: 0.10 | H81: $84,120 | I81: 751 | J81: 324 | K81: 366 | M81: 2.76 | N81: $84,120 | O81: 0% | P81: 0 | Q81: 272 | S81: 27 | T81: 27 | U81: 27 | V81: 6 | W81: 21 | X81: Zayante CDP | Y81: 135 | Z81: 30 | AA81: Santa Cruz
A82: Santa Cruz | B82: zUnattached | C82: 8,822 | D82: 3,506 | E82: 4,038 | F82: 5 | G82: 379.31 | H82: $85,887 | I82: 23,939 | J82: 9,262 | K82: 10,557 | L82: 14 | M82: 443.96 | N82: $88,584 | O82: 37% | P82: 23 | Q82: 54 | X82: zUnattached | AA82: Santa Cruz
C83: =SUM(C52:C82) -> 15,502 | D83: =SUM(D52:D82) -> 6,660 | E83: 7,984 | F83: 12 | G83: 420 | I83: 262,382 | J83: 94,355 | K83: 104,476 | L83: 213 | M83: 607 | O83: 6%

Sheet Analysis - regional
C1: Eligible | I1: Total | S1: Ranking by County
A2: County | B2: Community | C2: Population | D2: Households | E2: Housing units | F2: Anchor institutions | G2: Area | H2: Household Income | I2: Population | J2: Households | K2: Housing units | L2: Anchor institutions | M2: Area | O2: Eligible pop % | P2: Population density (eligible) | Q2: Population density (total) | S2: Population | T2: Eligible pop % | U2: Population density (eligible) | V2: Anchor institutions | W2: Household Income | X2: Community | Y2: Regional score | Z2: Regional priority | AA2: County
A3: Monterey | B3: Big Sur CBG | C3: 1,710 | D3: 784 | E3: 1,121 | F3: 7 | G3: 259.02 | H3: $69,474 | I3: 1,710 | J3: 784 | K3: 1,121 | L3: 7 | M3: 259.02 | N3: $69,474 | O3: =C3/I3 -> 100% | P3: =C3/G3 -> 7 | Q3: =I3/M3 -> 7 | S3: =_xlfn.RANK.EQ(C3,C$3:C$69) -> 12 | T3: =_xlfn.RANK.EQ(O3,O$3:O$69) -> 1 | U3: =_xlfn.RANK.EQ(P3,P$3:P$69) -> 55 | V3: =_xlfn.RANK.EQ(F3,F$3:F$69) -> 4 | W3: =_xlfn.RANK.EQ(H3,H$3:H$69,1) -> 37 | X3: Big Sur CBG | Y3: =(2*S3)+T3+U3+V3+W3 -> 121 | Z3: =_xlfn.RANK.EQ(Y3,Y$3:Y$69,1) -> 18 | AA3: Monterey
A4: Monterey | B4: Boronda CDP | C4: 0 | D4: 0 | E4: 0 | F4: 0 | G4: 0.00 | H4: $57,667 | I4: 1,710 | J4: 394 | K4: 413 | L4: 1 | M4: 0.55 | N4: $58,810 | O4: =C4/I4 -> 0% | P4: =C4/G4 -> 0 | Q4: 3,109 | S4: 58 | T4: 58 | U4: 58 | V4: 27 | W4: =_xlfn.RANK.EQ(H4,H$3:H$69,1) -> 15 | X4: Boronda CDP | Y4: 274 | Z4: 58 | AA4: Monterey
A5: Monterey | B5: Bradley CDP | C5: 93 | D5: 37 | E5: 40 | F5: 1 | G5: 0.09 | H5: $63,309 | I5: 93 | J5: 37 | K5: 40 | L5: 1 | M5: 0.09 | N5: $63,309 | O5: 100% | P5: 1,081 | Q5: 1,033 | S5: 39 | T5: 1 | U5: 15 | V5: 17 | W5: 27 | X5: Bradley CDP | Y5: 138 | Z5: 21 | AA5: Monterey
A6: Monterey | B6: Carmel Valley Village CDP | C6: 1,504 | D6: 619 | E6: 731 | F6: 1 | G6: 13.79 | H6: $81,129 | I6: 4,407 | J6: 1,895 | K6: 2,156 | L6: 2 | M6: 19.18 | N6: $81,129 | O6: 34% | P6: 109 | Q6: 230 | S6: 13 | T6: 22 | U6: 40 | V6: 17 | W6: 53 | X6: Carmel Valley Village CDP | Y6: 158 | Z6: 24 | AA6: Monterey
A7: Monterey | B7: Carmel-by-the-Sea | C7: 2,912 | D7: 1,693 | E7: 2,854 | F7: 3 | G7: 0.82 | H7: $84,259 | I7: 3,722 | J7: 2,095 | K7: 3,417 | L7: 3 | M7: 1.08 | N7: $83,690 | O7: 78% | P7: 3,564 | Q7: 3,446 | S7: 8 | T7: 17 | U7: 7 | V7: 9 | W7: 58 | X7: Carmel-by-the-Sea | Y7: 107 | Z7: 12 | AA7: Monterey
A8: Monterey | B8: Castroville CDP | C8: 5,928 | D8: 1,364 | E8: 1,431 | F8: 6 | G8: 0.87 | H8: $53,160 | I8: 6,481 | J8: 1,470 | K8: 1,539 | L8: 7 | M8: 1.06 | N8: $53,154 | O8: 91% | P8: 6,828 | Q8: 6,114 | S8: 6 | T8: 15 | U8: 2 | V8: 6 | W8: 8 | X8: Castroville CDP | Y8: 43 | Z8: 5 | AA8: Monterey
A9: Monterey | B9: Chualar CDP | C9: 1,190 | D9: 245 | E9: 251 | F9: 1 | G9: 0.63 | H9: $65,771 | I9: 1,190 | J9: 245 | K9: 251 | L9: 1 | M9: 0.63 | N9: $65,771 | O9: 100% | P9: 1,901 | Q9: 1,889 | S9: 16 | T9: 1 | U9: 9 | V9: 17 | W9: 33 | X9: Chualar CDP | Y9: 92 | Z9: 7 | AA9: Monterey
A10: Monterey | B10: Del Monte Forest CDP | C10: 84 | D10: 42 | E10: 104 | F10: 0 | G10: 4.51 | H10: $98,610 | I10: 4,514 | J10: 1,925 | K10: 2,811 | L10: 2 | M10: 10.64 | N10: $104,894 | O10: 2% | P10: 19 | Q10: 424 | S10: 41 | T10: 41 | U10: 53 | V10: 27 | W10: 65 | X10: Del Monte Forest CDP | Y10: 268 | Z10: 53 | AA10: Monterey
A11: Monterey | B11: Del Rey Oaks | C11: 0 | D11: 0 | E11: 0 | F11: 0 | G11: 0.00 | H11: $80,417 | I11: 1,235 | J11: 541 | K11: 576 | L11: 0 | M11: 0.28 | N11: $80,417 | O11: 0% | P11: 0 | Q11: 4,411 | S11: 58 | T11: 58 | U11: 58 | V11: 27 | W11: 52 | X11: Del Rey Oaks | Y11: 311 | Z11: 66 | AA11: Monterey
A12: Monterey | B12: Elkhorn CDP | C12: 1,306 | D12: 444 | E12: 471 | F12: 1 | G12: 3.97 | H12: $68,263 | I12: 1,565 | J12: 532 | K12: 565 | L12: 1 | M12: 4.83 | N12: $68,093 | O12: 83% | P12: 329 | Q12: 324 | S12: 14 | T12: 16 | U12: 27 | V12: 17 | W12: 35 | X12: Elkhorn CDP | Y12: 123 | Z12: 19 | AA12: Monterey
A13: Monterey | B13: Gonzales | C13: 8,187 | D13: 1,906 | E13: 1,989 | F13: 7 | G13: 1.94 | H13: $55,251 | I13: 8,187 | J13: 1,906 | K13: 1,989 | L13: 7 | M13: 1.94 | N13: $55,251 | O13: 100% | P13: 4,210 | Q13: 4,220 | S13: 5 | T13: 1 | U13: 5 | V13: 4 | W13: 10 | X13: Gonzales | Y13: 30 | Z13: 3 | AA13: Monterey
A14: Monterey | B14: Greenfield | C14: 16,330 | D14: 3,460 | E14: 3,752 | F14: 14 | G14: 2.14 | H14: $55,591 | I14: 16,330 | J14: 3,460 | K14: 3,752 | L14: 14 | M14: 2.14 | N14: $55,591 | O14: 100% | P14: 7,649 | Q14: 7,631 | S14: 1 | T14: 1 | U14: 1 | V14: 3 | W14: 12 | X14: Greenfield | Y14: 19 | Z14: 1 | AA14: Monterey
A15: Monterey | B15: King City | C15: 12,874 | D15: 3,008 | E15: 3,218 | F15: 19 | G15: 3.95 | H15: $49,747 | I15: 12,874 | J15: 3,008 | K15: 3,218 | L15: 19 | M15: 3.95 | N15: $49,747 | O15: 100% | P15: 3,263 | Q15: 3,259 | S15: 3 | T15: 1 | U15: 8 | V15: 2 | W15: 5 | X15: King City | Y15: 22 | Z15: 2 | AA15: Monterey
A16: Monterey | B16: Las Lomas CDP | C16: 85 | D16: 19 | E16: 20 | F16: 0 | G16: 0.07 | H16: $57,763 | I16: 3,024 | J16: 598 | K16: 623 | L16: 1 | M16: 1.04 | N16: $57,763 | O16: 3% | P16: 1,262 | Q16: 2,908 | S16: 40 | T16: 37 | U16: 13 | V16: 27 | W16: 16 | X16: Las Lomas CDP | Y16: 173 | Z16: 29 | AA16: Monterey
A17: Monterey | B17: Lockwood CDP | C17: 379 | D17: 163 | E17: 197 | F17: 1 | G17: 10.91 | H17: $63,309 | I17: 379 | J17: 163 | K17: 197 | L17: 1 | M17: 10.91 | N17: $63,309 | O17: 100% | P17: 35 | Q17: 35 | S17: 26 | T17: 1 | U17: 49 | V17: 17 | W17: 27 | X17: Lockwood CDP | Y17: 146 | Z17: 22 | AA17: Monterey
A18: Monterey | B18: Marina | C18: 247 | D18: 85 | E18: 103 | F18: 3 | G18: 5.53 | H18: $57,460 | I18: 19,718 | J18: 6,845 | K18: 7,200 | L18: 16 | M18: 9.75 | N18: $52,276 | O18: 1% | P18: 45 | Q18: 2,022 | S18: 30 | T18: 44 | U18: 46 | V18: 9 | W18: 14 | X18: Marina | Y18: 173 | Z18: 29 | AA18: Monterey
A19: Monterey | B19: Monterey | C19: 2,668 | D19: 295 | E19: 437 | F19: 5 | G19: 4.93 | H19: $67,874 | I19: 27,810 | J19: 12,184 | K19: 13,584 | L19: 40 | M19: 11.75 | N19: $65,120 | O19: 10% | P19: 542 | Q19: 2,367 | S19: 10 | T19: 31 | U19: 23 | V19: 7 | W19: 34 | X19: Monterey | Y19: 115 | Z19: 15 | AA19: Monterey
A20: Monterey | B20: Moss Landing CDP | C20: 150 | D20: 75 | E20: 79 | F20: 0 | G20: 0.51 | H20: $57,763 | I20: 204 | J20: 100 | K20: 108 | L20: 1 | M20: 0.60 | N20: $57,763 | O20: 74% | P20: 296 | Q20: 340 | S20: 35 | T20: 18 | U20: 28 | V20: 27 | W20: 16 | X20: Moss Landing CDP | Y20: 159 | Z20: 25 | AA20: Monterey
A21: Monterey | B21: Pacific Grove | C21: 32 | D21: 18 | E21: 26 | F21: 0 | G21: 1.38 | H21: $61,109 | I21: 15,041 | J21: 7,020 | K21: 8,169 | L21: 13 | M21: 4.00 | N21: $65,993 | O21: 0% | P21: 23 | Q21: 3,760 | S21: 48 | T21: 54 | U21: 52 | V21: 27 | W21: 22 | X21: Pacific Grove | Y21: 251 | Z21: 47 | AA21: Monterey
A22: Monterey | B22: Pajaro CDP | C22: 0 | D22: 0 | E22: 0 | F22: 0 | G22: 0.05 | H22: $41,281 | I22: 3,054 | J22: 618 | K22: 652 | L22: 3 | M22: 0.91 | N22: $41,281 | O22: 0% | P22: 0 | Q22: 3,356 | S22: 58 | T22: 58 | U22: 58 | V22: 27 | W22: 2 | X22: Pajaro CDP | Y22: 261 | Z22: 50 | AA22: Monterey
A23: Monterey | B23: Pine Canyon CDP | C23: 1,822 | D23: 554 | E23: 587 | F23: 0 | G23: 3.34 | H23: $63,000 | I23: 1,822 | J23: 554 | K23: 587 | L23: 0 | M23: 3.34 | N23: $63,000 | O23: 100% | P23: 546 | Q23: 546 | S23: 11 | T23: 1 | U23: 22 | V23: 27 | W23: 25 | X23: Pine Canyon CDP | Y23: 97 | Z23: 9 | AA23: Monterey
A24: Monterey | B24: Prunedale CDP | C24: 12,400 | D24: 4,014 | E24: 4,260 | F24: 5 | G24: 35.54 | H24: $76,970 | I24: 17,560 | J24: 5,703 | K24: 6,047 | L24: 9 | M24: 46.20 | N24: $77,030 | O24: 71% | P24: 349 | Q24: 380 | S24: 4 | T24: 19 | U24: 26 | V24: 7 | W24: 45 | X24: Prunedale CDP | Y24: 105 | Z24: 11 | AA24: Monterey
A25: Monterey | B25: Salinas | C25: 1,258 | D25: 448 | E25: 489 | F25: 2 | G25: 1.55 | H25: $52,404 | I25: 150,420 | J25: 40,368 | K25: 42,631 | L25: 119 | M25: 23.12 | N25: $54,074 | O25: 1% | P25: 811 | Q25: 6,506 | S25: 15 | T25: 47 | U25: 16 | V25: 13 | W25: 7 | X25: Salinas | Y25: 113 | Z25: 14 | AA25: Monterey
A26: Monterey | B26: San Ardo CDP | C26: 517 | D26: 140 | E26: 158 | F26: 2 | G26: 0.45 | H26: $63,309 | I26: 517 | J26: 140 | K26: 158 | L26: 2 | M26: 0.45 | N26: $63,309 | O26: 100% | P26: 1,151 | Q26: 1,149 | S26: 20 | T26: 1 | U26: 14 | V26: 13 | W26: 27 | X26: San Ardo CDP | Y26: 95 | Z26: 8 | AA26: Monterey
A27: Monterey | B27: San Lucas CDP | C27: 269 | D27: 67 | E27: 76 | F27: 2 | G27: 0.39 | H27: $55,546 | I27: 269 | J27: 67 | K27: 76 | L27: 2 | M27: 0.39 | N27: $55,546 | O27: 100% | P27: 683 | Q27: 690 | S27: 29 | T27: 1 | U27: 21 | V27: 13 | W27: 11 | X27: San Lucas CDP | Y27: 104 | Z27: 10 | AA27: Monterey
A28: Monterey | B28: Sand City | C28: 0 | D28: 0 | E28: 0 | F28: 0 | G28: 2.68 | H28: $37,393 | I28: 334 | J28: 128 | K28: 145 | L28: 2 | M28: 2.94 | N28: $43,777 | O28: 0% | P28: 0 | Q28: 114 | S28: 58 | T28: 58 | U28: 58 | V28: 27 | W28: 1 | X28: Sand City | Y28: 260 | Z28: 49 | AA28: Monterey
A29: Monterey | B29: Seaside | C29: 138 | D29: 46 | E29: 48 | F29: 1 | G29: 0.67 | H29: $58,593 | I29: 33,100 | J29: 10,129 | K29: 10,908 | L29: 23 | M29: 9.39 | N29: $56,392 | O29: 0% | P29: 206 | Q29: 3,525 | S29: 36 | T29: 49 | U29: 33 | V29: 17 | W29: 19 | X29: Seaside | Y29: 190 | Z29: 37 | AA29: Monterey
A30: Monterey | B30: Soledad | C30: 15,205 | D30: 3,552 | E30: 3,755 | F30: 21 | G30: 3.11 | H30: $50,265 | I30: 25,738 | J30: 3,664 | K30: 3,876 | L30: 21 | M30: 4.56 | N30: $43,796 | O30: 59% | P30: 4,889 | Q30: 5,644 | S30: 2 | T30: 20 | U30: 4 | V30: 1 | W30: 6 | X30: Soledad | Y30: 35 | Z30: 4 | AA30: Monterey
A31: Monterey | B31: Spreckels CDP | C31: 312 | D31: 105 | E31: 107 | F31: 0 | G31: 0.05 | H31: $58,363 | I31: 673 | J31: 229 | K31: 246 | L31: 1 | M31: 0.12 | N31: $59,186 | O31: 46% | P31: 5,710 | Q31: 5,608 | S31: 28 | T31: 21 | U31: 3 | V31: 27 | W31: 18 | X31: Spreckels CDP | Y31: 125 | Z31: 20 | AA31: Monterey
A32: San Benito | B32: Airport/northeast | C32: 2,768 | D32: 895 | E32: 954 | F32: 2 | G32: 38.71 | H32: $77,175 | I32: 2,768 | J32: 895 | K32: 954 | L32: 2 | M32: 38.70 | N32: $77,175 | O32: =C32/I32 -> 100% | P32: =C32/G32 -> 72 | Q32: =I32/M32 -> 72 | S32: 9 | T32: 1 | U32: 42 | V32: 13 | W32: 46 | X32: Airport/northeast | Y32: =(2*S32)+T32+U32+V32+W32 -> 120 | Z32: 17 | AA32: San Benito
A33: San Benito | B33: Aromas CDP & area | C33: 3,596 | D33: 1,242 | E33: 1,312 | F33: 3 | G33: 18.57 | H33: $62,446 | I33: 3,596 | J33: 1,242 | K33: 1,312 | L33: 3 | M33: 18.57 | N33: $62,446 | O33: 100% | P33: 194 | Q33: 194 | S33: 7 | T33: 1 | U33: 34 | V33: 9 | W33: 24 | X33: Aromas CDP & area | Y33: 82 | Z33: 6 | AA33: San Benito
A34: San Benito | B34: Cienega Road area | C34: 173 | D34: 58 | E34: 59 | F34: 0 | G34: 1.45 | H34: $64,659 | I34: 173 | J34: 58 | K34: 59 | L34: 0 | M34: 1.45 | N34: $64,659 | O34: 100% | P34: 119 | Q34: 119 | S34: 34 | T34: 1 | U34: 38 | V34: 27 | W34: 32 | X34: Cienega Road area | Y34: 166 | Z34: 26 | AA34: San Benito
A35: San Benito | B35: Hollister | C35: 24 | D35: 6 | E35: 15 | F35: 0 | G35: 1.61 | H35: $75,735 | I35: 34,450 | J35: 9,744 | K35: 10,285 | L35: 33 | M35: 7.17 | N35: $63,139 | O35: 0% | P35: 15 | Q35: 4,805 | S35: =_xlfn.RANK.EQ(C35,C$3:C$69) -> 50 | T35: =_xlfn.RANK.EQ(O35,O$3:O$69) -> 55 | U35: =_xlfn.RANK.EQ(P35,P$3:P$69) -> 54 | V35: =_xlfn.RANK.EQ(F35,F$3:F$69) -> 27 | W35: 42 | X35: Hollister | Y35: 278 | Z35: =_xlfn.RANK.EQ(Y35,Y$3:Y$69,1) -> 59 | AA35: San Benito
A36: San Benito | B36: Ridgemark CDP | C36: 0 | D36: 0 | E36: 0 | F36: 0 | G36: 0.00 | H36: $63,504 | I36: 3,016 | J36: 1,207 | K36: 1,260 | L36: 1 | M36: 2.57 | N36: $95,538 | O36: 0% | P36: 0 | Q36: 1,174 | S36: 58 | T36: 58 | U36: 58 | V36: 27 | W36: 30 | X36: Ridgemark CDP | Y36: 289 | Z36: 62 | AA36: San Benito
A37: San Benito | B37: San Juan Bautista | C37: 0 | D37: 0 | E37: 0 | F37: 0 | G37: 0.00 | H37: $61,650 | I37: 1,808 | J37: 644 | K37: 708 | L37: 3 | M37: 0.68 | N37: $61,650 | O37: 0% | P37: 0 | Q37: 2,659 | S37: 58 | T37: 58 | U37: 58 | V37: 27 | W37: 23 | X37: San Juan Bautista | Y37: 282 | Z37: 61 | AA37: San Benito
A38: San Benito | B38: San Juan Canyon area | C38: 75 | D38: 29 | E38: 38 | F38: 0 | G38: 2.15 | H38: $63,504 | I38: 75 | J38: 29 | K38: 38 | L38: 0 | M38: 2.15 | N38: $63,504 | O38: 100% | P38: 35 | Q38: 35 | S38: 43 | T38: 1 | U38: 48 | V38: 27 | W38: 30 | X38: San Juan Canyon area | Y38: 192 | Z38: 38 | AA38: San Benito
A39: San Benito | B39: Tres Pinos CDP | C39: 6 | D39: 2 | E39: 2 | F39: 0 | G39: 0.12 | H39: $78,333 | I39: 476 | J39: 166 | K39: 176 | L39: 1 | M39: 3.60 | N39: $78,333 | O39: 1% | P39: =C39/G39 -> 50 | Q39: =I39/M39 -> 132 | S39: 53 | T39: 43 | U39: 45 | V39: 27 | W39: 47 | X39: Tres Pinos CDP | Y39: 268 | Z39: 53 | AA39: San Benito
A40: Santa Cruz | B40: Amesti CDP | C40: 0 | D40: 0 | E40: 0 | F40: 0 | G40: 0 | H40: $54,829 | I40: 3,478 | J40: 982 | K40: 1,015 | L40: 2 | M40: 3.06 | N40: $54,829 | O40: =C40/I40 -> 0% | P40: 0 | Q40: =I40/M40 -> 1,137 | S40: 58 | T40: 58 | U40: 58 | V40: 27 | W40: 9 | X40: Amesti CDP | Y40: =(2*S40)+T40+U40+V40+W40 -> 268 | Z40: 53 | AA40: Santa Cruz
A41: Santa Cruz | B41: Aptos CDP | C41: 28 | D41: 9 | E41: 9 | F41: 3 | G41: 0.16 | H41: $79,922 | I41: 6,220 | J41: 2,549 | K41: 2,711 | L41: 13 | M41: 6.34 | N41: $80,539 | O41: 0% | P41: =C41/G41 -> 180 | Q41: 982 | S41: 49 | T41: 48 | U41: 35 | V41: 9 | W41: 51 | X41: Aptos CDP | Y41: 241 | Z41: 45 | AA41: Santa Cruz
A42: Santa Cruz | B42: Aptos Hills-Larkin Valley CDP | C42: 61 | D42: 18 | E42: 19 | G42: 0.56 | H42: $75,443 | I42: 2,381 | J42: 872 | K42: 922 | M42: 9.29 | N42: $75,183 | O42: 3% | P42: 110 | Q42: 256 | S42: 46 | T42: 38 | U42: 39 | V42: 27 | W42: 40 | X42: Aptos Hills-Larkin Valley CDP | Y42: 236 | Z42: 44 | AA42: Santa Cruz
A43: Santa Cruz | B43: Ben Lomond CDP | C43: 24 | D43: 10 | E43: 10 | G43: 0.10 | H43: $82,595 | I43: 6,188 | J43: 2,420 | K43: 2,598 | L43: 5 | M43: 8.32 | N43: $79,392 | O43: 0% | P43: 249 | Q43: 744 | S43: 50 | T43: 50 | U43: 31 | V43: 27 | W43: 54 | X43: Ben Lomond CDP | Y43: 262 | Z43: 51 | AA43: Santa Cruz
A44: Santa Cruz | B44: Bonny Doon CDP | C44: 748 | D44: 310 | E44: 360 | G44: 7.64 | H44: $87,099 | I44: 2,678 | J44: 1,088 | K44: 1,218 | L44: 1 | M44: 16.69 | N44: $86,867 | O44: 28% | P44: 98 | Q44: 160 | S44: 19 | T44: 23 | U44: 41 | V44: 27 | W44: 60 | X44: Bonny Doon CDP | Y44: 189 | Z44: 36 | AA44: Santa Cruz
A45: Santa Cruz | B45: Boulder Creek CDP | C45: 13 | D45: 5 | E45: 6 | G45: 0.03 | H45: $89,554 | I45: 4,923 | J45: 2,124 | K45: 2,455 | L45: 3 | M45: 7.51 | N45: $88,979 | O45: 0% | P45: 485 | Q45: 655 | S45: 52 | T45: 53 | U45: 25 | V45: 27 | W45: 62 | X45: Boulder Creek CDP | Y45: 271 | Z45: 56 | AA45: Santa Cruz
A46: Santa Cruz | B46: Brookdale CDP | C46: 413 | D46: 154 | E46: 187 | G46: 0.53 | H46: $84,134 | I46: 1,991 | J46: 806 | K46: 912 | M46: 3.85 | N46: $84,965 | O46: 21% | P46: 775 | Q46: 518 | S46: 24 | T46: 24 | U46: 17 | V46: 27 | W46: 57 | X46: Brookdale CDP | Y46: 173 | Z46: 29 | AA46: Santa Cruz
A47: Santa Cruz | B47: Capitola | C47: 244 | D47: 144 | E47: 250 | G47: 0.32 | H47: $63,236 | I47: 9,840 | J47: 4,587 | K47: 5,494 | L47: 10 | M47: 1.68 | N47: $56,985 | O47: 2% | P47: 760 | Q47: 5,873 | S47: 31 | T47: 39 | U47: 18 | V47: 27 | W47: 26 | X47: Capitola | Y47: 172 | Z47: 28 | AA47: Santa Cruz
A48: Santa Cruz | B48: Corralitos CDP | C48: 241 | D48: 92 | E48: 98 | G48: 3.39 | H48: $75,443 | I48: 2,293 | J48: 810 | K48: 868 | L48: 2 | M48: 8.87 | N48: $75,443 | O48: 11% | P48: 71 | Q48: 258 | S48: 32 | T48: 30 | U48: 43 | V48: 27 | W48: 40 | X48: Corralitos CDP | Y48: 204 | Z48: 39 | AA48: Santa Cruz
A49: Santa Cruz | B49: Davenport CDP | C49: 77 | D49: 11 | E49: 14 | G49: 1.78 | H49: $87,606 | I49: 408 | J49: 123 | K49: 139 | L49: 3 | M49: 2.84 | N49: $87,606 | O49: 19% | P49: 43 | Q49: 143 | S49: 42 | T49: 26 | U49: 47 | V49: 27 | W49: 61 | X49: Davenport CDP | Y49: 245 | Z49: 46 | AA49: Santa Cruz
A50: Santa Cruz | B50: Day Valley CDP | C50: 407 | D50: 146 | E50: 166 | G50: 12.21 | H50: $94,107 | I50: 3,442 | J50: 1,299 | K50: 1,386 | L50: 1 | M50: 18.93 | N50: $87,597 | O50: 12% | P50: 33 | Q50: 182 | S50: 25 | T50: 28 | U50: 50 | V50: 27 | W50: 64 | X50: Day Valley CDP | Y50: 219 | Z50: 41 | AA50: Santa Cruz
A51: Santa Cruz | B51: Felton CDP | C51: 96 | D51: 58 | E51: 65 | G51: 0.62 | H51: $79,347 | I51: 4,057 | J51: 1,700 | K51: 1,895 | L51: 2 | M51: 4.72 | N51: $78,048 | O51: 2% | P51: 154 | Q51: 859 | S51: 37 | T51: 40 | U51: 36 | V51: 27 | W51: 50 | X51: Felton CDP | Y51: 227 | Z51: 43 | AA51: Santa Cruz
A52: Santa Cruz | B52: Freedom CDP | C52: 0 | D52: 0 | E52: 0 | F52: 0 | G52: 0.00 | H52: $56,181 | I52: 3,070 | J52: 776 | K52: 805 | L52: 2 | M52: 1.08 | N52: $56,181 | O52: 0% | P52: 0 | Q52: 2,839 | S52: 58 | T52: 58 | U52: 58 | V52: 27 | W52: 13 | X52: Freedom CDP | Y52: 272 | Z52: 57 | AA52: Santa Cruz
A53: Santa Cruz | B53: Interlaken CDP | C53: 70 | D53: 19 | E53: 19 | G53: 1.06 | H53: $60,179 | I53: 7,331 | J53: 1,695 | K53: 1,764 | L53: 4 | M53: 10.22 | N53: $70,343 | O53: 1% | P53: 66 | Q53: 717 | S53: 44 | T53: 46 | U53: 44 | V53: 27 | W53: 21 | X53: Interlaken CDP | Y53: 226 | Z53: 42 | AA53: Santa Cruz
A54: Santa Cruz | B54: La Selva Beach CDP | C54: 329 | D54: 160 | E54: 315 | G54: 1.23 | H54: $79,143 | I54: 2,843 | J54: 1,076 | K54: 1,376 | L54: 3 | M54: 5.30 | N54: $79,143 | O54: 12% | P54: 269 | Q54: 537 | S54: 27 | T54: 29 | U54: 30 | V54: 27 | W54: 48 | X54: La Selva Beach CDP | Y54: 188 | Z54: 35 | AA54: Santa Cruz
A55: Santa Cruz | B55: Live Oak CDP | C55: 207 | D55: 111 | E55: 125 | F55: 1 | G55: 0.13 | H55: $68,900 | I55: 17,158 | J55: 6,441 | K55: 6,726 | L55: 20 | M55: 3.24 | N55: $63,164 | O55: 1% | P55: 1,552 | Q55: 5,293 | S55: 33 | T55: 45 | U55: 12 | V55: 17 | W55: 36 | X55: Live Oak CDP | Y55: 176 | Z55: 32 | AA55: Santa Cruz
A56: Santa Cruz | B56: Lompico CDP | C56: 38 | D56: 8 | E56: 8 | G56: 1.16 | H56: $85,131 | I56: 1,137 | J56: 480 | K56: 550 | M56: 3.37 | N56: $84,520 | O56: 3% | P56: 33 | Q56: 337 | S56: 47 | T56: 35 | U56: 51 | V56: 27 | W56: 59 | X56: Lompico CDP | Y56: 266 | Z56: 52 | AA56: Santa Cruz
A57: Santa Cruz | B57: Mount Herman CDP | C57: 4 | D57: 2 | E57: 2 | G57: 0.01 | H57: $73,472 | I57: 1,037 | J57: 408 | K57: 530 | M57: 0.89 | N57: $73,472 | O57: 0% | P57: 290 | Q57: 1,166 | S57: 54 | T57: 51 | U57: 29 | V57: 27 | W57: 39 | X57: Mount Herman CDP | Y57: 254 | Z57: 48 | AA57: Santa Cruz
A58: Santa Cruz | B58: Pajaro Dunes CDP | C58: 0 | D58: 0 | E58: 0 | G58: 0.00 | H58: $79,143 | I58: 144 | J58: 53 | K58: 567 | M58: 2.59 | N58: $79,143 | O58: 0% | P58: 0 | Q58: 56 | S58: 58 | T58: 58 | U58: 58 | V58: 27 | W58: 48 | X58: Pajaro Dunes CDP | Y58: 307 | Z58: 64 | AA58: Santa Cruz
A59: Santa Cruz | B59: Paradise Park CDP | C59: 64 | D59: 31 | E59: 46 | G59: 0.03 | H59: $91,766 | I59: 324 | J59: 168 | K59: 330 | M59: 0.22 | N59: $80,247 | O59: 20% | P59: 1,883 | Q59: 1,488 | S59: 45 | T59: 25 | U59: 10 | V59: 27 | W59: 63 | X59: Paradise Park CDP | Y59: 215 | Z59: 40 | AA59: Santa Cruz
A60: Santa Cruz | B60: Pasatiempo CDP | C60: 3 | D60: 2 | E60: 2 | G60: 0.02 | H60: $102,865 | I60: 1,041 | J60: 423 | K60: 449 | M60: 0.90 | N60: $102,865 | O60: 0% | P60: 140 | Q60: 1,156 | S60: 55 | T60: 52 | U60: 37 | V60: 27 | W60: 66 | X60: Pasatiempo CDP | Y60: 292 | Z60: 63 | AA60: Santa Cruz
A61: Santa Cruz | B61: Pleasure Point CDP | C61: 1,043 | D61: 485 | E61: 603 | G61: 1.48 | H61: $46,608 | I61: 5,924 | J61: 2,689 | K61: 3,131 | L61: 1 | M61: 2.01 | N61: $52,693 | O61: 18% | P61: 707 | Q61: 2,942 | S61: 17 | T61: 27 | U61: 20 | V61: 27 | W61: 3 | X61: Pleasure Point CDP | Y61: 111 | Z61: 13 | AA61: Santa Cruz
A62: Santa Cruz | B62: Rio del Mar CDP | C62: 2 | D62: 1 | E62: 1 | G62: 1.65 | H62: $83,106 | I62: 9,216 | J62: 3,916 | K62: 4,924 | L62: 2 | M62: 4.62 | N62: $88,511 | O62: 0% | P62: 1 | Q62: 1,996 | S62: 57 | T62: 56 | U62: 57 | V62: 27 | W62: 55 | X62: Rio del Mar CDP | Y62: 309 | Z62: 65 | AA62: Santa Cruz
A63: Santa Cruz | B63: Santa Cruz | C63: 1,009 | D63: 509 | E63: 573 | F63: 1 | G63: 4.36 | H63: $76,440 | I63: 59,938 | J63: 21,655 | K63: 23,314 | L63: 54 | M63: 15.89 | N63: $68,103 | O63: 2% | P63: 231 | Q63: 3,773 | S63: 18 | T63: 42 | U63: 32 | V63: 17 | W63: 43 | X63: Santa Cruz | Y63: 170 | Z63: 27 | AA63: Santa Cruz
A64: Santa Cruz | B64: Scotts Valley | C64: 515 | D64: 283 | E64: 310 | G64: 0.32 | H64: $110,297 | I64: 11,613 | J64: 4,435 | K64: 4,619 | L64: 9 | M64: 4.63 | N64: $111,423 | O64: 4% | P64: 1,630 | Q64: 2,506 | S64: 21 | T64: 34 | U64: 11 | V64: 27 | W64: 67 | X64: Scotts Valley | Y64: 181 | Z64: 33 | AA64: Santa Cruz
A65: Santa Cruz | B65: Seacliff CDP | C65: 95 | D65: 52 | E65: 75 | G65: 0.18 | H65: $59,105 | I65: 3,267 | J65: 1,536 | K65: 1,923 | L65: 1 | M65: 0.78 | N65: $58,279 | O65: 3% | P65: 532 | Q65: 4,196 | S65: 38 | T65: 36 | U65: 24 | V65: 27 | W65: 20 | X65: Seacliff CDP | Y65: 183 | Z65: 34 | AA65: Santa Cruz
A66: Santa Cruz | B66: Soquel CDP | C66: 496 | D66: 288 | E66: 311 | G66: 0.13 | H66: $76,639 | I66: 9,644 | J66: 3,912 | K66: 4,107 | L66: 5 | M66: 4.60 | N66: $76,472 | O66: 5% | P66: 3,882 | Q66: 2,098 | S66: 22 | T66: 33 | U66: 6 | V66: 27 | W66: 44 | X66: Soquel CDP | Y66: 154 | Z66: 23 | AA66: Santa Cruz
A67: Santa Cruz | B67: Twin Lakes CDP | C67: 450 | D67: 245 | E67: 371 | F67: 1 | G67: 0.60 | H67: $48,389 | I67: 4,917 | J67: 2,223 | K67: 2,741 | L67: 7 | M67: 1.21 | N67: $51,028 | O67: 9% | P67: 752 | Q67: 4,061 | S67: 23 | T67: 32 | U67: 19 | V67: 17 | W67: 4 | X67: Twin Lakes CDP | Y67: 118 | Z67: =_xlfn.RANK.EQ(Y67,Y$3:Y$69,1) -> 16 | AA67: Santa Cruz
A68: Santa Cruz | B68: Watsonville | C68: 3 | D68: 1 | E68: 1 | F68: 1 | G68: 0.57 | H68: $72,541 | I68: 51,189 | J68: 13,523 | K68: 14,084 | L68: 49 | M68: 6.76 | N68: $48,235 | O68: 0% | P68: 5 | Q68: 7,574 | S68: 55 | T68: 57 | U68: 56 | V68: 17 | W68: =_xlfn.RANK.EQ(H68,H$3:H$69,1) -> 38 | X68: Watsonville | Y68: 278 | Z68: 59 | AA68: Santa Cruz
A69: Santa Cruz | B69: Zayante CDP | C69: 0 | D69: 0 | E69: 0 | G69: 0.10 | H69: $84,120 | I69: 751 | J69: 324 | K69: 366 | M69: 2.76 | N69: $84,120 | O69: 0% | P69: 0 | Q69: 272 | S69: 58 | T69: 58 | U69: 58 | V69: 27 | W69: 56 | X69: Zayante CDP | Y69: 315 | Z69: 67 | AA69: Santa Cruz
A70: Monterey | B70: zUnattached | C70: 22,885 | D70: 8,254 | E70: 10,017 | F70: 30 | G70: 3,483.48 | H70: $63,494 | I70: 51,728 | J70: 19,482 | K70: 22,648 | L70: 49 | M70: 3,593.05 | N70: $66,302 | O70: =C70/I70 -> 44% | P70: =C70/G70 -> 7 | Q70: =I70/M70 -> 14 | X70: zUnattached | AA70: Monterey
A71: San Benito | B71: zUnattached | C71: 2,663 | D71: 963 | E71: 1,114 | F71: 5 | G71: 1,252.49 | H71: $76,726 | I71: 10,161 | J71: 3,226 | K71: 3,502 | L71: 12 | M71: 1,286.89 | N71: $75,382 | O71: =C71/I71 -> 26% | P71: =C71/G71 -> 2 | Q71: =I71/M71 -> 8 | X71: zUnattached | AA71: San Benito
A72: Santa Cruz | B72: zUnattached | C72: 8,822 | D72: 3,506 | E72: 4,038 | F72: 5 | G72: 379.31 | H72: $85,887 | I72: 23,939 | J72: 9,262 | K72: 10,557 | L72: 14 | M72: 443.96 | N72: $88,584 | O72: 37% | P72: 23 | Q72: 54 | X72: zUnattached | AA72: Santa Cruz
C73: =SUM(C3:C72) -> 135,292 | D73: =SUM(D3:D72) -> 41,292 | E73: =SUM(E3:E72) -> 47,799 | F73: =SUM(F3:F72) -> 154 | G73: =SUM(G3:G72) -> 5,581 | I73: =SUM(I3:I72) -> 734,314 | J73: =SUM(J3:J72) -> 237,850 | K73: =SUM(K3:K72) -> 262,473 | L73: =SUM(L3:L72) -> 636 | M73: =SUM(M3:M72) -> 5,997 | O73: =C73/I73 -> 18% | P73: 24 | Q73: 122

Sheet Data version 1.2
A1: OBJECTID | B1: STATEFP10 | C1: COUNTYFP10 | D1: TRACTCE10 | E1: BLOCKCE10 | F1: GEOID10 | G1: Census Block Group | H1: NAME10 | I1: MTFCC10 | J1: UR10 | K1: UACE10 | L1: UATYP10 | M1: FUNCSTAT10 | N1: ALAND10 | O1: AWATER10 | P1: INTPTLAT10 | Q1: INTPTLON10 | R1: SERVICE | S1: PLACE | T1: NUM_AI | U1: AREA-SQMI | V1: POP2010 | W1: HU2010 | X1: HU2010_O | Y1: HU2010_V | Z1: Exclude Flag | AA1: Median Income | AB1: TRACTCE10 - Numeric | AC1: Tract - numeric | AD1: Block - numeric
A2: 6863 | B2: 06 | C2: 053 | D2: 000101 | E2: 1000 | F2: 060530001011000 | G2: =LEFT(F2,12) -> 060530001011 | H2: Block 1000 | I2: G5040 | J2: R | M2: S | N2: 20951 | O2: 0 | P2: +36.7283687 | Q2: -121.6168816 | R2: Unserved | U2: 0.00808821066 | V2: 0 | W2: 0 | X2: 0 | Y2: 0 | AA2: $60,655 | AB2: 101 | AC2: 6053000101 | AD2: 60530001011000
A3: 2064 | B3: 06 | C3: 053 | D3: 000101 | E3: 1001 | F3: 060530001011001 | G3: 060530001011 | H3: Block 1001 | I3: G5040 | J3: U | K3: 78310 | L3: U | M3: S | N3: 45100 | O3: 0 | P3: +36.7304278 | Q3: -121.6320769 | R3: Served | U3: 0.01741111892 | V3: 103 | W3: 34 | X3: 34 | Y3: 0 | AA3: $60,655 | AB3: 101 | AC3: 6053000101 | AD3: 60530001011001
A4: 729 | B4: 06 | C4: 053 | D4: 000101 | E4: 1002 | F4: 060530001011002 | G4: 060530001011 | H4: Block 1002 | I4: G5040 | J4: U | K4: 78310 | L4: U | M4: S | N4: 37352 | O4: 0 | P4: +36.7311698 | Q4: -121.6333107 | R4: Served | U4: 0.01441987541 | V4: 101 | W4: 30 | X4: 29 | Y4: 1 | AA4: $60,655 | AB4: 101 | AC4: 6053000101 | AD4: 60530001011002
A5: 735 | B5: 06 | C5: 053 | D5: 000101 | E5: 1003 | F5: 060530001011003 | G5: 060530001011 | H5: Block 1003 | I5: G5040 | J5: U | K5: 78310 | L5: U | M5: S | N5: 110385 | O5: 0 | P5: +36.7321159 | Q5: -121.6360691 | R5: Served | T5: 1 | U5: 0.04261490422 | V5: 236 | W5: 60 | X5: 56 | Y5: 4 | AA5: $60,655 | AB5: 101 | AC5: 6053000101 | AD5: 60530001011003
A6: 3519 | B6: 06 | C6: 053 | D6: 000101 | E6: 1004 | F6: 060530001011004 | G6: 060530001011 | H6: Block 1004 | I6: G5040 | J6: U | K6: 78310 | L6: U | M6: S | N6: 19982 | O6: 0 | P6: +36.7338408 | Q6: -121.6372225 | R6: Served | U6: 0.00771430794 | V6: 0 | W6: 0 | X6: 0 | Y6: 0 | AA6: $60,655 | AB6: 101 | AC6: 6053000101 | AD6: 60530001011004
A7: 734 | B7: 06 | C7: 053 | D7: 000101 | E7: 1005 | F7: 060530001011005 | G7: 060530001011 | H7: Block 1005 | I7: G5040 | J7: U | K7: 78310 | L7: U | M7: S | N7: 23187 | O7: 0 | P7: +36.7323535 | Q7: -121.6385062 | R7: Served | U7: 0.00895160672 | V7: 75 | W7: 17 | X7: 17 | Y7: 0 | AA7: $60,655 | AB7: 101 | AC7: 6053000101 | AD7: 60530001011005
A8: 4431 | B8: 06 | C8: 053 | D8: 000101 | E8: 1006 | F8: 060530001011006 | G8: 060530001011 | H8: Block 1006 | I8: G5040 | J8: U | K8: 78310 | L8: U | M8: S | N8: 35770 | O8: 0 | P8: +36.7304212 | Q8: -121.6393135 | R8: Served | U8: 0.01380912575 | V8: 81 | W8: 20 | X8: 20 | Y8: 0 | AA8: $60,655 | AB8: 101 | AC8: 6053000101 | AD8: 60530001011006
A9: 3520 | B9: 06 | C9: 053 | D9: 000101 | E9: 1007 | F9: 060530001011007 | G9: 060530001011 | H9: Block 1007 | I9: G5040 | J9: U | K9: 78310 | L9: U | M9: S | N9: 22752 | O9: 0 | P9: +36.7304334 | Q9: -121.6379756 | R9: Served | U9: 0.00878360180 | V9: 85 | W9: 21 | X9: 20 | Y9: 1 | AA9: $60,655 | AB9: 101 | AC9: 6053000101 | AD9: 60530001011007
A10: 736 | B10: 06 | C10: 053 | D10: 000101 | E10: 1008 | F10: 060530001011008 | G10: 060530001011 | H10: Block 1008 | I10: G5040 | J10: U | K10: 78310 | L10: U | M10: S | N10: 19146 | O10: 0 | P10: +36.7296996 | Q10: -121.6357246 | R10: Served | U10: 0.00739146604 | V10: 54 | W10: 17 | X10: 16 | Y10: 1 | AA10: $60,655 | AB10: 101 | AC10: 6053000101 | AD10: 60530001011008
A11: 2505 | B11: 06 | C11: 053 | D11: 000101 | E11: 1009 | F11: 060530001011009 | G11: 060530001011 | H11: Block 1009 | I11: G5040 | J11: U | K11: 78310 | L11: U | M11: S | N11: 23953 | O11: 0 | P11: +36.7308730 | Q11: -121.6344838 | R11: Served | U11: 0.00924705483 | V11: 78 | W11: 21 | X11: 20 | Y11: 1 | AA11: $60,655 | AB11: 101 | AC11: 6053000101 | AD11: 60530001011009
A12: 4354 | B12: 06 | C12: 053 | D12: 000101 | E12: 1010 | F12: 060530001011010 | G12: 060530001011 | H12: Block 1010 | I12: G5040 | J12: R | M12: S | N12: 3381180 | O12: 4417 | P12: +36.7227132 | Q12: -121.6336497 | R12: Served | S12: Salinas | T12: 1 | U12: 1.307034811 | V12: 65 | W12: 19 | X12: 19 | Y12: 0 | AA12: $60,655 | AB12: 101 | AC12: 6053000101 | AD12: 60530001011010
A13: 1791 | B13: 06 | C13: 053 | D13: 000101 | E13: 1011 | F13: 060530001011011 | G13: 060530001011 | H13: Block 1011 | I13: G5040 | J13: U | K13: 78310 | L13: U | M13: S | N13: 36826 | O13: 0 | P13: +36.7289219 | Q13: -121.6341028 | R13: Served | U13: 0.01421701519 | V13: 109 | W13: 32 | X13: 32 | Y13: 0 | AA13: $60,655 | AB13: 101 | AC13: 6053000101 | AD13: 60530001011011
A14: 9810 | B14: 06 | C14: 053 | D14: 000101 | E14: 2000 | F14: 060530001012000 | G14: 060530001012 | H14: Block 2000 | I14: G5040 | J14: U | K14: 78310 | L14: U | M14: S | N14: 140072 | O14: 0 | P14: +36.7566707 | Q14: -121.6166845 | R14: Served | U14: 0.05407587728 | V14: 214 | W14: 67 | X14: 61 | Y14: 6 | AA14: $60,655 | AB14: 101 | AC14: 6053000101 | AD14: 60530001012000
A15: 571 | B15: 06 | C15: 053 | D15: 000101 | E15: 2001 | F15: 060530001012001 | G15: 060530001012 | H15: Block 2001 | I15: G5040 | J15: U | K15: 78310 | L15: U | M15: S | N15: 134752 | O15: 0 | P15: +36.7521600 | Q15: -121.6205569 | R15: Served | U15: 0.05202194350 | V15: 276 | W15: 69 | X15: 62 | Y15: 7 | AA15: $60,655 | AB15: 101 | AC15: 6053000101 | AD15: 60530001012001
A16: 2502 | B16: 06 | C16: 053 | D16: 000101 | E16: 2002 | F16: 060530001012002 | G16: 060530001012 | H16: Block 2002 | I16: G5040 | J16: R | M16: S | N16: 5811452 | O16: 17901 | P16: +36.7396574 | Q16: -121.6220696 | R16: Unserved | T16: 1 | U16: 2.250468131 | V16: 219 | W16: 66 | X16: 60 | Y16: 6 | AA16: $60,655 | AB16: 101 | AC16: 6053000101 | AD16: 60530001012002
A17: 10069 | B17: 06 | C17: 053 | D17: 000101 | E17: 2003 | F17: 060530001012003 | G17: 060530001012 | H17: Block 2003 | I17: G5040 | J17: R | M17: S | N17: 4377 | O17: 0 | P17: +36.7341427 | Q17: -121.6339571 | R17: Unserved | U17: 0.00168982844 | V17: 0 | W17: 0 | X17: 0 | Y17: 0 | AA17: $60,655 | AB17: 101 | AC17: 6053000101 | AD17: 60530001012003
A18: 566 | B18: 06 | C18: 053 | D18: 000101 | E18: 2004 | F18: 060530001012004 | G18: 060530001012 | H18: Block 2004 | I18: G5040 | J18: R | M18: S | N18: 3462 | O18: 0 | P18: +36.7344062 | Q18: -121.6341327 | R18: Unserved | U18: 0.00133635474 | V18: 0 | W18: 0 | X18: 0 | Y18: 0 | AA18: $60,655 | AB18: 101 | AC18: 6053000101 | AD18: 60530001012004
A19: 10070 | B19: 06 | C19: 053 | D19: 000101 | E19: 2005 | F19: 060530001012005 | G19: 060530001012 | H19: Block 2005 | I19: G5040 | J19: R | M19: S | N19: 1640 | O19: 0 | P19: +36.7339752 | Q19: -121.6347482 | R19: Unserved | U19: 0.00063299329 | V19: 0 | W19: 0 | X19: 0 | Y19: 0 | AA19: $60,655 | AB19: 101 | AC19: 6053000101 | AD19: 60530001012005
A20: 4430 | B20: 06 | C20: 053 | D20: 000101 | E20: 2006 | F20: 060530001012006 | G20: 060530001012 | H20: Block 2006 | I20: G5040 | J20: U | K20: 78310 | L20: U | M20: S | N20: 14318 | O20: 0 | P20: +36.7348204 | Q20: -121.6348475 | R20: Served | U20: 0.00552751328 | V20: 135 | W20: 49 | X20: 47 | Y20: 2 | AA20: $60,655 | AB20: 101 | AC20: 6053000101 | AD20: 60530001012006
A21: 6858 | B21: 06 | C21: 053 | D21: 000101 | E21: 2007 | F21: 060530001012007 | G21: 060530001012 | H21: Block 2007 | I21: G5040 | J21: U | K21: 78310 | L21: U | M21: S | N21: 3093 | O21: 0 | P21: +36.7352207 | Q21: -121.6355577 | R21: Served | U21: 0.00119425081 | V21: 7 | W21: 3 | X21: 3 | Y21: 0 | AA21: $60,655 | AB21: 101 | AC21: 6053000101 | AD21: 60530001012007
A22: 9096 | B22: 06 | C22: 053 | D22: 000101 | E22: 2008 | F22: 060530001012008 | G22: 060530001012 | H22: Block 2008 | I22: G5040 | J22: U | K22: 78310 | L22: U | M22: S | N22: 13412 | O22: 0 | P22: +36.7358553 | Q22: -121.6359271 | R22: Served | U22: 0.00517761068 | V22: 66 | W22: 28 | X22: 18 | Y22: 10 | AA22: $60,655 | AB22: 101 | AC22: 6053000101 | AD22: 60530001012008
A23: 6859 | B23: 06 | C23: 053 | D23: 000101 | E23: 2009 | F23: 060530001012009 | G23: 060530001012 | H23: Block 2009 | I23: G5040 | J23: U | K23: 78310 | L23: U | M23: S | N23: 5363 | O23: 0 | P23: +36.7350135 | Q23: -121.6359995 | R23: Served | U23: 0.00207026165 | V23: 32 | W23: 13 | X23: 11 | Y23: 2 | AA23: $60,655 | AB23: 101 | AC23: 6053000101 | AD23: 60530001012009
A24: 4874 | B24: 06 | C24: 053 | D24: 000101 | E24: 2010 | F24: 060530001012010 | G24: 060530001012 | H24: Block 2010 | I24: G5040 | J24: R | M24: S | N24: 356663 | O24: 0 | P24: +36.7339616 | Q24: -121.6028567 | R24: Served | U24: 0.13769258886 | V24: 91 | W24: 22 | X24: 21 | Y24: 1 | AA24: $60,655 | AB24: 101 | AC24: 6053000101 | AD24: 60530001012010
A25: 282 | B25: 06 | C25: 053 | D25: 000101 | E25: 2011 | F25: 060530001012011 | G25: 060530001012 | H25: Block 2011 | I25: G5040 | J25: R | M25: S | N25: 134579 | O25: 0 | P25: +36.7358288 | Q25: -121.6002056 | R25: Served | U25: 0.05195536875 | V25: 52 | W25: 14 | X25: 13 | Y25: 1 | AA25: $60,655 | AB25: 101 | AC25: 6053000101 | AD25: 60530001012011
A26: 737 | B26: 06 | C26: 053 | D26: 000102 | E26: 1000 | F26: 060530001021000 | G26: 060530001021 | H26: Block 1000 | I26: G5040 | J26: U | K26: 78310 | L26: U | M26: S | N26: 34982 | O26: 0 | P26: +36.7105492 | Q26: -121.6286260 | R26: Served | S26: Salinas | U26: 0.01350506106 | V26: 206 | W26: 50 | X26: 47 | Y26: 3 | AA26: $77,688 | AB26: 102 | AC26: 6053000102 | AD26: 60530001021000
A27: 2066 | B27: 06 | C27: 053 | D27: 000102 | E27: 1001 | F27: 060530001021001 | G27: 060530001021 | H27: Block 1001 | I27: G5040 | J27: U | K27: 78310 | L27: U | M27: S | N27: 13556 | O27: 0 | P27: +36.7102489 | Q27: -121.6305880 | R27: Served | S27: Salinas | U27: 0.00523348043 | V27: 77 | W27: 17 | X27: 17 | Y27: 0 | AA27: $77,688 | AB27: 102 | AC27: 6053000102 | AD27: 60530001021001
A28: 733 | B28: 06 | C28: 053 | D28: 000102 | E28: 1002 | F28: 060530001021002 | G28: 060530001021 | H28: Block 1002 | I28: G5040 | J28: U | K28: 78310 | L28: U | M28: S | N28: 17056 | O28: 0 | P28: +36.7110365 | Q28: -121.6316785 | R28: Served | S28: Salinas | U28: 0.00658442338 | V28: 87 | W28: 21 | X28: 19 | Y28: 2 | AA28: $77,688 | AB28: 102 | AC28: 6053000102 | AD28: 60530001021002
A29: 3881 | B29: 06 | C29: 053 | D29: 000102 | E29: 1003 | F29: 060530001021003 | G29: 060530001021 | H29: Block 1003 | I29: G5040 | J29: U | K29: 78310 | L29: U | M29: S | N29: 24806 | O29: 0 | P29: +36.7093782 | Q29: -121.6311624 | R29: Served | S29: Salinas | U29: 0.00957656259 | V29: 117 | W29: 31 | X29: 30 | Y29: 1 | AA29: $77,688 | AB29: 102 | AC29: 6053000102 | AD29: 60530001021003
A30: 4949 | B30: 06 | C30: 053 | D30: 000102 | E30: 1004 | F30: 060530001021004 | G30: 060530001021 | H30: Block 1004 | I30: G5040 | J30: U | K30: 78310 | L30: U | M30: S | N30: 51257 | O30: 0 | P30: +36.7088319 | Q30: -121.6285093 | R30: Served | S30: Salinas | U30: 0.01978817396 | V30: 275 | W30: 67 | X30: 66 | Y30: 1 | AA30: $77,688 | AB30: 102 | AC30: 6053000102 | AD30: 60530001021004
A31: 8263 | B31: 06 | C31: 053 | D31: 000102 | E31: 1005 | F31: 060530001021005 | G31: 060530001021 | H31: Block 1005 | I31: G5040 | J31: U | K31: 78310 | L31: U | M31: S | N31: 7528 | O31: 0 | P31: +36.7097973 | Q31: -121.6266020 | R31: Served | S31: Salinas | U31: 0.00290638761 | V31: 37 | W31: 10 | X31: 10 | Y31: 0 | AA31: $77,688 | AB31: 102 | AC31: 6053000102 | AD31: 60530001021005
A32: 550 | B32: 06 | C32: 053 | D32: 000102 | E32: 1006 | F32: 060530001021006 | G32: 060530001021 | H32: Block 1006 | I32: G5040 | J32: U | K32: 78310 | L32: U | M32: S | N32: 80763 | O32: 0 | P32: +36.7065413 | Q32: -121.6299157 | R32: Served | S32: Salinas | U32: 0.03117909865 | V32: 768 | W32: 180 | X32: 178 | Y32: 2 | AA32: $77,688 | AB32: 102 | AC32: 6053000102 | AD32: 60530001021006
A33: 468 | B33: 06 | C33: 053 | D33: 000102 | E33: 1007 | F33: 060530001021007 | G33: 060530001021 | H33: Block 1007 | I33: G5040 | J33: U | K33: 78310 | L33: U | M33: S | N33: 17931 | O33: 0 | P33: +36.7082507 | Q33: -121.6318095 | R33: Served | S33: Salinas | U33: 0.00692230073 | V33: 129 | W33: 25 | X33: 25 | Y33: 0 | AA33: $77,688 | AB33: 102 | AC33: 6053000102 | AD33: 60530001021007
A34: 9449 | B34: 06 | C34: 053 | D34: 000102 | E34: 1008 | F34: 060530001021008 | G34: 060530001021 | H34: Block 1008 | I34: G5040 | J34: U | K34: 78310 | L34: U | M34: S | N34: 11160 | O34: 0 | P34: +36.7090067 | Q34: -121.6319591 | R34: Served | S34: Salinas | U34: 0.00430837277 | V34: 41 | W34: 14 | X34: 12 | Y34: 2 | AA34: $77,688 | AB34: 102 | AC34: 6053000102 | AD34: 60530001021008
A35: 8273 | B35: 06 | C35: 053 | D35: 000102 | E35: 1009 | F35: 060530001021009 | G35: 060530001021 | H35: Block 1009 | I35: G5040 | J35: U | K35: 78310 | L35: U | M35: S | N35: 16770 | O35: 0 | P35: +36.7085886 | Q35: -121.6334703 | R35: Served | S35: Salinas | U35: 0.00647413403 | V35: 113 | W35: 29 | X35: 26 | Y35: 3 | AA35: $77,688 | AB35: 102 | AC35: 6053000102 | AD35: 60530001021009
A36: 2886 | B36: 06 | C36: 053 | D36: 000102 | E36: 1010 | F36: 060530001021010 | G36: 060530001021 | H36: Block 1010 | I36: G5040 | J36: U | K36: 78310 | L36: U | M36: S | N36: 15810 | O36: 0 | P36: +36.7087532 | Q36: -121.6343066 | R36: Served | S36: Salinas | U36: 0.00610368753 | V36: 117 | W36: 29 | X36: 27 | Y36: 2 | AA36: $77,688 | AB36: 102 | AC36: 6053000102 | AD36: 60530001021010
A37: 807 | B37: 06 | C37: 053 | D37: 000102 | E37: 1011 | F37: 060530001021011 | G37: 060530001021 | H37: Block 1011 | I37: G5040 | J37: U | K37: 78310 | L37: U | M37: S | N37: 15358 | O37: 0 | P37: +36.7089239 | Q37: -121.6351405 | R37: Served | S37: Salinas | U37: 0.00592922078 | V37: 83 | W37: 22 | X37: 20 | Y37: 2 | AA37: $77,688 | AB37: 102 | AC37: 6053000102 | AD37: 60530001021011
A38: 2871 | B38: 06 | C38: 053 | D38: 000102 | E38: 1012 | F38: 060530001021012 | G38: 060530001021 | H38: Block 1012 | I38: G5040 | J38: U | K38: 78310 | L38: U | M38: S | N38: 8207 | O38: 0 | P38: +36.7078818 | Q38: -121.6281662 | R38: Served | S38: Salinas | U38: 0.00316849388 | V38: 57 | W38: 12 | X38: 12 | Y38: 0 | AA38: $77,688 | AB38: 102 | AC38: 6053000102 | AD38: 60530001021012
A39: 283 | B39: 06 | C39: 053 | D39: 000102 | E39: 1013 | F39: 060530001021013 | G39: 060530001021 | H39: Block 1013 | I39: G5040 | J39: U | K39: 78310 | L39: U | M39: S | N39: 26958 | O39: 0 | P39: +36.7074205 | Q39: -121.6314121 | R39: Served | S39: Salinas | U39: 0.01040727318 | V39: 212 | W39: 49 | X39: 42 | Y39: 7 | AA39: $77,688 | AB39: 102 | AC39: 6053000102 | AD39: 60530001021013
A40: 2492 | B40: 06 | C40: 053 | D40: 000102 | E40: 2000 | F40: 060530001022000 | G40: 060530001022 | H40: Block 2000 | I40: G5040 | J40: U | K40: 78310 | L40: U | M40: S | N40: 139691 | O40: 0 | P40: +36.7149103 | Q40: -121.6282726 | R40: Served | S40: Salinas | U40: 0.05392856959 | V40: 374 | W40: 98 | X40: 95 | Y40: 3 | AA40: $77,688 | AB40: 102 | AC40: 6053000102 | AD40: 60530001022000
A41: 887 | B41: 06 | C41: 053 | D41: 000102 | E41: 2001 | F41: 060530001022001 | G41: 060530001022 | H41: Block 2001 | I41: G5040 | J41: U | K41: 78310 | L41: U | M41: S | N41: 22899 | O41: 0 | P41: +36.7148360 | Q41: -121.6318976 | R41: Served | S41: Salinas | U41: 0.00884042991 | V41: 118 | W41: 26 | X41: 26 | Y41: 0 | AA41: $77,688 | AB41: 102 | AC41: 6053000102 | AD41: 60530001022001
A42: 3706 | B42: 06 | C42: 053 | D42: 000102 | E42: 2002 | F42: 060530001022002 | G42: 060530001022 | H42: Block 2002 | I42: G5040 | J42: U | K42: 78310 | L42: U | M42: S | N42: 25583 | O42: 0 | P42: +36.7148835 | Q42: -121.6293000 | R42: Served | S42: Salinas | U42: 0.00987633232 | V42: 110 | W42: 29 | X42: 27 | Y42: 2 | AA42: $77,688 | AB42: 102 | AC42: 6053000102 | AD42: 60530001022002
A43: 7006 | B43: 06 | C43: 053 | D43: 000102 | E43: 2003 | F43: 060530001022003 | G43: 060530001022 | H43: Block 2003 | I43: G5040 | J43: U | K43: 78310 | L43: U | M43: S | N43: 12277 | O43: 0 | P43: +36.7147130 | Q43: -121.6271879 | R43: Served | S43: Salinas | T43: 1 | U43: 0.00473974821 | V43: 74 | W43: 15 | X43: 14 | Y43: 1 | AA43: $77,688 | AB43: 102 | AC43: 6053000102 | AD43: 60530001022003
A44: 1555 | B44: 06 | C44: 053 | D44: 000102 | E44: 2004 | F44: 060530001022004 | G44: 060530001022 | H44: Block 2004 | I44: G5040 | J44: U | K44: 78310 | L44: U | M44: S | N44: 20059 | O44: 0 | P44: +36.7137060 | Q44: -121.6306478 | R44: Served | S44: Salinas | U44: 0.00774410588 | V44: 95 | W44: 28 | X44: 25 | Y44: 3 | AA44: $77,688 | AB44: 102 | AC44: 6053000102 | AD44: 60530001022004
A45: 8164 | B45: 06 | C45: 053 | D45: 000102 | E45: 2005 | F45: 060530001022005 | G45: 060530001022 | H45: Block 2005 | I45: G5040 | J45: U | K45: 78310 | L45: U | M45: S | N45: 128938 | O45: 0 | P45: +36.7120912 | Q45: -121.6283435 | R45: Served | S45: Salinas | U45: 0.04977757476 | V45: 405 | W45: 102 | X45: 94 | Y45: 8 | AA45: $77,688 | AB45: 102 | AC45: 6053000102 | AD45: 60530001022005
A46: 886 | B46: 06 | C46: 053 | D46: 000102 | E46: 2006 | F46: 060530001022006 | G46: 060530001022 | H46: Block 2006 | I46: G5040 | J46: U | K46: 78310 | L46: U | M46: S | N46: 19023 | O46: 0 | P46: +36.7129898 | Q46: -121.6301279 | R46: Served | S46: Salinas | U46: 0.00734392715 | V46: 87 | W46: 23 | X46: 21 | Y46: 2 | AA46: $77,688 | AB46: 102 | AC46: 6053000102 | AD46: 60530001022006
A47: 3392 | B47: 06 | C47: 053 | D47: 000102 | E47: 2007 | F47: 060530001022007 | G47: 060530001022 | H47: Block 2007 | I47: G5040 | J47: U | K47: 78310 | L47: U | M47: S | N47: 23842 | O47: 0 | P47: +36.7124712 | Q47: -121.6251650 | R47: Served | S47: Salinas | U47: 0.00920449629 | V47: 96 | W47: 21 | X47: 20 | Y47: 1 | AA47: $77,688 | AB47: 102 | AC47: 6053000102 | AD47: 60530001022007
A48: 8191 | B48: 06 | C48: 053 | D48: 000102 | E48: 2008 | F48: 060530001022008 | G48: 060530001022 | H48: Block 2008 | I48: G5040 | J48: U | K48: 78310 | L48: U | M48: S | N48: 12210 | O48: 0 | P48: +36.7125626 | Q48: -121.6256245 | R48: Served | S48: Salinas | U48: 0.00471391332 | V48: 66 | W48: 16 | X48: 15 | Y48: 1 | AA48: $77,688 | AB48: 102 | AC48: 6053000102 | AD48: 60530001022008
A49: 8264 | B49: 06 | C49: 053 | D49: 000102 | E49: 2009 | F49: 060530001022009 | G49: 060530001022 | H49: Block 2009 | I49: G5040 | J49: U | K49: 78310 | L49: U | M49: S | N49: 25013 | O49: 0 | P49: +36.7105768 | Q49: -121.6258897 | R49: Served | S49: Salinas | U49: 0.00965634550 | V49: 124 | W49: 28 | X49: 23 | Y49: 5 | AA49: $77,688 | AB49: 102 | AC49: 6053000102 | AD49: 60530001022009
A50: 834 | B50: 06 | C50: 053 | D50: 000102 | E50: 2010 | F50: 060530001022010 | G50: 060530001022 | H50: Block 2010 | I50: G5040 | J50: U | K50: 78310 | L50: U | M50: S | N50: 17912 | O50: 0 | P50: +36.7082288 | Q50: -121.6267104 | R50: Served | S50: Salinas | U50: 0.00691488867 | V50: 71 | W50: 18 | X50: 17 | Y50: 1 | AA50: $77,688 | AB50: 102 | AC50: 6053000102 | AD50: 60530001022010
A51: 8606 | B51: 06 | C51: 053 | D51: 000102 | E51: 2011 | F51: 060530001022011 | G51: 060530001022 | H51: Block 2011 | I51: G5040 | J51: U | K51: 78310 | L51: U | M51: S | N51: 36021 | O51: 0 | P51: +36.7121460 | Q51: -121.6324248 | R51: Served | S51: Salinas | U51: 0.01390627959 | V51: 189 | W51: 49 | X51: 45 | Y51: 4 | AA51: $77,688 | AB51: 102 | AC51: 6053000102 | AD51: 60530001022011
A52: 7003 | B52: 06 | C52: 053 | D52: 000102 | E52: 2012 | F52: 060530001022012 | G52: 060530001022 | H52: Block 2012 | I52: G5040 | J52: U | K52: 78310 | L52: U | M52: S | N52: 15949 | O52: 0 | P52: +36.7126169 | Q52: -121.6343588 | R52: Served | S52: Salinas | U52: 0.00615717474 | V52: 64 | W52: 16 | X52: 15 | Y52: 1 | AA52: $77,688 | AB52: 102 | AC52: 6053000102 | AD52: 60530001022012
A53: 2975 | B53: 06 | C53: 053 | D53: 000102 | E53: 2013 | F53: 060530001022013 | G53: 060530001022 | H53: Block 2013 | I53: G5040 | J53: U | K53: 78310 | L53: U | M53: S | N53: 19237 | O53: 0 | P53: +36.7123095 | Q53: -121.6333604 | R53: Served | S53: Salinas | U53: 0.00742661702 | V53: 72 | W53: 19 | X53: 18 | Y53: 1 | AA53: $77,688 | AB53: 102 | AC53: 6053000102 | AD53: 60530001022013
A54: 2976 | B54: 06 | C54: 053 | D54: 000102 | E54: 2014 | F54: 060530001022014 | G54: 060530001022 | H54: Block 2014 | I54: G5040 | J54: U | K54: 78310 | L54: U | M54: S | N54: 28860 | O54: 0 | P54: +36.7110772 | Q54: -121.6341334 | R54: Served | S54: Salinas | U54: 0.01114174784 | V54: 172 | W54: 45 | X54: 42 | Y54: 3 | AA54: $77,688 | AB54: 102 | AC54: 6053000102 | AD54: 60530001022014
A55: 5835 | B55: 06 | C55: 053 | D55: 000102 | E55: 2015 | F55: 060530001022015 | G55: 060530001022 | H55: Block 2015 | I55: G5040 | J55: U | K55: 78310 | L55: U | M55: S | N55: 25749 | O55: 0 | P55: +36.7102254 | Q55: -121.6342749 | R55: Served | S55: Salinas | T55: 1 | U55: 0.00994045031 | V55: 125 | W55: 34 | X55: 31 | Y55: 3 | AA55: $77,688 | AB55: 102 | AC55: 6053000102 | AD55: 60530001022015
A56: 1627 | B56: 06 | C56: 053 | D56: 000102 | E56: 2016 | F56: 060530001022016 | G56: 060530001022 | H56: Block 2016 | I56: G5040 | J56: U | K56: 78310 | L56: U | M56: S | N56: 20390 | O56: 0 | P56: +36.7093391 | Q56: -121.6359522 | R56: Served | S56: Salinas | U56: 0.00787176799 | V56: 83 | W56: 24 | X56: 23 | Y56: 1 | AA56: $77,688 | AB56: 102 | AC56: 6053000102 | AD56: 60530001022016
A57: 2887 | B57: 06 | C57: 053 | D57: 000102 | E57: 2017 | F57: 060530001022017 | G57: 060530001022 | H57: Block 2017 | I57: G5040 | J57: U | K57: 78310 | L57: U | M57: S | N57: 77975 | O57: 0 | P57: +36.7067611 | Q57: -121.6341569 | R57: Served | S57: Salinas | U57: 0.03010279236 | V57: 396 | W57: 101 | X57: 97 | Y57: 4 | AA57: $77,688 | AB57: 102 | AC57: 6053000102 | AD57: 60530001022017
A58: 8272 | B58: 06 | C58: 053 | D58: 000102 | E58: 2018 | F58: 060530001022018 | G58: 060530001022 | H58: Block 2018 | I58: G5040 | J58: U | K58: 78310 | L58: U | M58: S | N58: 36666 | O58: 0 | P58: +36.7054030 | Q58: -121.6370720 | R58: Served | S58: Salinas | U58: 0.01415532697 | V58: 179 | W58: 42 | X58: 40 | Y58: 2 | AA58: $77,688 | AB58: 102 | AC58: 6053000102 | AD58: 60530001022018
A59: 3994 | B59: 06 | C59: 053 | D59: 000102 | E59: 2019 | F59: 060530001022019 | G59: 060530001022 | H59: Block 2019 | I59: G5040 | J59: U | K59: 78310 | L59: U | M59: S | N59: 14899 | O59: 0 | P59: +36.7065060 | Q59: -121.6359119 | R59: Served | S59: Salinas | U59: 0.00575179756 | V59: 72 | W59: 18 | X59: 16 | Y59: 2 | AA59: $77,688 | AB59: 102 | AC59: 6053000102 | AD59: 60530001022019
A60: 2880 | B60: 06 | C60: 053 | D60: 000102 | E60: 2020 | F60: 060530001022020 | G60: 060530001022 | H60: Block 2020 | I60: G5040 | J60: U | K60: 78310 | L60: U | M60: S | N60: 37903 | O60: 0 | P60: +36.7062344 | Q60: -121.6401402 | R60: Served | S60: Salinas | U60: 0.01463274765 | V60: 198 | W60: 45 | X60: 45 | Y60: 0 | AA60: $77,688 | AB60: 102 | AC60: 6053000102 | AD60: 60530001022020
A61: 2964 | B61: 06 | C61: 053 | D61: 000102 | E61: 2021 | F61: 060530001022021 | G61: 060530001022 | H61: Block 2021 | I61: G5040 | J61: U | K61: 78310 | L61: U | M61: S | N61: 15311 | O61: 0 | P61: +36.7071417 | Q61: -121.6385537 | R61: Served | S61: Salinas | U61: 0.00591088454 | V61: 72 | W61: 18 | X61: 18 | Y61: 0 | AA61: $77,688 | AB61: 102 | AC61: 6053000102 | AD61: 60530001022021
A62: 2969 | B62: 06 | C62: 053 | D62: 000102 | E62: 2022 | F62: 060530001022022 | G62: 060530001022 | H62: Block 2022 | I62: G5040 | J62: U | K62: 78310 | L62: U | M62: S | N62: 20078 | O62: 0 | P62: +36.7053869 | Q62: -121.6334295 | R62: Served | S62: Salinas | U62: 0.00775126376 | V62: 100 | W62: 24 | X62: 22 | Y62: 2 | AA62: $77,688 | AB62: 102 | AC62: 6053000102 | AD62: 60530001022022
A63: 3995 | B63: 06 | C63: 053 | D63: 000102 | E63: 2023 | F63: 060530001022023 | G63: 060530001022 | H63: Block 2023 | I63: G5040 | J63: U | K63: 78310 | L63: U | M63: S | N63: 18897 | O63: 0 | P63: +36.7047130 | Q63: -121.6338203 | R63: Served | S63: Salinas | U63: 0.00729513805 | V63: 70 | W63: 20 | X63: 16 | Y63: 4 | AA63: $77,688 | AB63: 102 | AC63: 6053000102 | AD63: 60530001022023
A64: 8274 | B64: 06 | C64: 053 | D64: 000102 | E64: 2024 | F64: 060530001022024 | G64: 060530001022 | H64: Block 2024 | I64: G5040 | J64: U | K64: 78310 | L64: U | M64: S | N64: 41326 | O64: 0 | P64: +36.7044640 | Q64: -121.6313310 | R64: Served | S64: Salinas | T64: 1 | U64: 0.01595410619 | V64: 516 | W64: 119 | X64: 118 | Y64: 1 | AA64: $77,688 | AB64: 102 | AC64: 6053000102 | AD64: 60530001022024
A65: 6604 | B65: 06 | C65: 053 | D65: 000102 | E65: 3000 | F65: 060530001023000 | G65: 060530001023 | H65: Block 3000 | I65: G5040 | J65: U | K65: 78310 | L65: U | M65: S | N65: 96036 | O65: 0 | P65: +36.7153351 | Q65: -121.6347491 | R65: Served | S65: Salinas | U65: 0.03707534943 | V65: 390 | W65: 107 | X65: 102 | Y65: 5 | AA65: $77,688 | AB65: 102 | AC65: 6053000102 | AD65: 60530001023000
A66: 6376 | B66: 06 | C66: 053 | D66: 000102 | E66: 3001 | F66: 060530001023001 | G66: =LEFT(F66,12) -> 060530001023 | H66: Block 3001 | I66: G5040 | J66: U | K66: 78310 | L66: U | M66: S | N66: 15914 | O66: 0 | P66: +36.7151850 | Q66: -121.6415027 | R66: Served | S66: Salinas | U66: 0.00614354453 | V66: 77 | W66: 22 | X66: 21 | Y66: 1 | AA66: $77,688 | AB66: 102 | AC66: 6053000102 | AD66: 60530001023001
A67: 911 | B67: 06 | C67: 053 | D67: 000102 | E67: 3002 | F67: 060530001023002 | G67: 060530001023 | H67: Block 3002 | I67: G5040 | J67: U | K67: 78310 | L67: U | M67: S | N67: 15409 | O67: 0 | P67: +36.7159496 | Q67: -121.6422572 | R67: Served | S67: Salinas | U67: 0.00594871878 | V67: 80 | W67: 22 | X67: 20 | Y67: 2 | AA67: $77,688 | AB67: 102 | AC67: 6053000102 | AD67: 60530001023002
A68: 1746 | B68: 06 | C68: 053 | D68: 000102 | E68: 3003 | F68: 060530001023003 | G68: 060530001023 | H68: Block 3003 | I68: G5040 | J68: U | K68: 78310 | L68: U | M68: S | N68: 29855 | O68: 0 | P68: +36.7152058 | Q68: -121.6390829 | R68: Served | S68: Salinas | U68: 0.01152586590 | V68: 141 | W68: 39 | X68: 37 | Y68: 2 | AA68: $77,688 | AB68: 102 | AC68: 6053000102 | AD68: 60530001023003
A69: 984 | B69: 06 | C69: 053 | D69: 000102 | E69: 3004 | F69: 060530001023004 | G69: 060530001023 | H69: Block 3004 | I69: G5040 | J69: U | K69: 78310 | L69: U | M69: S | N69: 18410 | O69: 0 | P69: +36.7148502 | Q69: -121.6360736 | R69: Served | S69: Salinas | U69: 0.00710722254 | V69: 92 | W69: 23 | X69: 23 | Y69: 0 | AA69: $77,688 | AB69: 102 | AC69: 6053000102 | AD69: 60530001023004
A70: 3717 | B70: 06 | C70: 053 | D70: 000102 | E70: 3005 | F70: 060530001023005 | G70: 060530001023 | H70: Block 3005 | I70: G5040 | J70: U | K70: 78310 | L70: U | M70: S | N70: 62752 | O70: 0 | P70: +36.7134251 | Q70: -121.6429283 | R70: Served | S70: Salinas | U70: 0.02422593319 | V70: 156 | W70: 43 | X70: 41 | Y70: 2 | AA70: $77,688 | AB70: 102 | AC70: 6053000102 | AD70: 60530001023005
A71: 3724 | B71: 06 | C71: 053 | D71: 000102 | E71: 3006 | F71: 060530001023006 | G71: 060530001023 | H71: Block 3006 | I71: G5040 | J71: U | K71: 78310 | L71: U | M71: S | N71: 39151 | O71: 0 | P71: +36.7137444 | Q71: -121.6411424 | R71: Served | S71: Salinas | U71: 0.01511437755 | V71: 188 | W71: 47 | X71: 47 | Y71: 0 | AA71: $77,688 | AB71: 102 | AC71: 6053000102 | AD71: 60530001023006
A72: 912 | B72: 06 | C72: 053 | D72: 000102 | E72: 3007 | F72: 060530001023007 | G72: 060530001023 | H72: Block 3007 | I72: G5040 | J72: U | K72: 78310 | L72: U | M72: S | N72: 13681 | O72: 0 | P72: +36.7142389 | Q72: -121.6389637 | R72: Served | S72: Salinas | U72: 0.00528175138 | V72: 52 | W72: 16 | X72: 15 | Y72: 1 | AA72: $77,688 | AB72: 102 | AC72: 6053000102 | AD72: 60530001023007
A73: 2689 | B73: 06 | C73: 053 | D73: 000102 | E73: 3008 | F73: 060530001023008 | G73: 060530001023 | H73: Block 3008 | I73: G5040 | J73: U | K73: 78310 | L73: U | M73: S | N73: 40591 | O73: 0 | P73: +36.7135797 | Q73: -121.6379961 | R73: Served | S73: Salinas | U73: 0.01567050475 | V73: 176 | W73: 49 | X73: 49 | Y73: 0 | AA73: $77,688 | AB73: 102 | AC73: 6053000102 | AD73: 60530001023008
A74: 3230 | B74: 06 | C74: 053 | D74: 000102 | E74: 3009 | F74: 060530001023009 | G74: 060530001023 | H74: Block 3009 | I74: G5040 | J74: U | K74: 78310 | L74: U | M74: S | N74: 23377 | O74: 0 | P74: +36.7139414 | Q74: -121.6352508 | R74: Served | S74: Salinas | U74: 0.00902477938 | V74: 103 | W74: 30 | X74: 29 | Y74: 1 | AA74: $77,688 | AB74: 102 | AC74: 6053000102 | AD74: 60530001023009
A75: 9446 | B75: 06 | C75: 053 | D75: 000102 | E75: 3010 | F75: 060530001023010 | G75: 060530001023 | H75: Block 3010 | I75: G5040 | J75: U | K75: 78310 | L75: U | M75: S | N75: 23711 | O75: 0 | P75: +36.7127595 | Q75: -121.6357848 | R75: Served | S75: Salinas | U75: 0.00915391051 | V75: 97 | W75: 26 | X75: 25 | Y75: 1 | AA75: $77,688 | AB75: 102 | AC75: 6053000102 | AD75: 60530001023010
A76: 549 | B76: 06 | C76: 053 | D76: 000102 | E76: 3011 | F76: 060530001023011 | G76: 060530001023 | H76: Block 3011 | I76: G5040 | J76: U | K76: 78310 | L76: U | M76: S | N76: 89616 | O76: 0 | P76: +36.7109058 | Q76: -121.6396530 | R76: Served | S76: Salinas | U76: 0.03459664706 | V76: 154 | W76: 53 | X76: 53 | Y76: 0 | AA76: $77,688 | AB76: 102 | AC76: 6053000102 | AD76: 60530001023011
A77: 1748 | B77: 06 | C77: 053 | D77: 000102 | E77: 3012 | F77: 060530001023012 | G77: 060530001023 | H77: Block 3012 | I77: G5040 | J77: U | K77: 78310 | L77: U | M77: S | N77: 16732 | O77: 0 | P77: +36.7084375 | Q77: -121.6407740 | R77: Served | S77: Salinas | U77: 0.00645951967 | V77: 29 | W77: 10 | X77: 9 | Y77: 1 | AA77: $77,688 | AB77: 102 | AC77: 6053000102 | AD77: 60530001023012
A78: 3098 | B78: 06 | C78: 053 | D78: 000102 | E78: 3013 | F78: 060530001023013 | G78: 060530001023 | H78: Block 3013 | I78: G5040 | J78: U | K78: 78310 | L78: U | M78: S | N78: 20117 | O78: 0 | P78: +36.7097257 | Q78: -121.6409262 | R78: Served | S78: Salinas | U78: 0.00776624883 | V78: 34 | W78: 10 | X78: 10 | Y78: 0 | AA78: $77,688 | AB78: 102 | AC78: 6053000102 | AD78: 60530001023013
A79: 7734 | B79: 06 | C79: 053 | D79: 000102 | E79: 3014 | F79: 060530001023014 | G79: 060530001023 | H79: Block 3014 | I79: G5040 | J79: U | K79: 78310 | L79: U | M79: S | N79: 56587 | O79: 0 | P79: +36.7120181 | Q79: -121.6384559 | R79: Served | S79: Salinas | U79: 0.02184599816 | V79: 216 | W79: 52 | X79: 51 | Y79: 1 | AA79: $77,688 | AB79: 102 | AC79: 6053000102 | AD79: 60530001023014
A80: 273 | B80: 06 | C80: 053 | D80: 000102 | E80: 3015 | F80: 060530001023015 | G80: 060530001023 | H80: Block 3015 | I80: G5040 | J80: U | K80: 78310 | L80: U | M80: S | N80: 10993 | O80: 0 | P80: +36.7117567 | Q80: -121.6369909 | R80: Served | S80: Salinas | U80: 0.00424407108 | V80: 43 | W80: 12 | X80: 12 | Y80: 0 | AA80: $77,688 | AB80: 102 | AC80: 6053000102 | AD80: 60530001023015
A81: 8946 | B81: 06 | C81: 053 | D81: 000102 | E81: 3016 | F81: 060530001023016 | G81: 060530001023 | H81: Block 3016 | I81: G5040 | J81: U | K81: 78310 | L81: U | M81: S | N81: 21735 | O81: 0 | P81: +36.7125099 | Q81: -121.6373003 | R81: Served | S81: Salinas | U81: 0.00839084395 | V81: 80 | W81: 26 | X81: 24 | Y81: 2 | AA81: $77,688 | AB81: 102 | AC81: 6053000102 | AD81: 60530001023016
A82: 3711 | B82: 06 | C82: 053 | D82: 000102 | E82: 3017 | F82: 060530001023017 | G82: 060530001023 | H82: Block 3017 | I82: G5040 | J82: U | K82: 78310 | L82: U | M82: S | N82: 134057 | O82: 0 | P82: +36.7085533 | Q82: -121.6386291 | R82: Served | S82: Salinas | U82: 0.05175388846 | V82: 341 | W82: 88 | X82: 83 | Y82: 5 | AA82: $77,688 | AB82: 102 | AC82: 6053000102 | AD82: 60530001023017
A83: 6372 | B83: 06 | C83: 053 | D83: 000102 | E83: 3018 | F83: 060530001023018 | G83: 060530001023 | H83: Block 3018 | I83: G5040 | J83: U | K83: 78310 | L83: U | M83: S | N83: 44163 | O83: 0 | P83: +36.7075980 | Q83: -121.6442366 | R83: Served | S83: Salinas | T83: 1 | U83: 0.01704939958 | V83: 77 | W83: 16 | X83: 16 | Y83: 0 | AA83: $77,688 | AB83: 102 | AC83: 6053000102 | AD83: 60530001023018
A84: 6373 | B84: 06 | C84: 053 | D84: 000102 | E84: 3019 | F84: 060530001023019 | G84: 060530001023 | H84: Block 3019 | I84: G5040 | J84: U | K84: 78310 | L84: U | M84: S | N84: 13437 | O84: 0 | P84: +36.7088810 | Q84: -121.6442357 | R84: Served | S84: Salinas | T84: 1 | U84: 0.00518730969 | V84: 6 | W84: 4 | X84: 4 | Y84: 0 | AA84: $77,688 | AB84: 102 | AC84: 6053000102 | AD84: 60530001023019
A85: 7457 | B85: 06 | C85: 053 | D85: 000102 | E85: 3020 | F85: 060530001023020 | G85: 060530001023 | H85: Block 3020 | I85: G5040 | J85: U | K85: 78310 | L85: U | M85: S | N85: 29689 | O85: 0 | P85: +36.7101375 | Q85: -121.6440863 | R85: Served | S85: Salinas | U85: 0.01146183610 | V85: 82 | W85: 27 | X85: 26 | Y85: 1 | AA85: $77,688 | AB85: 102 | AC85: 6053000102 | AD85: 60530001023020
A86: 10490 | B86: 06 | C86: 053 | D86: 000102 | E86: 3021 | F86: 060530001023021 | G86: 060530001023 | H86: Block 3021 | I86: G5040 | J86: U | K86: 78310 | L86: U | M86: S | N86: 29889 | O86: 0 | P86: +36.7108306 | Q86: -121.6428057 | R86: Served | S86: Salinas | U86: 0.01153889038 | V86: 109 | W86: 33 | X86: 31 | Y86: 2 | AA86: $77,688 | AB86: 102 | AC86: 6053000102 | AD86: 60530001023021
A87: 6374 | B87: 06 | C87: 053 | D87: 000102 | E87: 3022 | F87: 060530001023022 | G87: 060530001023 | H87: Block 3022 | I87: G5040 | J87: U | K87: 78310 | L87: U | M87: S | N87: 12488 | O87: 0 | P87: +36.7091408 | Q87: -121.6436168 | R87: Served | S87: Salinas | U87: 0.00482113614 | V87: 21 | W87: 8 | X87: 8 | Y87: 0 | AA87: $77,688 | AB87: 102 | AC87: 6053000102 | AD87: 60530001023022
A88: 1747 | B88: 06 | C88: 053 | D88: 000102 | E88: 3023 | F88: 060530001023023 | G88: 060530001023 | H88: Block 3023 | I88: G5040 | J88: U | K88: 78310 | L88: U | M88: S | N88: 16616 | O88: 0 | P88: +36.7095404 | Q88: -121.6422324 | R88: Served | S88: Salinas | U88: 0.00641472348 | V88: 63 | W88: 19 | X88: 18 | Y88: 1 | AA88: $77,688 | AB88: 102 | AC88: 6053000102 | AD88: 60530001023023
A89: 3716 | B89: 06 | C89: 053 | D89: 000103 | E89: 1000 | F89: 060530001031000 | G89: 060530001031 | H89: Block 1000 | I89: G5040 | J89: U | K89: 78310 | L89: U | M89: S | N89: 416084 | O89: 0 | P89: +36.7109992 | Q89: -121.6495610 | R89: Served | S89: Salinas | U89: 0.16063219898 | V89: 1,229 | W89: 624 | X89: 579 | Y89: 45 | AA89: $54,406 | AB89: 103 | AC89: 6053000103 | AD89: 60530001031000
A90: 1513 | B90: 06 | C90: 053 | D90: 000103 | E90: 1001 | F90: 060530001031001 | G90: 060530001031 | H90: Block 1001 | I90: G5040 | J90: U | K90: 78310 | L90: U | M90: S | N90: 33004 | O90: 0 | P90: +36.7085018 | Q90: -121.6512265 | R90: Served | S90: Salinas | U90: 0.01274149004 | V90: 194 | W90: 51 | X90: 49 | Y90: 2 | AA90: $54,406 | AB90: 103 | AC90: 6053000103 | AD90: 60530001031001
A91: 4961 | B91: 06 | C91: 053 | D91: 000103 | E91: 1002 | F91: 060530001031002 | G91: 060530001031 | H91: Block 1002 | I91: G5040 | J91: U | K91: 78310 | L91: U | M91: S | N91: 10051 | O91: 0 | P91: +36.7099157 | Q91: -121.6524428 | R91: Served | S91: Salinas | U91: 0.00388031825 | V91: 65 | W91: 17 | X91: 16 | Y91: 1 | AA91: $54,406 | AB91: 103 | AC91: 6053000103 | AD91: 60530001031002
A92: 3603 | B92: 06 | C92: 053 | D92: 000103 | E92: 1003 | F92: 060530001031003 | G92: 060530001031 | H92: Block 1003 | I92: G5040 | J92: U | K92: 78310 | L92: U | M92: S | N92: 14852 | O92: 0 | P92: +36.7091700 | Q92: -121.6503069 | R92: Served | S92: Salinas | U92: 0.00573372540 | V92: 86 | W92: 21 | X92: 20 | Y92: 1 | AA92: $54,406 | AB92: 103 | AC92: 6053000103 | AD92: 60530001031003
A93: 3384 | B93: 06 | C93: 053 | D93: 000103 | E93: 1004 | F93: 060530001031004 | G93: 060530001031 | H93: Block 1004 | I93: G5040 | J93: U | K93: 78310 | L93: U | M93: S | N93: 18172 | O93: 0 | P93: +36.7081519 | Q93: -121.6460797 | R93: Served | S93: Salinas | U93: 0.00701529176 | V93: 199 | W93: 74 | X93: 72 | Y93: 2 | AA93: $54,406 | AB93: 103 | AC93: 6053000103 | AD93: 60530001031004
A94: 1629 | B94: 06 | C94: 053 | D94: 000103 | E94: 2000 | F94: 060530001032000 | G94: 060530001032 | H94: Block 2000 | I94: G5040 | J94: U | K94: 78310 | L94: U | M94: S | N94: 35939 | O94: 0 | P94: +36.7169897 | Q94: -121.6462893 | R94: Served | S94: Salinas | U94: 0.01387444186 | V94: 158 | W94: 40 | X94: 39 | Y94: 1 | AA94: $54,406 | AB94: 103 | AC94: 6053000103 | AD94: 60530001032000
A95: 906 | B95: 06 | C95: 053 | D95: 000103 | E95: 2001 | F95: 060530001032001 | G95: 060530001032 | H95: Block 2001 | I95: G5040 | J95: U | K95: 78310 | L95: U | M95: S | N95: 8336 | O95: 0 | P95: +36.7169337 | Q95: -121.6479008 | R95: Served | S95: Salinas | U95: 0.00321835770 | V95: 34 | W95: 12 | X95: 11 | Y95: 1 | AA95: $54,406 | AB95: 103 | AC95: 6053000103 | AD95: 60530001032001
A96: 1630 | B96: 06 | C96: 053 | D96: 000103 | E96: 2002 | F96: 060530001032002 | G96: 060530001032 | H96: Block 2002 | I96: G5040 | J96: U | K96: 78310 | L96: U | M96: S | N96: 21470 | O96: 0 | P96: +36.7163207 | Q96: -121.6454190 | R96: Served | S96: Salinas | U96: 0.00828863712 | V96: 104 | W96: 31 | X96: 29 | Y96: 2 | AA96: $54,406 | AB96: 103 | AC96: 6053000103 | AD96: 60530001032002
A97: 4344 | B97: 06 | C97: 053 | D97: 000103 | E97: 2003 | F97: 060530001032003 | G97: 060530001032 | H97: Block 2003 | I97: G5040 | J97: U | K97: 78310 | L97: U | M97: S | N97: 307672 | O97: 0 | P97: +36.7161377 | Q97: -121.6514533 | R97: Served | S97: Salinas | T97: 1 | U97: 0.11877905316 | V97: 1,137 | W97: 364 | X97: 348 | Y97: 16 | AA97: $54,406 | AB97: 103 | AC97: 6053000103 | AD97: 60530001032003
A98: 9850 | B98: 06 | C98: 053 | D98: 000103 | E98: 2004 | F98: 060530001032004 | G98: 060530001032 | H98: Block 2004 | I98: G5040 | J98: U | K98: 78310 | L98: U | M98: S | N98: 20804 | O98: 0 | P98: +36.7154639 | Q98: -121.6482356 | R98: Served | S98: Salinas | U98: 0.00803142047 | V98: 97 | W98: 28 | X98: 27 | Y98: 1 | AA98: $54,406 | AB98: 103 | AC98: 6053000103 | AD98: 60530001032004
A99: 1743 | B99: 06 | C99: 053 | D99: 000103 | E99: 2005 | F99: 060530001032005 | G99: 060530001032 | H99: Block 2005 | I99: G5040 | J99: U | K99: 78310 | L99: U | M99: S | N99: 28584 | O99: 0 | P99: +36.7146242 | Q99: -121.6478094 | R99: Served | S99: Salinas | U99: 0.01103504842 | V99: 144 | W99: 41 | X99: 37 | Y99: 4 | AA99: $54,406 | AB99: 103 | AC99: 6053000103 | AD99: 60530001032005
A100: 5834 | B100: 06 | C100: 053 | D100: 000103 | E100: 2006 | F100: 060530001032006 | G100: 060530001032 | H100: Block 2006 | I100: G5040 | J100: U | K100: 78310 | L100: U | M100: S | N100: 9973 | O100: 0 | P100: +36.7143254 | Q100: -121.6525550 | R100: Served | S100: Salinas | U100: 0.00384998645 | V100: 12 | W100: 7 | X100: 6 | Y100: 1 | AA100: $54,406 | AB100: 103 | AC100: 6053000103 | AD100: 60530001032006
A101: 6153 | B101: 06 | C101: 053 | D101: 000103 | E101: 2007 | F101: 060530001032007 | G101: 060530001032 | H101: Block 2007 | I101: G5040 | J101: U | K101: 78310 | L101: U | M101: S | N101: 153 | O101: 0 | P101: +36.7197433 | Q101: -121.6511347 | R101: Unserved | S101: Salinas | U101: 0.00005897949 | V101: 0 | W101: 0 | X101: 0 | Y101: 0 | AA101: $54,406 | AB101: 103 | AC101: 6053000103 | AD101: 60530001032007
A102: 3718 | B102: 06 | C102: 053 | D102: 000103 | E102: 2008 | F102: 060530001032008 | G102: 060530001032 | H102: Block 2008 | I102: G5040 | J102: U | K102: 78310 | L102: U | M102: S | N102: 33324 | O102: 0 | P102: +36.7126168 | Q102: -121.6450270 | R102: Served | S102: Salinas | U102: 0.01286481976 | V102: 120 | W102: 30 | X102: 29 | Y102: 1 | AA102: $54,406 | AB102: 103 | AC102: 6053000103 | AD102: 60530001032008
A103: 9851 | B103: 06 | C103: 053 | D103: 000103 | E103: 2009 | F103: 060530001032009 | G103: 060530001032 | H103: Block 2009 | I103: G5040 | J103: U | K103: 78310 | L103: U | M103: S | N103: 13406 | O103: 0 | P103: +36.7133379 | Q103: -121.6455511 | R103: Served | S103: Salinas | U103: 0.00517565347 | V103: 67 | W103: 18 | X103: 17 | Y103: 1 | AA103: $54,406 | AB103: 103 | AC103: 6053000103 | AD103: 60530001032009
A104: 3719 | B104: 06 | C104: 053 | D104: 000103 | E104: 2010 | F104: 060530001032010 | G104: 060530001032 | H104: Block 2010 | I104: G5040 | J104: U | K104: 78310 | L104: U | M104: S | N104: 33526 | O104: 0 | P104: +36.7149564 | Q104: -121.6451908 | R104: Served | S104: Salinas | U104: 0.01294311791 | V104: 168 | W104: 42 | X104: 41 | Y104: 1 | AA104: $54,406 | AB104: 103 | AC104: 6053000103 | AD104: 60530001032010
A105: 905 | B105: 06 | C105: 053 | D105: 000103 | E105: 2011 | F105: 060530001032011 | G105: 060530001032 | H105: Block 2011 | I105: G5040 | J105: U | K105: 78310 | L105: U | M105: S | N105: 15528 | O105: 0 | P105: +36.7141427 | Q105: -121.6457925 | R105: Served | S105: Salinas | U105: 0.00599462321 | V105: 80 | W105: 21 | X105: 21 | Y105: 0 | AA105: $54,406 | AB105: 103 | AC105: 6053000103 | AD105: 60530001032011
A106: 9448 | B106: 06 | C106: 053 | D106: 000103 | E106: 2012 | F106: 060530001032012 | G106: 060530001032 | H106: Block 2012 | I106: G5040 | J106: U | K106: 78310 | L106: U | M106: S | N106: 4814 | O106: 0 | P106: +36.7169475 | Q106: -121.6549341 | R106: Unserved | S106: Salinas | U106: 0.00185863480 | V106: 0 | W106: 0 | X106: 0 | Y106: 0 | AA106: $54,406 | AB106: 103 | AC106: 6053000103 | AD106: 60530001032012
A107: 890 | B107: 06 | C107: 053 | D107: 000104 | E107: 1000 | F107: 060530001041000 | G107: 060530001041 | H107: Block 1000 | I107: G5040 | J107: U | K107: 78310 | L107: U | M107: S | N107: 572318 | O107: 4276 | P107: +36.7246677 | Q107: -121.6159284 | R107: Unserved | U107: 0.22259886456 | V107: 13 | W107: 2 | X107: 2 | Y107: 0 | AA107: $84,632 | AB107: 104 | AC107: 6053000104 | AD107: 60530001041000
A108: 284 | B108: 06 | C108: 053 | D108: 000104 | E108: 1001 | F108: 060530001041001 | G108: 060530001041 | H108: Block 1001 | I108: G5040 | J108: U | K108: 78310 | L108: U | M108: S | N108: 15203 | O108: 0 | P108: +36.7208701 | Q108: -121.6215541 | R108: Unserved | U108: 0.00586925276 | V108: 0 | W108: 0 | X108: 0 | Y108: 0 | AA108: $84,632 | AB108: 104 | AC108: 6053000104 | AD108: 60530001041001
A109: 9097 | B109: 06 | C109: 053 | D109: 000104 | E109: 1002 | F109: 060530001041002 | G109: 060530001041 | H109: Block 1002 | I109: G5040 | J109: U | K109: 78310 | L109: U | M109: S | N109: 118246 | O109: 0 | P109: +36.7196453 | Q109: -121.6188129 | R109: Unserved | S109: Salinas | U109: 0.04564964196 | V109: 0 | W109: 0 | X109: 0 | Y109: 0 | AA109: $84,632 | AB109: 104 | AC109: 6053000104 | AD109: 60530001041002
A110: 9736 | B110: 06 | C110: 053 | D110: 000104 | E110: 1003 | F110: 060530001041003 | G110: 060530001041 | H110: Block 1003 | I110: G5040 | J110: U | K110: 78310 | L110: U | M110: S | N110: 81026 | O110: 0 | P110: +36.7170611 | Q110: -121.6217122 | R110: Unserved | S110: Salinas | U110: 0.03128085818 | V110: 0 | W110: 0 | X110: 0 | Y110: 0 | AA110: $84,632 | AB110: 104 | AC110: 6053000104 | AD110: 60530001041003
A111: 5981 | B111: 06 | C111: 053 | D111: 000104 | E111: 1004 | F111: 060530001041004 | G111: 060530001041 | H111: Block 1004 | I111: G5040 | J111: U | K111: 78310 | L111: U | M111: S | N111: 189748 | O111: 0 | P111: +36.7169698 | Q111: -121.6177787 | R111: Unserved | S111: Salinas | U111: 0.07325351791 | V111: 1 | W111: 1 | X111: 1 | Y111: 0 | AA111: $84,632 | AB111: 104 | AC111: 6053000104 | AD111: 60530001041004
A112: 2073 | B112: 06 | C112: 053 | D112: 000104 | E112: 1005 | F112: 060530001041005 | G112: 060530001041 | H112: Block 1005 | I112: G5040 | J112: U | K112: 78310 | L112: U | M112: S | N112: 23180 | O112: 0 | P112: +36.7150008 | Q112: -121.6233755 | R112: Served | S112: Salinas | U112: 0.00894864799 | V112: 83 | W112: 18 | X112: 18 | Y112: 0 | AA112: $84,632 | AB112: 104 | AC112: 6053000104 | AD112: 60530001041005
A113: 3518 | B113: 06 | C113: 053 | D113: 000104 | E113: 1006 | F113: 060530001041006 | G113: 060530001041 | H113: Block 1006 | I113: G5040 | J113: U | K113: 78310 | L113: U | M113: S | N113: 15504 | O113: 0 | P113: +36.7123065 | Q113: -121.6242335 | R113: Served | S113: Salinas | U113: 0.00598539419 | V113: 47 | W113: 12 | X113: 12 | Y113: 0 | AA113: $84,632 | AB113: 104 | AC113: 6053000104 | AD113: 60530001041006
A114: 9034 | B114: 06 | C114: 053 | D114: 000104 | E114: 1007 | F114: 060530001041007 | G114: 060530001041 | H114: Block 1007 | I114: G5040 | J114: U | K114: 78310 | L114: U | M114: S | N114: 33949 | O114: 0 | P114: +36.7120079 | Q114: -121.6233207 | R114: Served | S114: Salinas | U114: 0.01310622201 | V114: 142 | W114: 39 | X114: 39 | Y114: 0 | AA114: $84,632 | AB114: 104 | AC114: 6053000104 | AD114: 60530001041007
A115: 3990 | B115: 06 | C115: 053 | D115: 000104 | E115: 1008 | F115: 060530001041008 | G115: 060530001041 | H115: Block 1008 | I115: G5040 | J115: U | K115: 78310 | L115: U | M115: S | N115: 33688 | O115: 0 | P115: +36.7140578 | Q115: -121.6223166 | R115: Served | S115: Salinas | U115: 0.01300557104 | V115: 119 | W115: 35 | X115: 34 | Y115: 1 | AA115: $84,632 | AB115: 104 | AC115: 6053000104 | AD115: 60530001041008
A116: 2877 | B116: 06 | C116: 053 | D116: 000104 | E116: 1009 | F116: 060530001041009 | G116: 060530001041 | H116: Block 1009 | I116: G5040 | J116: U | K116: 78310 | L116: U | M116: S | N116: 20784 | O116: 0 | P116: +36.7112861 | Q116: -121.6227912 | R116: Served | S116: Salinas | U116: 0.00802391928 | V116: 105 | W116: 23 | X116: 23 | Y116: 0 | AA116: $84,632 | AB116: 104 | AC116: 6053000104 | AD116: 60530001041009
A117: 9276 | B117: 06 | C117: 053 | D117: 000104 | E117: 1010 | F117: 060530001041010 | G117: 060530001041 | H117: Block 1010 | I117: G5040 | J117: U | K117: 78310 | L117: U | M117: S | N117: 44241 | O117: 0 | P117: +36.7092357 | Q117: -121.6237711 | R117: Served | S117: Salinas | U117: 0.01707945370 | V117: 86 | W117: 21 | X117: 21 | Y117: 0 | AA117: $84,632 | AB117: 104 | AC117: 6053000104 | AD117: 60530001041010
A118: 2570 | B118: 06 | C118: 053 | D118: 000104 | E118: 1011 | F118: 060530001041011 | G118: 060530001041 | H118: Block 1011 | I118: G5040 | J118: U | K118: 78310 | L118: U | M118: S | N118: 32572 | O118: 0 | P118: +36.7088847 | Q118: -121.6256379 | R118: Served | S118: Salinas | U118: 0.01257447815 | V118: 124 | W118: 27 | X118: 27 | Y118: 0 | AA118: $84,632 | AB118: 104 | AC118: 6053000104 | AD118: 60530001041011
A119: 470 | B119: 06 | C119: 053 | D119: 000104 | E119: 1012 | F119: 060530001041012 | G119: 060530001041 | H119: Block 1012 | I119: G5040 | J119: U | K119: 78310 | L119: U | M119: S | N119: 20546 | O119: 0 | P119: +36.7067583 | Q119: -121.6250865 | R119: Served | S119: Salinas | U119: 0.00793202516 | V119: 88 | W119: 25 | X119: 25 | Y119: 0 | AA119: $84,632 | AB119: 104 | AC119: 6053000104 | AD119: 60530001041012
A120: 2889 | B120: 06 | C120: 053 | D120: 000104 | E120: 1013 | F120: 060530001041013 | G120: 060530001041 | H120: Block 1013 | I120: G5040 | J120: U | K120: 78310 | L120: U | M120: S | N120: 20294 | O120: 0 | P120: +36.7073390 | Q120: -121.6245064 | R120: Served | S120: Salinas | U120: 0.00783450915 | V120: 103 | W120: 25 | X120: 25 | Y120: 0 | AA120: $84,632 | AB120: 104 | AC120: 6053000104 | AD120: 60530001041013
A121: 9278 | B121: 06 | C121: 053 | D121: 000104 | E121: 1014 | F121: 060530001041014 | G121: 060530001041 | H121: Block 1014 | I121: G5040 | J121: U | K121: 78310 | L121: U | M121: S | N121: 17706 | O121: 0 | P121: +36.7079739 | Q121: -121.6241666 | R121: Served | S121: Salinas | T121: 1 | U121: 0.00683549155 | V121: 75 | W121: 21 | X121: 19 | Y121: 2 | AA121: $84,632 | AB121: 104 | AC121: 6053000104 | AD121: 60530001041014
A122: 903 | B122: 06 | C122: 053 | D122: 000104 | E122: 1015 | F122: 060530001041015 | G122: 060530001041 | H122: Block 1015 | I122: G5040 | J122: U | K122: 78310 | L122: U | M122: S | N122: 5694 | O122: 0 | P122: +36.7090100 | Q122: -121.6225097 | R122: Unserved | S122: Salinas | U122: 0.00219817058 | V122: 2 | W122: 1 | X122: 1 | Y122: 0 | AA122: $84,632 | AB122: 104 | AC122: 6053000104 | AD122: 60530001041015
A123: 8282 | B123: 06 | C123: 053 | D123: 000104 | E123: 2000 | F123: 060530001042000 | G123: 060530001042 | H123: Block 2000 | I123: G5040 | J123: U | K123: 78310 | L123: U | M123: S | N123: 46803 | O123: 0 | P123: +36.7144140 | Q123: -121.6186011 | R123: Served | S123: Salinas | U123: 0.01806845814 | V123: 105 | W123: 30 | X123: 30 | Y123: 0 | AA123: $84,632 | AB123: 104 | AC123: 6053000104 | AD123: 60530001042000
A124: 7922 | B124: 06 | C124: 053 | D124: 000104 | E124: 2001 | F124: 060530001042001 | G124: 060530001042 | H124: Block 2001 | I124: G5040 | J124: U | K124: 78310 | L124: U | M124: S | N124: 16126 | O124: 0 | P124: +36.7139013 | Q124: -121.6192899 | R124: Served | S124: Salinas | U124: 0.00622539466 | V124: 71 | W124: 21 | X124: 20 | Y124: 1 | AA124: $84,632 | AB124: 104 | AC124: 6053000104 | AD124: 60530001042001
A125: 9083 | B125: 06 | C125: 053 | D125: 000104 | E125: 2002 | F125: 060530001042002 | G125: 060530001042 | H125: Block 2002 | I125: G5040 | J125: U | K125: 78310 | L125: U | M125: S | N125: 14113 | O125: 0 | P125: +36.7132681 | Q125: -121.6196574 | R125: Served | S125: Salinas | U125: 0.00544836458 | V125: 65 | W125: 17 | X125: 17 | Y125: 0 | AA125: $84,632 | AB125: 104 | AC125: 6053000104 | AD125: 60530001042002
A126: 835 | B126: 06 | C126: 053 | D126: 000104 | E126: 2003 | F126: 060530001042003 | G126: 060530001042 | H126: Block 2003 | I126: G5040 | J126: U | K126: 78310 | L126: U | M126: S | N126: 52495 | O126: 0 | P126: +36.7123618 | Q126: -121.6212411 | R126: Served | S126: Salinas | U126: 0.02026597510 | V126: 253 | W126: 61 | X126: 60 | Y126: 1 | AA126: $84,632 | AB126: 104 | AC126: 6053000104 | AD126: 60530001042003
A127: 852 | B127: 06 | C127: 053 | D127: 000104 | E127: 2004 | F127: 060530001042004 | G127: 060530001042 | H127: Block 2004 | I127: G5040 | J127: U | K127: 78310 | L127: U | M127: S | N127: 12992 | O127: 0 | P127: +36.7126001 | Q127: -121.6199615 | R127: Served | S127: Salinas | U127: 0.00501548377 | V127: 60 | W127: 16 | X127: 15 | Y127: 1 | AA127: $84,632 | AB127: 104 | AC127: 6053000104 | AD127: 60530001042004
A128: 8616 | B128: 06 | C128: 053 | D128: 000104 | E128: 2005 | F128: 060530001042005 | G128: 060530001042 | H128: Block 2005 | I128: G5040 | J128: U | K128: 78310 | L128: U | M128: S | N128: 11789 | O128: 0 | P128: +36.7119348 | Q128: -121.6202818 | R128: Served | S128: Salinas | U128: 0.00455135507 | V128: 41 | W128: 14 | X128: 13 | Y128: 1 | AA128: $84,632 | AB128: 104 | AC128: 6053000104 | AD128: 60530001042005
A129: 4265 | B129: 06 | C129: 053 | D129: 000104 | E129: 2006 | F129: 060530001042006 | G129: 060530001042 | H129: Block 2006 | I129: G5040 | J129: U | K129: 78310 | L129: U | M129: S | N129: 247884 | O129: 0 | P129: +36.7062235 | Q129: -121.6233745 | R129: Served | S129: Salinas | U129: 0.09569720858 | V129: 610 | W129: 169 | X129: 164 | Y129: 5 | AA129: $84,632 | AB129: 104 | AC129: 6053000104 | AD129: 60530001042006
A130: 3241 | B130: 06 | C130: 053 | D130: 000104 | E130: 2007 | F130: 060530001042007 | G130: =LEFT(F130,12) -> 060530001042 | H130: Block 2007 | I130: G5040 | J130: U | K130: 78310 | L130: U | M130: S | N130: 27600 | O130: 0 | P130: +36.7017315 | Q130: -121.6220979 | R130: Served | S130: Salinas | U130: 0.01065500200 | V130: 21 | W130: 6 | X130: 5 | Y130: 1 | AA130: $84,632 | AB130: 104 | AC130: 6053000104 | AD130: 60530001042007
A131: 853 | B131: 06 | C131: 053 | D131: 000104 | E131: 2008 | F131: 060530001042008 | G131: 060530001042 | H131: Block 2008 | I131: G5040 | J131: U | K131: 78310 | L131: U | M131: S | N131: 16060 | O131: 0 | P131: +36.7008262 | Q131: -121.6242829 | R131: Served | S131: Salinas | U131: 0.00620012145 | V131: 23 | W131: 10 | X131: 9 | Y131: 1 | AA131: $84,632 | AB131: 104 | AC131: 6053000104 | AD131: 60530001042008
A132: 10454 | B132: 06 | C132: 053 | D132: 000104 | E132: 2009 | F132: 060530001042009 | G132: 060530001042 | H132: Block 2009 | I132: G5040 | J132: U | K132: 78310 | L132: U | M132: S | N132: 35716 | O132: 0 | P132: +36.7041315 | Q132: -121.6225233 | R132: Served | S132: Salinas | U132: 0.01378854800 | V132: 142 | W132: 46 | X132: 45 | Y132: 1 | AA132: $84,632 | AB132: 104 | AC132: 6053000104 | AD132: 60530001042009
A133: 9522 | B133: 06 | C133: 053 | D133: 000104 | E133: 2010 | F133: 060530001042010 | G133: 060530001042 | H133: Block 2010 | I133: G5040 | J133: U | K133: 78310 | L133: U | M133: S | N133: 9714 | O133: 0 | P133: +36.7018613 | Q133: -121.6229891 | R133: Served | S133: Salinas | U133: 0.00375005495 | V133: 43 | W133: 16 | X133: 15 | Y133: 1 | AA133: $84,632 | AB133: 104 | AC133: 6053000104 | AD133: 60530001042010
A134: 8276 | B134: 06 | C134: 053 | D134: 000104 | E134: 2011 | F134: 060530001042011 | G134: 060530001042 | H134: Block 2011 | I134: G5040 | J134: U | K134: 78310 | L134: U | M134: S | N134: 10852 | O134: 0 | P134: +36.7060050 | Q134: -121.6248370 | R134: Served | S134: Salinas | U134: 0.00418948692 | V134: 38 | W134: 12 | X134: 10 | Y134: 2 | AA134: $84,632 | AB134: 104 | AC134: 6053000104 | AD134: 60530001042011
A135: 738 | B135: 06 | C135: 053 | D135: 000104 | E135: 2012 | F135: 060530001042012 | G135: 060530001042 | H135: Block 2012 | I135: G5040 | J135: U | K135: 78310 | L135: U | M135: S | N135: 51261 | O135: 0 | P135: +36.7053188 | Q135: -121.6252843 | R135: Served | S135: Salinas | U135: 0.01978950951 | V135: 202 | W135: 61 | X135: 56 | Y135: 5 | AA135: $84,632 | AB135: 104 | AC135: 6053000104 | AD135: 60530001042012
A136: 808 | B136: 06 | C136: 053 | D136: 000104 | E136: 2013 | F136: 060530001042013 | G136: 060530001042 | H136: Block 2013 | I136: G5040 | J136: U | K136: 78310 | L136: U | M136: S | N136: 25188 | O136: 0 | P136: +36.7044729 | Q136: -121.6267825 | R136: Served | S136: Salinas | U136: 0.00972397321 | V136: 84 | W136: 25 | X136: 23 | Y136: 2 | AA136: $84,632 | AB136: 104 | AC136: 6053000104 | AD136: 60530001042013
A137: 9039 | B137: 06 | C137: 053 | D137: 000104 | E137: 2014 | F137: 060530001042014 | G137: 060530001042 | H137: Block 2014 | I137: G5040 | J137: U | K137: 78310 | L137: U | M137: S | N137: 26812 | O137: 0 | P137: +36.7064538 | Q137: -121.6264490 | R137: Served | S137: Salinas | U137: 0.01035086631 | V137: 72 | W137: 25 | X137: 24 | Y137: 1 | AA137: $84,632 | AB137: 104 | AC137: 6053000104 | AD137: 60530001042014
A138: 8275 | B138: 06 | C138: 053 | D138: 000104 | E138: 2015 | F138: 060530001042015 | G138: 060530001042 | H138: Block 2015 | I138: G5040 | J138: U | K138: 78310 | L138: U | M138: S | N138: 11947 | O138: 0 | P138: +36.7043202 | Q138: -121.6297360 | R138: Served | S138: Salinas | U138: 0.00461211705 | V138: 28 | W138: 7 | X138: 7 | Y138: 0 | AA138: $84,632 | AB138: 104 | AC138: 6053000104 | AD138: 60530001042015
A139: 8638 | B139: 06 | C139: 053 | D139: 000104 | E139: 2016 | F139: 060530001042016 | G139: 060530001042 | H139: Block 2016 | I139: G5040 | J139: U | K139: 78310 | L139: U | M139: S | N139: 38548 | O139: 0 | P139: +36.7036350 | Q139: -121.6280062 | R139: Served | S139: Salinas | U139: 0.01488157309 | V139: 135 | W139: 45 | X139: 42 | Y139: 3 | AA139: $84,632 | AB139: 104 | AC139: 6053000104 | AD139: 60530001042016
A140: 2970 | B140: 06 | C140: 053 | D140: 000104 | E140: 2017 | F140: 060530001042017 | G140: 060530001042 | H140: Block 2017 | I140: G5040 | J140: U | K140: 78310 | L140: U | M140: S | N140: 31739 | O140: 0 | P140: +36.7028195 | Q140: -121.6307580 | R140: Served | S140: Salinas | U140: 0.01225334663 | V140: 104 | W140: 26 | X140: 25 | Y140: 1 | AA140: $84,632 | AB140: 104 | AC140: 6053000104 | AD140: 60530001042017
A141: 4504 | B141: 06 | C141: 053 | D141: 000104 | E141: 2018 | F141: 060530001042018 | G141: 060530001042 | H141: Block 2018 | I141: G5040 | J141: U | K141: 78310 | L141: U | M141: S | N141: 37827 | O141: 0 | P141: +36.7026564 | Q141: -121.6286184 | R141: Served | S141: Salinas | U141: 0.01460352084 | V141: 131 | W141: 44 | X141: 41 | Y141: 3 | AA141: $84,632 | AB141: 104 | AC141: 6053000104 | AD141: 60530001042018
A142: 8642 | B142: 06 | C142: 053 | D142: 000104 | E142: 2019 | F142: 060530001042019 | G142: 060530001042 | H142: Block 2019 | I142: G5040 | J142: U | K142: 78310 | L142: U | M142: S | N142: 23015 | O142: 0 | P142: +36.7019276 | Q142: -121.6269856 | R142: Served | S142: Salinas | U142: 0.00888524277 | V142: 69 | W142: 27 | X142: 26 | Y142: 1 | AA142: $84,632 | AB142: 104 | AC142: 6053000104 | AD142: 60530001042019
A143: 2891 | B143: 06 | C143: 053 | D143: 000104 | E143: 2020 | F143: 060530001042020 | G143: 060530001042 | H143: Block 2020 | I143: G5040 | J143: U | K143: 78310 | L143: U | M143: S | N143: 29457 | O143: 0 | P143: +36.7012104 | Q143: -121.6279639 | R143: Served | S143: Salinas | U143: 0.01137211415 | V143: 120 | W143: 36 | X143: 36 | Y143: 0 | AA143: $84,632 | AB143: 104 | AC143: 6053000104 | AD143: 60530001042020
A144: 920 | B144: 06 | C144: 053 | D144: 000104 | E144: 2021 | F144: 060530001042021 | G144: 060530001042 | H144: Block 2021 | I144: G5040 | J144: U | K144: 78310 | L144: U | M144: S | N144: 6678 | O144: 0 | P144: +36.7000807 | Q144: -121.6276735 | R144: Served | S144: Salinas | U144: 0.00257800192 | V144: 10 | W144: 3 | X144: 3 | Y144: 0 | AA144: $84,632 | AB144: 104 | AC144: 6053000104 | AD144: 60530001042021
A145: 921 | B145: 06 | C145: 053 | D145: 000104 | E145: 2022 | F145: 060530001042022 | G145: 060530001042 | H145: Block 2022 | I145: G5040 | J145: U | K145: 78310 | L145: U | M145: S | N145: 4616 | O145: 0 | P145: +36.6998409 | Q145: -121.6243490 | R145: Served | S145: Salinas | U145: 0.00178213859 | V145: 0 | W145: 0 | X145: 0 | Y145: 0 | AA145: $84,632 | AB145: 104 | AC145: 6053000104 | AD145: 60530001042022
A146: 1444 | B146: 06 | C146: 053 | D146: 000104 | E146: 2023 | F146: 060530001042023 | G146: 060530001042 | H146: Block 2023 | I146: G5040 | J146: U | K146: 78310 | L146: U | M146: S | N146: 10842 | O146: 0 | P146: +36.7011017 | Q146: -121.6229203 | R146: Served | S146: Salinas | U146: 0.00418578609 | V146: 63 | W146: 17 | X146: 17 | Y146: 0 | AA146: $84,632 | AB146: 104 | AC146: 6053000104 | AD146: 60530001042023
A147: 800 | B147: 06 | C147: 053 | D147: 000200 | E147: 1000 | F147: 060530002001000 | G147: 060530002001 | H147: Block 1000 | I147: G5040 | J147: U | K147: 78310 | L147: U | M147: S | N147: 59920 | O147: 0 | P147: +36.7055435 | Q147: -121.6427780 | R147: Served | S147: Salinas | T147: 1 | U147: 0.02313270931 | V147: 508 | W147: 136 | X147: 130 | Y147: 6 | AA147: $58,401 | AB147: 200 | AC147: 6053000200 | AD147: 60530002001000
A148: 1261 | B148: 06 | C148: 053 | D148: 000200 | E148: 1001 | F148: 060530002001001 | G148: 060530002001 | H148: Block 1001 | I148: G5040 | J148: U | K148: 78310 | L148: U | M148: S | N148: 291517 | O148: 0 | P148: +36.7056653 | Q148: -121.6479598 | R148: Served | S148: Salinas | T148: 1 | U148: 0.1125423738 | V148: 637 | W148: 216 | X148: 197 | Y148: 19 | AA148: $58,401 | AB148: 200 | AC148: 6053000200 | AD148: 60530002001001
A149: 8952 | B149: 06 | C149: 053 | D149: 000200 | E149: 1002 | F149: 060530002001002 | G149: 060530002001 | H149: Block 1002 | I149: G5040 | J149: U | K149: 78310 | L149: U | M149: S | N149: 18890 | O149: 0 | P149: +36.7049493 | Q149: -121.6524240 | R149: Served | S149: Salinas | T149: 1 | U149: 0.00729258851 | V149: 28 | W149: 7 | X149: 7 | Y149: 0 | AA149: $58,401 | AB149: 200 | AC149: 6053000200 | AD149: 60530002001002
A150: 7738 | B150: 06 | C150: 053 | D150: 000200 | E150: 1003 | F150: 060530002001003 | G150: 060530002001 | H150: Block 1003 | I150: G5040 | J150: U | K150: 78310 | L150: U | M150: S | N150: 34491 | O150: 0 | P150: +36.7056721 | Q150: -121.6500249 | R150: Served | S150: Salinas | U150: 0.01331558625 | V150: 616 | W150: 187 | X150: 180 | Y150: 7 | AA150: $58,401 | AB150: 200 | AC150: 6053000200 | AD150: 60530002001003
A151: 8162 | B151: 06 | C151: 053 | D151: 000200 | E151: 1004 | F151: 060530002001004 | G151: 060530002001 | H151: Block 1004 | I151: G5040 | J151: U | K151: 78310 | L151: U | M151: S | N151: 37153 | O151: 0 | P151: +36.7046842 | Q151: -121.6496336 | R151: Served | S151: Salinas | U151: 0.01434334327 | V151: 0 | W151: 0 | X151: 0 | Y151: 0 | AA151: $58,401 | AB151: 200 | AC151: 6053000200 | AD151: 60530002001004
A152: 8632 | B152: 06 | C152: 053 | D152: 000200 | E152: 1005 | F152: 060530002001005 | G152: 060530002001 | H152: Block 1005 | I152: G5040 | J152: U | K152: 78310 | L152: U | M152: S | N152: 37764 | O152: 0 | P152: +36.7041837 | Q152: -121.6433588 | R152: Served | S152: Salinas | U152: 0.01457911806 | V152: 262 | W152: 62 | X152: 58 | Y152: 4 | AA152: $58,401 | AB152: 200 | AC152: 6053000200 | AD152: 60530002001005
A153: 8633 | B153: 06 | C153: 053 | D153: 000200 | E153: 1006 | F153: 060530002001006 | G153: 060530002001 | H153: Block 1006 | I153: G5040 | J153: U | K153: 78310 | L153: U | M153: S | N153: 15459 | O153: 0 | P153: +36.7036926 | Q153: -121.6422401 | R153: Served | S153: Salinas | U153: 0.00596810138 | V153: 71 | W153: 18 | X153: 18 | Y153: 0 | AA153: $58,401 | AB153: 200 | AC153: 6053000200 | AD153: 60530002001006
A154: 9035 | B154: 06 | C154: 053 | D154: 000200 | E154: 2000 | F154: 060530002002000 | G154: 060530002002 | H154: Block 2000 | I154: G5040 | J154: U | K154: 78310 | L154: U | M154: S | N154: 31590 | O154: 0 | P154: +36.7020712 | Q154: -121.6444612 | R154: Served | S154: Salinas | U154: 0.01219573414 | V154: 148 | W154: 36 | X154: 35 | Y154: 1 | AA154: $58,401 | AB154: 200 | AC154: 6053000200 | AD154: 60530002002000
A155: 2573 | B155: 06 | C155: 053 | D155: 000200 | E155: 2001 | F155: 060530002002001 | G155: 060530002002 | H155: Block 2001 | I155: G5040 | J155: U | K155: 78310 | L155: U | M155: S | N155: 34474 | O155: 0 | P155: +36.7029684 | Q155: -121.6482016 | R155: Served | S155: Salinas | U155: 0.01330885771 | V155: 143 | W155: 38 | X155: 37 | Y155: 1 | AA155: $58,401 | AB155: 200 | AC155: 6053000200 | AD155: 60530002002001
A156: 8951 | B156: 06 | C156: 053 | D156: 000200 | E156: 2002 | F156: 060530002002002 | G156: 060530002002 | H156: Block 2002 | I156: G5040 | J156: U | K156: 78310 | L156: U | M156: S | N156: 25414 | O156: 0 | P156: +36.7031181 | Q156: -121.6508662 | R156: Served | S156: Salinas | U156: 0.00981117881 | V156: 57 | W156: 23 | X156: 21 | Y156: 2 | AA156: $58,401 | AB156: 200 | AC156: 6053000200 | AD156: 60530002002002
A157: 10299 | B157: 06 | C157: 053 | D157: 000200 | E157: 2003 | F157: 060530002002003 | G157: 060530002002 | H157: Block 2003 | I157: G5040 | J157: U | K157: 78310 | L157: U | M157: S | N157: 26356 | O157: 0 | P157: +36.7030131 | Q157: -121.6520503 | R157: Served | S157: Salinas | U157: 0.01017499970 | V157: 66 | W157: 20 | X157: 18 | Y157: 2 | AA157: $58,401 | AB157: 200 | AC157: 6053000200 | AD157: 60530002002003
A158: 6600 | B158: 06 | C158: 053 | D158: 000200 | E158: 2004 | F158: 060530002002004 | G158: 060530002002 | H158: Block 2004 | I158: G5040 | J158: U | K158: 78310 | L158: U | M158: S | N158: 30639 | O158: 0 | P158: +36.7005724 | Q158: -121.6515722 | R158: Served | S158: Salinas | U158: 0.01182829325 | V158: 53 | W158: 13 | X158: 13 | Y158: 0 | AA158: $58,401 | AB158: 200 | AC158: 6053000200 | AD158: 60530002002004
A159: 799 | B159: 06 | C159: 053 | D159: 000200 | E159: 2005 | F159: 060530002002005 | G159: 060530002002 | H159: Block 2005 | I159: G5040 | J159: U | K159: 78310 | L159: U | M159: S | N159: 33600 | O159: 0 | P159: +36.7005157 | Q159: -121.6504338 | R159: Served | S159: Salinas | U159: 0.01297163828 | V159: 107 | W159: 36 | X159: 36 | Y159: 0 | AA159: $58,401 | AB159: 200 | AC159: 6053000200 | AD159: 60530002002005
A160: 8627 | B160: 06 | C160: 053 | D160: 000200 | E160: 2006 | F160: 060530002002006 | G160: 060530002002 | H160: Block 2006 | I160: G5040 | J160: U | K160: 78310 | L160: U | M160: S | N160: 15480 | O160: 0 | P160: +36.7020361 | Q160: -121.6492989 | R160: Served | S160: Salinas | U160: 0.00597602028 | V160: 38 | W160: 16 | X160: 14 | Y160: 2 | AA160: $58,401 | AB160: 200 | AC160: 6053000200 | AD160: 60530002002006
A161: 3992 | B161: 06 | C161: 053 | D161: 000200 | E161: 2007 | F161: 060530002002007 | G161: 060530002002 | H161: Block 2007 | I161: G5040 | J161: U | K161: 78310 | L161: U | M161: S | N161: 5792 | O161: 0 | P161: +36.7025763 | Q161: -121.6498820 | R161: Served | S161: Salinas | U161: 0.00223619038 | V161: 5 | W161: 4 | X161: 3 | Y161: 1 | AA161: $58,401 | AB161: 200 | AC161: 6053000200 | AD161: 60530002002007
A162: 8629 | B162: 06 | C162: 053 | D162: 000200 | E162: 2008 | F162: 060530002002008 | G162: 060530002002 | H162: Block 2008 | I162: G5040 | J162: U | K162: 78310 | L162: U | M162: S | N162: 20029 | O162: 0 | P162: +36.7013086 | Q162: -121.6472180 | R162: Served | S162: Salinas | U162: 0.00773235806 | V162: 42 | W162: 21 | X162: 19 | Y162: 2 | AA162: $58,401 | AB162: 200 | AC162: 6053000200 | AD162: 60530002002008
A163: 8628 | B163: 06 | C163: 053 | D163: 000200 | E163: 2009 | F163: 060530002002009 | G163: 060530002002 | H163: Block 2009 | I163: G5040 | J163: U | K163: 78310 | L163: U | M163: S | N163: 25062 | O163: 0 | P163: +36.7014526 | Q163: -121.6486710 | R163: Served | S163: Salinas | U163: 0.00967550614 | V163: 68 | W163: 28 | X163: 28 | Y163: 0 | AA163: $58,401 | AB163: 200 | AC163: 6053000200 | AD163: 60530002002009
A164: 2575 | B164: 06 | C164: 053 | D164: 000200 | E164: 2010 | F164: 060530002002010 | G164: 060530002002 | H164: Block 2010 | I164: G5040 | J164: U | K164: 78310 | L164: U | M164: S | N164: 21134 | O164: 0 | P164: +36.6993583 | Q164: -121.6472018 | R164: Served | S164: Salinas | U164: 0.00815891900 | V164: 54 | W164: 23 | X164: 22 | Y164: 1 | AA164: $58,401 | AB164: 200 | AC164: 6053000200 | AD164: 60530002002010
A165: 2878 | B165: 06 | C165: 053 | D165: 000200 | E165: 2011 | F165: 060530002002011 | G165: 060530002002 | H165: Block 2011 | I165: G5040 | J165: U | K165: 78310 | L165: U | M165: S | N165: 24903 | O165: 0 | P165: +36.6997568 | Q165: -121.6482307 | R165: Served | S165: Salinas | U165: 0.00961394477 | V165: 73 | W165: 26 | X165: 25 | Y165: 1 | AA165: $58,401 | AB165: 200 | AC165: 6053000200 | AD165: 60530002002011
A166: 2574 | B166: 06 | C166: 053 | D166: 000200 | E166: 2012 | F166: 060530002002012 | G166: 060530002002 | H166: Block 2012 | I166: G5040 | J166: U | K166: 78310 | L166: U | M166: S | N166: 18264 | O166: 0 | P166: +36.6996577 | Q166: -121.6492363 | R166: Served | S166: Salinas | U166: 0.00705082625 | V166: 81 | W166: 21 | X166: 21 | Y166: 0 | AA166: $58,401 | AB166: 200 | AC166: 6053000200 | AD166: 60530002002012
A167: 8630 | B167: 06 | C167: 053 | D167: 000200 | E167: 2013 | F167: 060530002002013 | G167: 060530002002 | H167: Block 2013 | I167: G5040 | J167: U | K167: 78310 | L167: U | M167: S | N167: 30412 | O167: 0 | P167: +36.7012667 | Q167: -121.6447567 | R167: Served | S167: Salinas | U167: 0.01174069058 | V167: 123 | W167: 38 | X167: 35 | Y167: 3 | AA167: $58,401 | AB167: 200 | AC167: 6053000200 | AD167: 60530002002013
A168: 78 | B168: 06 | C168: 053 | D168: 000200 | E168: 2014 | F168: 060530002002014 | G168: 060530002002 | H168: Block 2014 | I168: G5040 | J168: U | K168: 78310 | L168: U | M168: S | N168: 30097 | O168: 0 | P168: +36.7004709 | Q168: -121.6450059 | R168: Served | S168: Salinas | U168: 0.01161929375 | V168: 88 | W168: 36 | X168: 34 | Y168: 2 | AA168: $58,401 | AB168: 200 | AC168: 6053000200 | AD168: 60530002002014
A169: 803 | B169: 06 | C169: 053 | D169: 000200 | E169: 2015 | F169: 060530002002015 | G169: 060530002002 | H169: Block 2015 | I169: G5040 | J169: U | K169: 78310 | L169: U | M169: S | N169: 21751 | O169: 0 | P169: +36.6989957 | Q169: -121.6452378 | R169: Served | S169: Salinas | U169: 0.00839713529 | V169: 73 | W169: 25 | X169: 24 | Y169: 1 | AA169: $58,401 | AB169: 200 | AC169: 6053000200 | AD169: 60530002002015
A170: 79 | B170: 06 | C170: 053 | D170: 000200 | E170: 2016 | F170: 060530002002016 | G170: 060530002002 | H170: Block 2016 | I170: G5040 | J170: U | K170: 78310 | L170: U | M170: S | N170: 22205 | O170: 0 | P170: +36.6992352 | Q170: -121.6462167 | R170: Served | S170: Salinas | U170: 0.00857239745 | V170: 84 | W170: 22 | X170: 21 | Y170: 1 | AA170: $58,401 | AB170: 200 | AC170: 6053000200 | AD170: 60530002002016
A171: 2576 | B171: 06 | C171: 053 | D171: 000200 | E171: 2017 | F171: 060530002002017 | G171: 060530002002 | H171: Block 2017 | I171: G5040 | J171: U | K171: 78310 | L171: U | M171: S | N171: 22651 | O171: 0 | P171: +36.6987558 | Q171: -121.6442454 | R171: Served | S171: Salinas | U171: 0.00874443812 | V171: 80 | W171: 27 | X171: 26 | Y171: 1 | AA171: $58,401 | AB171: 200 | AC171: 6053000200 | AD171: 60530002002017
A172: 8639 | B172: 06 | C172: 053 | D172: 000200 | E172: 3000 | F172: 060530002003000 | G172: 060530002003 | H172: Block 3000 | I172: G5040 | J172: U | K172: 78310 | L172: U | M172: S | N172: 36340 | O172: 0 | P172: +36.7032003 | Q172: -121.6322760 | R172: Served | S172: Salinas | U172: 0.01402931669 | V172: 137 | W172: 31 | X172: 29 | Y172: 2 | AA172: $58,401 | AB172: 200 | AC172: 6053000200 | AD172: 60530002003000
A173: 8641 | B173: 06 | C173: 053 | D173: 000200 | E173: 3001 | F173: 060530002003001 | G173: 060530002003 | H173: Block 3001 | I173: G5040 | J173: U | K173: 78310 | L173: U | M173: S | N173: 14712 | O173: 0 | P173: +36.7024842 | Q173: -121.6334627 | R173: Served | S173: Salinas | U173: 0.00567949659 | V173: 78 | W173: 20 | X173: 19 | Y173: 1 | AA173: $58,401 | AB173: 200 | AC173: 6053000200 | AD173: 60530002003001
A174: 2888 | B174: 06 | C174: 053 | D174: 000200 | E174: 3002 | F174: 060530002003002 | G174: 060530002003 | H174: Block 3002 | I174: G5040 | J174: U | K174: 78310 | L174: U | M174: S | N174: 23882 | O174: 0 | P174: +36.7041269 | Q174: -121.6346171 | R174: Served | S174: Salinas | U174: 0.00921978009 | V174: 109 | W174: 28 | X174: 27 | Y174: 1 | AA174: $58,401 | AB174: 200 | AC174: 6053000200 | AD174: 60530002003002
A175: 80 | B175: 06 | C175: 053 | D175: 000200 | E175: 3003 | F175: 060530002003003 | G175: 060530002003 | H175: Block 3003 | I175: G5040 | J175: U | K175: 78310 | L175: U | M175: S | N175: 94524 | O175: 0 | P175: +36.7035914 | Q175: -121.6381077 | R175: Served | S175: Salinas | U175: 0.03649184223 | V175: 246 | W175: 60 | X175: 55 | Y175: 5 | AA175: $58,401 | AB175: 200 | AC175: 6053000200 | AD175: 60530002003003
A176: 2577 | B176: 06 | C176: 053 | D176: 000200 | E176: 3004 | F176: 060530002003004 | G176: 060530002003 | H176: Block 3004 | I176: G5040 | J176: U | K176: 78310 | L176: U | M176: S | N176: 24751 | O176: 0 | P176: +36.7050152 | Q176: -121.6401048 | R176: Served | S176: Salinas | U176: 0.00955534901 | V176: 106 | W176: 27 | X176: 25 | Y176: 2 | AA176: $58,401 | AB176: 200 | AC176: 6053000200 | AD176: 60530002003004
A177: 4502 | B177: 06 | C177: 053 | D177: 000200 | E177: 3005 | F177: 060530002003005 | G177: 060530002003 | H177: Block 3005 | I177: G5040 | J177: U | K177: 78310 | L177: U | M177: S | N177: 26095 | O177: 0 | P177: +36.7028736 | Q177: -121.6364080 | R177: Served | S177: Salinas | T177: 1 | U177: 0.01007419102 | V177: 143 | W177: 31 | X177: 30 | Y177: 1 | AA177: $58,401 | AB177: 200 | AC177: 6053000200 | AD177: 60530002003005
A178: 82 | B178: 06 | C178: 053 | D178: 000200 | E178: 3006 | F178: 060530002003006 | G178: 060530002003 | H178: Block 3006 | I178: G5040 | J178: U | K178: 78310 | L178: U | M178: S | N178: 24339 | O178: 0 | P178: +36.7025997 | Q178: -121.6355217 | R178: Served | S178: Salinas | U178: 0.00939614878 | V178: 100 | W178: 30 | X178: 27 | Y178: 3 | AA178: $58,401 | AB178: 200 | AC178: 6053000200 | AD178: 60530002003006
A179: 469 | B179: 06 | C179: 053 | D179: 000200 | E179: 3007 | F179: 060530002003007 | G179: 060530002003 | H179: Block 3007 | I179: G5040 | J179: U | K179: 78310 | L179: U | M179: S | N179: 24282 | O179: 0 | P179: +36.7023825 | Q179: -121.6346335 | R179: Served | S179: Salinas | U179: 0.00937427000 | V179: 124 | W179: 30 | X179: 29 | Y179: 1 | AA179: $58,401 | AB179: 200 | AC179: 6053000200 | AD179: 60530002003007
A180: 809 | B180: 06 | C180: 053 | D180: 000200 | E180: 3008 | F180: 060530002003008 | G180: 060530002003 | H180: Block 3008 | I180: G5040 | J180: U | K180: 78310 | L180: U | M180: S | N180: 14527 | O180: 0 | P180: +36.7007110 | Q180: -121.6349984 | R180: Served | S180: Salinas | U180: 0.00560843233 | V180: 68 | W180: 16 | X180: 15 | Y180: 1 | AA180: $58,401 | AB180: 200 | AC180: 6053000200 | AD180: 60530002003008
A181: 8270 | B181: 06 | C181: 053 | D181: 000200 | E181: 3009 | F181: 060530002003009 | G181: 060530002003 | H181: Block 3009 | I181: G5040 | J181: U | K181: 78310 | L181: U | M181: S | N181: 18996 | O181: 0 | P181: +36.7012526 | Q181: -121.6372781 | R181: Served | S181: Salinas | U181: 0.00733350382 | V181: 133 | W181: 24 | X181: 22 | Y181: 2 | AA181: $58,401 | AB181: 200 | AC181: 6053000200 | AD181: 60530002003009
A182: 801 | B182: 06 | C182: 053 | D182: 000200 | E182: 3010 | F182: 060530002003010 | G182: 060530002003 | H182: Block 3010 | I182: G5040 | J182: U | K182: 78310 | L182: U | M182: S | N182: 29037 | O182: 0 | P182: +36.7020121 | Q182: -121.6405214 | R182: Served | S182: Salinas | U182: 0.01121008254 | V182: 204 | W182: 36 | X182: 33 | Y182: 3 | AA182: $58,401 | AB182: 200 | AC182: 6053000200 | AD182: 60530002003010
A183: 2881 | B183: 06 | C183: 053 | D183: 000200 | E183: 3011 | F183: 060530002003011 | G183: 060530002003 | H183: Block 3011 | I183: G5040 | J183: U | K183: 78310 | L183: U | M183: S | N183: 15963 | O183: 0 | P183: +36.7033980 | Q183: -121.6413458 | R183: Served | S183: Salinas | U183: 0.00616266390 | V183: 68 | W183: 17 | X183: 17 | Y183: 0 | AA183: $58,401 | AB183: 200 | AC183: 6053000200 | AD183: 60530002003011
A184: 2882 | B184: 06 | C184: 053 | D184: 000200 | E184: 3012 | F184: 060530002003012 | G184: 060530002003 | H184: Block 3012 | I184: G5040 | J184: U | K184: 78310 | L184: U | M184: S | N184: 24834 | O184: 0 | P184: +36.7036575 | Q184: -121.6400933 | R184: Served | S184: Salinas | U184: 0.00958736450 | V184: 145 | W184: 30 | X184: 30 | Y184: 0 | AA184: $58,401 | AB184: 200 | AC184: 6053000200 | AD184: 60530002003012
A185: 8640 | B185: 06 | C185: 053 | D185: 000200 | E185: 4000 | F185: 060530002004000 | G185: 060530002004 | H185: Block 4000 | I185: G5040 | J185: U | K185: 78310 | L185: U | M185: S | N185: 16981 | O185: 0 | P185: +36.6992261 | Q185: -121.6357275 | R185: Served | S185: Salinas | U185: 0.00655548897 | V185: 63 | W185: 14 | X185: 13 | Y185: 1 | AA185: $58,401 | AB185: 200 | AC185: 6053000200 | AD185: 60530002004000
A186: 4503 | B186: 06 | C186: 053 | D186: 000200 | E186: 4001 | F186: 060530002004001 | G186: 060530002004 | H186: Block 4001 | I186: G5040 | J186: U | K186: 78310 | L186: U | M186: S | N186: 20626 | O186: 0 | P186: +36.6994563 | Q186: -121.6364220 | R186: Served | S186: Salinas | U186: 0.00796292833 | V186: 136 | W186: 27 | X186: 27 | Y186: 0 | AA186: $58,401 | AB186: 200 | AC186: 6053000200 | AD186: 60530002004001
A187: 83 | B187: 06 | C187: 053 | D187: 000200 | E187: 4002 | F187: 060530002004002 | G187: 060530002004 | H187: Block 4002 | I187: G5040 | J187: U | K187: 78310 | L187: U | M187: S | N187: 18496 | O187: 0 | P187: +36.6997776 | Q187: -121.6371681 | R187: Served | S187: Salinas | U187: 0.00714068849 | V187: 117 | W187: 23 | X187: 21 | Y187: 2 | AA187: $58,401 | AB187: 200 | AC187: 6053000200 | AD187: 60530002004002
A188: 2966 | B188: 06 | C188: 053 | D188: 000200 | E188: 4003 | F188: 060530002004003 | G188: 060530002004 | H188: Block 4003 | I188: G5040 | J188: U | K188: 78310 | L188: U | M188: S | N188: 16082 | O188: 0 | P188: +36.7000818 | Q188: -121.6379260 | R188: Served | S188: Salinas | U188: 0.00620872828 | V188: 110 | W188: 19 | X188: 19 | Y188: 0 | AA188: $58,401 | AB188: 200 | AC188: 6053000200 | AD188: 60530002004003
A189: 8269 | B189: 06 | C189: 053 | D189: 000200 | E189: 4004 | F189: 060530002004004 | G189: 060530002004 | H189: Block 4004 | I189: G5040 | J189: U | K189: 78310 | L189: U | M189: S | N189: 14033 | O189: 0 | P189: +36.7003941 | Q189: -121.6386827 | R189: Served | S189: Salinas | U189: 0.00541746616 | V189: 67 | W189: 16 | X189: 16 | Y189: 0 | AA189: $58,401 | AB189: 200 | AC189: 6053000200 | AD189: 60530002004004
A190: 804 | B190: 06 | C190: 053 | D190: 000200 | E190: 4005 | F190: 060530002004005 | G190: 060530002004 | H190: Block 4005 | I190: G5040 | J190: U | K190: 78310 | L190: U | M190: S | N190: 20486 | O190: 0 | P190: +36.7012296 | Q190: -121.6402584 | R190: Served | S190: Salinas | U190: 0.00790894881 | V190: 112 | W190: 24 | X190: 23 | Y190: 1 | AA190: $58,401 | AB190: 200 | AC190: 6053000200 | AD190: 60530002004005
A191: 802 | B191: 06 | C191: 053 | D191: 000200 | E191: 4006 | F191: 060530002004006 | G191: 060530002004 | H191: Block 4006 | I191: G5040 | J191: U | K191: 78310 | L191: U | M191: S | N191: 69473 | O191: 0 | P191: +36.7003246 | Q191: -121.6414657 | R191: Served | S191: Salinas | T191: 1 | U191: 0.02682049926 | V191: 187 | W191: 38 | X191: 37 | Y191: 1 | AA191: $58,401 | AB191: 200 | AC191: 6053000200 | AD191: 60530002004006
A192: 3993 | B192: 06 | C192: 053 | D192: 000200 | E192: 4007 | F192: 060530002004007 | G192: 060530002004 | H192: Block 4007 | I192: G5040 | J192: U | K192: 78310 | L192: U | M192: S | N192: 22277 | O192: 0 | P192: +36.6978098 | Q192: -121.6390938 | R192: Served | S192: Salinas | U192: 0.00860018818 | V192: 161 | W192: 27 | X192: 25 | Y192: 2 | AA192: $58,401 | AB192: 200 | AC192: 6053000200 | AD192: 60530002004007
A193: 2965 | B193: 06 | C193: 053 | D193: 000200 | E193: 4008 | F193: 060530002004008 | G193: 060530002004 | H193: Block 4008 | I193: G5040 | J193: U | K193: 78310 | L193: U | M193: S | N193: 19509 | O193: 0 | P193: +36.6984242 | Q193: -121.6395871 | R193: Served | S193: Salinas | U193: 0.00753175640 | V193: 110 | W193: 23 | X193: 19 | Y193: 4 | AA193: $58,401 | AB193: 200 | AC193: 6053000200 | AD193: 60530002004008
A194: 8268 | B194: 06 | C194: 053 | D194: 000200 | E194: 4009 | F194: 060530002004009 | G194: =LEFT(F194,12) -> 060530002004 | H194: Block 4009 | I194: G5040 | J194: U | K194: 78310 | L194: U | M194: S | N194: 13686 | O194: 0 | P194: +36.6990979 | Q194: -121.6399351 | R194: Served | S194: Salinas | U194: 0.00528342943 | V194: 84 | W194: 15 | X194: 14 | Y194: 1 | AA194: $58,401 | AB194: 200 | AC194: 6053000200 | AD194: 60530002004009
A195: 805 | B195: 06 | C195: 053 | D195: 000200 | E195: 4010 | F195: 060530002004010 | G195: 060530002004 | H195: Block 4010 | I195: G5040 | J195: U | K195: 78310 | L195: U | M195: S | N195: 19662 | O195: 0 | P195: +36.6989835 | Q195: -121.6421130 | R195: Served | S195: Salinas | U195: 0.00759081066 | V195: 135 | W195: 24 | X195: 22 | Y195: 2 | AA195: $58,401 | AB195: 200 | AC195: 6053000200 | AD195: 60530002004010
A196: 2883 | B196: 06 | C196: 053 | D196: 000200 | E196: 4011 | F196: 060530002004011 | G196: 060530002004 | H196: Block 4011 | I196: G5040 | J196: U | K196: 78310 | L196: U | M196: S | N196: 21797 | O196: 0 | P196: +36.6982845 | Q196: -121.6421873 | R196: Served | S196: Salinas | U196: 0.00841505984 | V196: 130 | W196: 26 | X196: 26 | Y196: 0 | AA196: $58,401 | AB196: 200 | AC196: 6053000200 | AD196: 60530002004011
A197: 81 | B197: 06 | C197: 053 | D197: 000200 | E197: 4012 | F197: 060530002004012 | G197: 060530002004 | H197: Block 4012 | I197: G5040 | J197: U | K197: 78310 | L197: U | M197: S | N197: 28882 | O197: 0 | P197: +36.6975386 | Q197: -121.6421402 | R197: Served | S197: Salinas | U197: 0.01115021015 | V197: 136 | W197: 34 | X197: 31 | Y197: 3 | AA197: $58,401 | AB197: 200 | AC197: 6053000200 | AD197: 60530002004012
A198: 2885 | B198: 06 | C198: 053 | D198: 000200 | E198: 4013 | F198: 060530002004013 | G198: 060530002004 | H198: Block 4013 | I198: G5040 | J198: U | K198: 78310 | L198: U | M198: S | N198: 13016 | O198: 0 | P198: +36.6972489 | Q198: -121.6376984 | R198: Served | S198: Salinas | U198: 0.00502495570 | V198: 39 | W198: 11 | X198: 10 | Y198: 1 | AA198: $58,401 | AB198: 200 | AC198: 6053000200 | AD198: 60530002004013
A199: 9038 | B199: 06 | C199: 053 | D199: 000200 | E199: 4014 | F199: 060530002004014 | G199: 060530002004 | H199: Block 4014 | I199: G5040 | J199: U | K199: 78310 | L199: U | M199: S | N199: 20138 | O199: 0 | P199: +36.6975215 | Q199: -121.6383345 | R199: Served | S199: Salinas | U199: 0.00777427711 | V199: 131 | W199: 24 | X199: 24 | Y199: 0 | AA199: $58,401 | AB199: 200 | AC199: 6053000200 | AD199: 60530002004014
A200: 5299 | B200: 06 | C200: 053 | D200: 000300 | E200: 1000 | F200: 060530003001000 | G200: 060530003001 | H200: Block 1000 | I200: G5040 | J200: U | K200: 78310 | L200: U | M200: S | N200: 56197 | O200: 0 | P200: +36.7066038 | Q200: -121.6546111 | R200: Served | S200: Salinas | U200: 0.02169530674 | V200: 313 | W200: 116 | X200: 103 | Y200: 13 | AA200: $55,345 | AB200: 300 | AC200: 6053000300 | AD200: 60530003001000
... 2050 more rows

Sheet Income
A1: Census Tract | B1: Census Tract - numeric | C1: Households | D1: Median Income
A2: 06087100100 | B2: 6087100100 | C2: 732 | D2: 120511
A3: 06087100200 | B3: 6087100200 | C3: 2622 | D3: 58393
A4: 06087100300 | B4: 6087100300 | C4: 1216 | D4: 96339
A5: 06087100400 | B5: 6087100400 | C5: 449 | D5: 51678
A6: 06087100500 | B6: 6087100500 | C6: 2072 | D6: 91288
A7: 06087100600 | B7: 6087100600 | C7: 1265 | D7: 82569
A8: 06087100700 | B8: 6087100700 | C8: 955 | D8: 40813
A9: 06087100800 | B9: 6087100800 | C9: 3046 | D9: 54092
A10: 06087100900 | B10: 6087100900 | C10: 1940 | D10: 55818
A11: 06087101000 | B11: 6087101000 | C11: 3405 | D11: 32804
A12: 06087101100 | B12: 6087101100 | C12: 2203 | D12: 71179
A13: 06087101200 | B13: 6087101200 | C13: 1239 | D13: 75509
A14: 06087110100 | B14: 6087110100 | C14: 2423 | D14: 42201
A15: 06087110200 | B15: 6087110200 | C15: 2151 | D15: 55091
A16: 06087110300 | B16: 6087110300 | C16: 1748 | D16: 32664
A17: 06087110400 | B17: 6087110400 | C17: 1910 | D17: 57450
A18: 06087110501 | B18: 6087110501 | C18: 1984 | D18: 36711
A19: 06087110502 | B19: 6087110502 | C19: 1470 | D19: 48561
A20: 06087110600 | B20: 6087110600 | C20: 2276 | D20: 49669
A21: 06087110700 | B21: 6087110700 | C21: 850 | D21: 56181
A22: 06087120200 | B22: 6087120200 | C22: 1572 | D22: 87606
A23: 06087120301 | B23: 6087120301 | C23: 2073 | D23: 82025
A24: 06087123002 | B24: 6087120302 | C24: 1033 | D24: 75139
A25: 06087120400 | B25: 6087120400 | C25: 2153 | D25: 90110
A26: 06087120500 | B26: 6087120500 | C26: 2459 | D26: 89848
A27: 06087120600 | B27: 6087120600 | C27: 1881 | D27: 84120
A28: 06087120700 | B28: 6087120700 | C28: 1697 | D28: 73472
A29: 06087120800 | B29: 6087120800 | C29: 2405 | D29: 102865
A30: 06087120900 | B30: 6087120900 | C30: 3127 | D30: 115625
A31: 06087121000 | B31: 6087121000 | C31: 1258 | D31: 103542
A32: 06087121100 | B32: 6087121100 | C32: 1166 | D32: 84545
A33: 06087121200 | B33: 6087121200 | C33: 2288 | D33: 111905
A34: 06087121300 | B34: 6087121300 | C34: 1609 | D34: 68359
A35: 06087121401 | B35: 6087121401 | C35: 903 | D35: 53429
A36: 06087121402 | B36: 6087121402 | C36: 1590 | D36: 60085
A37: 06087121403 | B37: 6087121403 | C37: 1352 | D37: 60395
A38: 06087121500 | B38: 6087121500 | C38: 2124 | D38: 51615
A39: 06087121600 | B39: 6087121600 | C39: 2596 | D39: 53779
A40: 06087121700 | B40: 6087121700 | C40: 2820 | D40: 54381
A41: 06087121800 | B41: 6087121800 | C41: 2082 | D41: 58627
A42: 06087122001 | B42: 6087122001 | C42: 1812 | D42: 79583
A43: 06087122002 | B43: 6087122002 | C43: 1368 | D43: 94107
A44: 06087122003 | B44: 6087122003 | C44: 2771 | D44: 72804
A45: 06087122100 | B45: 6087122100 | C45: 1420 | D45: 58088
A46: 06087122201 | B46: 6087122201 | C46: 2785 | D46: 80096
A47: 06087122202 | B47: 6087122202 | C47: 855 | D47: 97431
A48: 06087122203 | B48: 6087122203 | C48: 1466 | D48: 101987
A49: 06087122300 | B49: 6087122300 | C49: 1436 | D49: 79143
A50: 06087122400 | B50: 6087122400 | C50: 2509 | D50: 75443
A51: 06087122500 | B51: 6087122500 | C51: 1523 | D51: 77461
A52: 06087123100 | B52: 6087123100 | C52: 802 | D52: 55750
A53: 06087123300 | B53: 6087123300 | C53: 419 | D53: 60179
A54: 06087990100 | B54: 6087990100 | C54: 0
A55: 06053000101 | B55: 6053000101 | C55: 627 | D55: 60655
A56: 06053000102 | B56: 6053000102 | C56: 2287 | D56: 77688
A57: 06053000103 | B57: 6053000103 | C57: 1323 | D57: 54406
A58: 06053000104 | B58: 6053000104 | C58: 991 | D58: 84632
A59: 06053000200 | B59: 6053000200 | C59: 1752 | D59: 58401
A60: 06053000300 | B60: 6053000300 | C60: 1290 | D60: 55345
A61: 06053000400 | B61: 6053000400 | C61: 2176 | D61: 40449
A62: 06053000501 | B62: 6053000501 | C62: 997 | D62: 32125
A63: 06053000502 | B63: 6053000502 | C63: 1013 | D63: 45855
A64: 06053000600 | B64: 6053000600 | C64: 1439 | D64: 36769
A65: 06053000701 | B65: 6053000701 | C65: 1246 | D65: 29434
A66: 06053000702 | B66: 6053000702 | C66: 1280 | D66: 35676
A67: 06053000800 | B67: 6053000800 | C67: 1235 | D67: 41970
A68: 06053000900 | B68: 6053000900 | C68: 1190 | D68: 42336
A69: 06053001200 | B69: 6053001200 | C69: 1090 | D69: 60347
A70: 06053001300 | B70: 6053001300 | C70: 900 | D70: 21176
A71: 06053001400 | B71: 6053001400 | C71: 997 | D71: 49726
A72: 06053001500 | B72: 6053001500 | C72: 2440 | D72: 62734
A73: 06053001600 | B73: 6053001600 | C73: 975 | D73: 61632
A74: 06053001700 | B74: 6053001700 | C74: 1267 | D74: 50286
A75: 06053001801 | B75: 6053001801 | C75: 1159 | D75: 64525
A76: 06053001802 | B76: 6053001802 | C76: 1554 | D76: 53813
A77: 06053010101 | B77: 6053010101 | C77: 1079 | D77: 41281
A78: 06053010102 | B78: 6053010102 | C78: 996 | D78: 68750
A79: 06053010202 | B79: 6053010202 | C79: 1302 | D79: 76250
A80: 06053010305 | B80: 6053010305 | C80: 1532 | D80: 73864
A81: 06053010306 | B81: 6053010306 | C81: 415 | D81: 63466
A82: 06053000104 | B82: 6053010400 | C82: 1413 | D82: 52771
A83: 06053010501 | B83: 6053010501 | C83: 2145 | D83: 87025
A84: 06053010504 | B84: 6053010504 | C84: 1410 | D84: 50808
A85: 06053010505 | B85: 6053010505 | C85: 1388 | D85: 54477
A86: 06053010506 | B86: 6053010506 | C86: 1433 | D86: 35352
A87: 06053010603 | B87: 6053010603 | C87: 2062 | D87: 81605
A88: 06053010604 | B88: 6053010604 | C88: 1349 | D88: 68299
A89: 06053010605 | B89: 6053010605 | C89: 888 | D89: 61786
A90: 06053010606 | B90: 6053010606 | C90: 1561 | D90: 58363
A91: 06053010607 | B91: 6053010607 | C91: 880 | D91: 45156
A92: 06053010608 | B92: 6053010608 | C92: 553 | D92: 53147
A93: 06053010701 | B93: 6053010701 | C93: 2468 | D93: 109541
A94: 06053010702 | B94: 6053010702 | C94: 1513 | D94: 131542
A95: 06053010804 | B95: 6053010804 | C95: 1271 | D95: 50960
A96: 06053010900 | B96: 6053010900 | C96: 10
A97: 06053011000 | B97: 6053011000 | C97: 2398 | D97: 81129
A98: 06053011101 | B98: 6053011101 | C98: 1334 | D98: 37340
A99: 06053011102 | B99: 6053011102 | C99: 2667 | D99: 58721
A100: 06053011202 | B100: 6053011202 | C100: 1453 | D100: 53695
A101: 06053011203 | B101: 6053011203 | C101: 1456 | D101: 59423
A102: 06053011204 | B102: 6053011204 | C102: 752 | D102: 54167
A103: 06053011302 | B103: 6053011302 | C103: 1251 | D103: 40598
A104: 06053011303 | B104: 6053011303 | C104: 1160 | D104: 63000
A105: 06053011304 | B105: 6053011304 | C105: 1329 | D105: 55546
A106: 06053011400 | B106: 6053011400 | C106: 1163 | D106: 63309
A107: 06053011502 | B107: 6053011502 | C107: 428 | D107: 69474
A108: 06053011602 | B108: 6053011602 | C108: 2585 | D108: 108558
A109: 06053011604 | B109: 6053011604 | C109: 1059 | D109: 103274
A110: 06053011700 | B110: 6053011700 | C110: 1674 | D110: 97593
A111: 06053011801 | B111: 6053011801 | C111: 893 | D111: 65313
A112: 06053011802 | B112: 6053011802 | C112: 937 | D112: 99598
A113: 06053011900 | B113: 6053011900 | C113: 1869 | D113: 107243
A114: 06053012000 | B114: 6053012000 | C114: 1343 | D114: 70036
A115: 06053012100 | B115: 6053012100 | C115: 1008 | D115: 81848
A116: 06053012200 | B116: 6053012200 | C116: 1177 | D116: 63736
A117: 06053012302 | B117: 6053012302 | C117: 922 | D117: 68924
A118: 06053012401 | B118: 6053012401 | C118: 996 | D118: 49824
A119: 06053012402 | B119: 6053012402 | C119: 1565 | D119: 74215
A120: 06053012502 | B120: 6053012502 | C120: 2677 | D120: 61825
A121: 06053012600 | B121: 6053012600 | C121: 73 | D121: 64125
A122: 06053012700 | B122: 6053012700 | C122: 1754 | D122: 45988
A123: 06053012800 | B123: 6053012800 | C123: 2438 | D123: 76117
A124: 06053013000 | B124: 6053013000 | C124: 1840 | D124: 61146
A125: 06053013100 | B125: 6053013100 | C125: 635 | D125: 85360
A126: 06053013200 | B126: 6053013200 | C126: 1655 | D126: 117266
A127: 06053013300 | B127: 6053013300 | C127: 2645 | D127: 57252
A128: 06053013400 | B128: 6053013400 | C128: 661 | D128: 80417
A129: 06053013500 | B129: 6053013500 | C129: 1676 | D129: 66929
A130: 06053013600 | B130: 6053013600 | C130: 1394 | D130: 49545
A131: 06053013700 | B131: 6053013700 | C131: 1364 | D131: 40082
A132: 06053013800 | B132: 6053013800 | C132: 1665 | D132: 64090
A133: 06053013900 | B133: 6053013900 | C133: 901 | D133: 55066
A134: 06053014000 | B134: 6053014000 | C134: 834 | D134: 49857
A135: 06053014102 | B135: 6053014102 | C135: 670 | D135: 56111
A136: 06053014104 | B136: 6053014104 | C136: 0
A137: 06053014105 | B137: 6053014105 | C137: 1137 | D137: 56435
A138: 06053014107 | B138: 6053014107 | C138: 2495 | D138: 69073
A139: 06053014201 | B139: 6053014201 | C139: 1672 | D139: 48152
A140: 06053014202 | B140: 6053014202 | C140: 1559 | D140: 48244
A141: 06053014301 | B141: 6053014301 | C141: 1388 | D141: 71944
A142: 06053014302 | B142: 6053014302 | C142: 1473 | D142: 59018
A143: 06053014500 | B143: 6053014500 | C143: 1474 | D143: 60833
A144: 06053014601 | B144: 6053014601 | C144: 1216 | D144: 57763
A145: 06053014700 | B145: 6053014700 | C145: 2153 | D145: 65208
A146: 06053014800 | B146: 6053014800 | C146: 1359 | D146: 65771
A147: 06053980000 | B147: 6053980000 | C147: 0
A148: 06053990000 | B148: 6053990000 | C148: 0
A149: 06069000100 | B149: 6069000100 | C149: 1579 | D149: 78083
A150: 06069000200 | B150: 6069000200 | C150: 1779 | D150: 61650
A151: 06069000300 | B151: 6069000300 | C151: 929 | D151: 44934
A152: 06069000400 | B152: 6069000400 | C152: 1895 | D152: 51860
A153: 06069000501 | B153: 6069000501 | C153: 1604 | D153: 86711
A154: 06069000502 | B154: 6069000502 | C154: 1724 | D154: 65446
A155: 06069000600 | B155: 6069000600 | C155: 2562 | D155: 80000
A156: 06069000701 | B156: 6069000701 | C156: 996 | D156: 52500
A157: 06069000702 | B157: 6069000702 | C157: 1696 | D157: 55500
A158: 06069000801 | B158: 6069000801 | C158: 1262 | D158: 95896
A159: 06069000802 | B159: 6069000802 | C159: 814 | D159: 78333

Sheet Pivot - communities
A1: SERVICE | B1: (Multiple Items)
A2: Exclude Flag | B2: (Multiple Items)
A3: COUNTYFP10 | B3: 069
B5: Values
A6: Row Labels | B6: Sum of POP2010 | C6: Sum of HU2010_O | D6: Sum of HU2010 | E6: Sum of NUM_AI | F6: Sum of AREA-SQMI | G6: Average of Median Income | H6: Count of GEOID10
A7: Airport area | B7: 244 | C7: 73 | D7: 79 | F7: 3.23 | G7: $72,983 | H7: 13
A8: Aromas area | B8: 946 | C8: 358 | D8: 389 | E8: 1 | F8: 13.82 | G8: $61,650 | H8: 86
A9: Aromas CDP | B9: 1,292 | C9: 438 | D9: 457 | F9: 2.66 | G9: $61,650 | H9: 17
A10: Cienega Road area | B10: 173 | C10: 58 | D10: 59 | F10: 1.45 | G10: $64,659 | H10: 7
A11: Hollister | B11: 24 | C11: 6 | D11: 15 | F11: 1.61 | G11: $75,735 | H11: 28
A12: Northeast area | B12: 2,524 | C12: 822 | D12: 875 | E12: 2 | F12: 35.47 | G12: $78,083 | H12: 60
A13: San Juan Canyon area | B13: 75 | C13: 29 | D13: 38 | F13: 2.15 | G13: $63,504 | H13: 9
A14: Tres Pinos CDP | B14: 6 | C14: 2 | D14: 2 | F14: 0.12 | G14: $78,333 | H14: 3
A15: (blank) | B15: 2,663 | C15: 963 | D15: 1,114 | E15: 5 | F15: 1,252.49 | G15: $76,726 | H15: 1356
A16: Grand Total | B16: 7,947 | C16: 2,749 | D16: 3,028 | E16: 8 | F16: 1,313.01 | G16: $75,620 | H16: 1579

Sheet Pivot table - counties
A1: SERVICE | B1: (Multiple Items)
A2: Exclude Flag | B2: (Multiple Items)
A3: PLACE | B3: (blank)
B5: Values
A6: Row Labels | B6: Sum of POP2010 | C6: Sum of HU2010_O | D6: Sum of HU2010 | E6: Sum of NUM_AI | F6: Sum of AREA-SQMI | G6: Average of Median Income
A7: 053 | B7: 22,885 | C7: 8,254 | D7: 10,017 | E7: 30 | F7: 3,483.48 | G7: $63,494
A8: 069 | B8: 2,663 | C8: 963 | D8: 1,114 | E8: 5 | F8: 1,252.49 | G8: $76,726
A9: 087 | B9: 8,822 | C9: 3,506 | D9: 4,038 | E9: 5 | F9: 379.31 | G9: $85,887
A10: Grand Total | B10: 34,370 | C10: 12,723 | D10: 15,169 | E10: 40 | F10: 5,115.28 | G10: $68,389

Sheet Pivot - drill down
A2: COUNTYFP10 | B2: 069
A3: PLACE | B3: (blank)
A4: SERVICE | B4: (Multiple Items)
B6: Values
A7: Row Labels | B7: Sum of POP2010 | C7: Count of BLOCKCE10
A8: 060690001001 | B8: 86 | C8: 45
A9: 060690001002 | B9: 156 | C9: 6
A10: 060690001003 | B10: 459 | C10: 76
A11: 060690001004 | B11: 0 | C11: 31
A12: 060690002001 | B12: 0 | C12: 2
A13: 060690002002 | B13: 145 | C13: 9
A14: 060690002003 | B14: 22 | C14: 6
A15: 060690002004 | B15: 525 | C15: 99
A16: 060690003002 | B16: 0 | C16: 2
A17: 060690007021 | B17: 0 | C17: 6
A18: 060690008021 | B18: 713 | C18: 853
A19: 060690008022 | B19: 340 | C19: 173
A20: 060690008023 | B20: 316 | C20: 56
A21: Grand Total | B21: 2762 | C21: 1364

Sheet Density
B2: Population | C2: Square miles | D2: Density
A3: Lockwood CDP | B3: 379 | C3: 10.91 | D3: =B3/C3 -> 35
A4: Pajaro Dunes CDP | B4: 144 | C4: 2.66 | D4: 54
A5: Sand City | B5: 334 | C5: 2.94 | D5: 114
A6: Tres Pinos CDP | B6: 476 | C6: 3.60 | D6: 132
A7: Davenport CDP | B7: 408 | C7: 2.84 | D7: 143
A8: Bonny Doon CDP | B8: 2,678 | C8: 16.69 | D8: 160
A9: Day Valley CDP | B9: 3,442 | C9: 18.93 | D9: 182
A10: Carmel Valley Village CDP | B10: 4,407 | C10: 19.18 | D10: 230
A11: Aptos Hills-Larkin Valley CDP | B11: 2,381 | C11: 9.29 | D11: 256
A12: Corralitos CDP | B12: 2,293 | C12: 8.87 | D12: 258
A13: Zayante CDP | B13: 751 | C13: 2.76 | D13: 272
A14: Elkhorn CDP | B14: 1,565 | C14: 4.83 | D14: 324
A15: Lompico CDP | B15: 1,137 | C15: 3.37 | D15: 337
A16: Moss Landing CDP | B16: 204 | C16: 0.60 | D16: 338
A17: Prunedale CDP | B17: 17,560 | C17: 46.20 | D17: 380
A18: Del Monte Forest CDP | B18: 4,514 | C18: 10.64 | D18: 424
A19: Brookdale CDP | B19: 1,991 | C19: 3.85 | D19: 518
A20: La Selva Beach CDP | B20: 2,843 | C20: 5.30 | D20: 537
A21: Pine Canyon CDP | B21: 1,822 | C21: 3.34 | D21: 546
A22: Aromas CDP | B22: 2,650 | C22: 4.75 | D22: 558
A23: Boulder Creek CDP | B23: 4,923 | C23: 7.51 | D23: 655
A24: San Lucas CDP | B24: 269 | C24: 0.39 | D24: 683
A25: Interlaken CDP | B25: 7,331 | C25: 10.22 | D25: 717
A26: Ben Lomond CDP | B26: 6,188 | C26: 8.32 | D26: 744
A27: Felton CDP | B27: 4,057 | C27: 4.72 | D27: 859
A28: Aptos CDP | B28: 6,220 | C28: 6.34 | D28: 982
A29: Bradley CDP | B29: 93 | C29: 0.09 | D29: 1,081
A30: Amesti CDP | B30: 3,478 | C30: 3.06 | D30: 1,137
A31: San Ardo CDP | B31: 517 | C31: 0.45 | D31: 1,151
A32: Pasatiempo CDP | B32: 1,041 | C32: 0.90 | D32: 1,156
A33: Mount Herman CDP | B33: 1,037 | C33: 0.89 | D33: 1,166
A34: Ridgemark CDP | B34: 3,016 | C34: 2.57 | D34: 1,173
A35: Paradise Park CDP | B35: 324 | C35: 0.22 | D35: =B35/C35 -> 1,488
A36: Chualar CDP | B36: 1,190 | C36: 0.63 | D36: 1,901
A37: Rio del Mar CDP | B37: 9,216 | C37: 4.62 | D37: 1,996
A38: Marina | B38: 19,718 | C38: 9.75 | D38: 2,023
A39: Soquel CDP | B39: 9,644 | C39: 4.60 | D39: 2,098
A40: Monterey | B40: 27,810 | C40: 11.75 | D40: 2,367
A41: Scotts Valley | B41: 11,613 | C41: 4.63 | D41: 2,506
A42: San Juan Bautista | B42: 1,808 | C42: 0.68 | D42: 2,646
A43: Freedom CDP | B43: 3,070 | C43: 1.08 | D43: 2,839
A44: Las Lomas CDP | B44: 3,024 | C44: 1.04 | D44: 2,917
A45: Pleasure Point CDP | B45: 5,924 | C45: 2.01 | D45: 2,942
A46: Boronda CDP | B46: 1,710 | C46: 0.55 | D46: 3,107
A47: King City | B47: 12,874 | C47: 3.95 | D47: 3,263
A48: Pajaro CDP | B48: 3,054 | C48: 0.91 | D48: 3,354
A49: Carmel-by-the-Sea | B49: 3,722 | C49: 1.08 | D49: 3,446
A50: Seaside | B50: 33,100 | C50: 9.39 | D50: 3,524
A51: Pacific Grove | B51: 15,041 | C51: 4.00 | D51: 3,759
A52: Santa Cruz | B52: 59,938 | C52: 15.89 | D52: 3,773
A53: Twin Lakes CDP | B53: 4,917 | C53: 1.21 | D53: 4,061
A54: Seacliff CDP | B54: 3,267 | C54: 0.78 | D54: 4,196
A55: Gonzales | B55: 8,187 | C55: 1.94 | D55: 4,210
A56: Del Rey Oaks | B56: 1,235 | C56: 0.28 | D56: 4,350
A57: Hollister | B57: 34,450 | C57: 7.17 | D57: 4,805
A58: Live Oak CDP | B58: 17,158 | C58: 3.24 | D58: 5,293
A59: Spreckels CDP | B59: 673 | C59: 0.12 | D59: 5,510
A60: Soledad | B60: 25,738 | C60: 4.56 | D60: 5,648
A61: Capitola | B61: 9,840 | C61: 1.68 | D61: 5,873
A62: Castroville CDP | B62: 6,481 | C62: 1.06 | D62: 6,086
A63: Salinas | B63: 150,420 | C63: 23.12 | D63: 6,505
A64: Watsonville | B64: 51,189 | C64: 6.76 | D64: 7,574
A65: Greenfield | B65: 16,330 | C65: 2.14 | D65: 7,649

Sheet Clusters
A1: OBJECTID | B1: GEOID10 | C1: GEOID10 | D1: SBCoFLAG | E1: Cluster
A2: 1 | B2: 060690001001006 | C2: 60690001001006 | D2: 2 | E2: Northeast area
A3: 2 | B3: 060690001001005 | C3: 60690001001005 | D3: 2 | E3: Northeast area
A4: 3 | B4: 060690001001000 | C4: 60690001001000 | D4: 2 | E4: Northeast area
A5: 4 | B5: 060690001002014 | C5: 60690001002014 | D5: 3 | E5: Airport area
A6: 5 | B6: 060690001002003 | C6: 60690001002003 | D6: 2 | E6: Northeast area
A7: 6 | B7: 060690002002032 | C7: 60690002002032 | D7: 1 | E7: Aromas area
A8: 7 | B8: 060690002004055 | C8: 60690002004055 | D8: 1 | E8: Aromas area
A9: 8 | B9: 060690002006023 | C9: 60690002006023 | D9: 1 | E9: Aromas area
A10: 9 | B10: 060690002006001 | C10: 60690002006001 | D10: 1 | E10: Aromas area
A11: 10 | B11: 060690002002028 | C11: 60690002002028 | D11: 1 | E11: Aromas area
A12: 11 | B12: 060690002002037 | C12: 60690002002037 | D12: 1 | E12: Aromas area
A13: 12 | B13: 060690002005007 | C13: 60690002005007 | D13: 1 | E13: Aromas area
A14: 13 | B14: 060690002006007 | C14: 60690002006007 | D14: 1 | E14: Aromas area
A15: 14 | B15: 060690007021045 | C15: 60690007021045 | D15: 5 | E15: Cienega Road area
A16: 15 | B16: 060690002006037 | C16: 60690002006037 | D16: 1 | E16: Aromas area
A17: 16 | B17: 060690002006031 | C17: 60690002006031 | D17: 1 | E17: Aromas area
A18: 17 | B18: 060690002006019 | C18: 60690002006019 | D18: 1 | E18: Aromas area
A19: 18 | B19: 060690002002027 | C19: 60690002002027 | D19: 1 | E19: Aromas area
A20: 19 | B20: 060690002002025 | C20: 60690002002025 | D20: 1 | E20: Aromas area
A21: 20 | B21: 060690001003048 | C21: 60690001003048 | D21: 2 | E21: Northeast area
A22: 21 | B22: 060690002005008 | C22: 60690002005008 | D22: 1 | E22: Aromas area
A23: 22 | B23: 060690002005001 | C23: 60690002005001 | D23: 1 | E23: Aromas area
A24: 23 | B24: 060690002006003 | C24: 60690002006003 | D24: 1 | E24: Aromas area
A25: 24 | B25: 060690002006000 | C25: 60690002006000 | D25: 1 | E25: Aromas area
A26: 25 | B26: 060690002006004 | C26: 60690002006004 | D26: 1 | E26: Aromas area
A27: 26 | B27: 060690002006010 | C27: 60690002006010 | D27: 1 | E27: Aromas area
A28: 27 | B28: 060690002006029 | C28: 60690002006029 | D28: 1 | E28: Aromas area
A29: 28 | B29: 060690002002026 | C29: 60690002002026 | D29: 1 | E29: Aromas area
A30: 29 | B30: 060690002002029 | C30: 60690002002029 | D30: 1 | E30: Aromas area
A31: 30 | B31: 060690002005016 | C31: 60690002005016 | D31: 1 | E31: Aromas area
A32: 31 | B32: 060690002006041 | C32: 60690002006041 | D32: 1 | E32: Aromas area
A33: 32 | B33: 060690002002050 | C33: 60690002002050 | D33: 1 | E33: Aromas area
A34: 33 | B34: 060690002005011 | C34: 60690002005011 | D34: 1 | E34: Aromas area
A35: 34 | B35: 060690008022052 | C35: 60690008022052 | D35: 4 | E35: San Juan Canyon area
A36: 35 | B36: 060690002006026 | C36: 60690002006026 | D36: 1 | E36: Aromas area
A37: 36 | B37: 060690002006015 | C37: 60690002006015 | D37: 1 | E37: Aromas area
A38: 37 | B38: 060690002005006 | C38: 60690002005006 | D38: 1 | E38: Aromas area
A39: 38 | B39: 060690002005012 | C39: 60690002005012 | D39: 1 | E39: Aromas area
A40: 39 | B40: 060690002002034 | C40: 60690002002034 | D40: 1 | E40: Aromas area
A41: 40 | B41: 060690002006032 | C41: 60690002006032 | D41: 1 | E41: Aromas area
A42: 41 | B42: 060690002005000 | C42: 60690002005000 | D42: 1 | E42: Aromas area
A43: 42 | B43: 060690002004092 | C43: 60690002004092 | D43: 4 | E43: San Juan Canyon area
A44: 43 | B44: 060690001001028 | C44: 60690001001028 | D44: 2 | E44: Northeast area
A45: 44 | B45: 060690001003132 | C45: 60690001003132 | D45: 2 | E45: Northeast area
A46: 45 | B46: 060690002004050 | C46: 60690002004050 | D46: 1 | E46: Aromas area
A47: 46 | B47: 060690001002015 | C47: 60690001002015 | D47: 3 | E47: Airport area
A48: 47 | B48: 060690002005013 | C48: 60690002005013 | D48: 1 | E48: Aromas area
A49: 48 | B49: 060690002004046 | C49: 60690002004046 | D49: 1 | E49: Aromas area
A50: 49 | B50: 060690002004041 | C50: 60690002004041 | D50: 1 | E50: Aromas area
A51: 50 | B51: 060690002004056 | C51: 60690002004056 | D51: 1 | E51: Aromas area
A52: 51 | B52: 060690001004052 | C52: 60690001004052 | D52: 2 | E52: Northeast area
A53: 52 | B53: 060690001001015 | C53: 60690001001015 | D53: 2 | E53: Northeast area
A54: 53 | B54: 060690002004109 | C54: 60690002004109 | D54: 4 | E54: San Juan Canyon area
A55: 54 | B55: 060690002002022 | C55: 60690002002022 | D55: 1 | E55: Aromas area
A56: 55 | B56: 060690002006013 | C56: 60690002006013 | D56: 1 | E56: Aromas area
A57: 56 | B57: 060690002002038 | C57: 60690002002038 | D57: 1 | E57: Aromas area
A58: 57 | B58: 060690002006035 | C58: 60690002006035 | D58: 1 | E58: Aromas area
A59: 58 | B59: 060690002006033 | C59: 60690002006033 | D59: 1 | E59: Aromas area
A60: 59 | B60: 060690002004053 | C60: 60690002004053 | D60: 1 | E60: Aromas area
A61: 60 | B61: 060690002004051 | C61: 60690002004051 | D61: 1 | E61: Aromas area
A62: 61 | B62: 060690002002015 | C62: 60690002002015 | D62: 1 | E62: Aromas area
A63: 62 | B63: 060690002004008 | C63: 60690002004008 | D63: 5 | E63: Cienega Road area
A64: 63 | B64: 060690002004000 | C64: 60690002004000 | D64: 5 | E64: Cienega Road area
A65: 64 | B65: 060690002005009 | C65: 60690002005009 | D65: 1 | E65: Aromas area
A66: 65 | B66: 060690002006009 | C66: 60690002006009 | D66: 1 | E66: Aromas area
A67: 66 | B67: 060690002006038 | C67: 60690002006038 | D67: 1 | E67: Aromas area
A68: 67 | B68: 060690002006020 | C68: 60690002006020 | D68: 1 | E68: Aromas area
A69: 68 | B69: 060690002004110 | C69: 60690002004110 | D69: 4 | E69: San Juan Canyon area
A70: 69 | B70: 060690002004114 | C70: 60690002004114 | D70: 4 | E70: San Juan Canyon area
A71: 70 | B71: 060690002006018 | C71: 60690002006018 | D71: 1 | E71: Aromas area
A72: 71 | B72: 060690002005015 | C72: 60690002005015 | D72: 1 | E72: Aromas area
A73: 72 | B73: 060690002004095 | C73: 60690002004095 | D73: 4 | E73: San Juan Canyon area
A74: 73 | B74: 060690002005005 | C74: 60690002005005 | D74: 1 | E74: Aromas area
A75: 74 | B75: 060690002002023 | C75: 60690002002023 | D75: 1 | E75: Aromas area
A76: 75 | B76: 060690001004034 | C76: 60690001004034 | D76: 2 | E76: Northeast area
A77: 76 | B77: 060690001003051 | C77: 60690001003051 | D77: 3 | E77: Airport area
A78: 77 | B78: 060690001004031 | C78: 60690001004031 | D78: 2 | E78: Northeast area
A79: 78 | B79: 060690008022005 | C79: 60690008022005 | D79: 5 | E79: Cienega Road area
A80: 79 | B80: 060690001003060 | C80: 60690001003060 | D80: 3 | E80: Airport area
A81: 80 | B81: 060690002004075 | C81: 60690002004075 | D81: 1 | E81: Aromas area
A82: 81 | B82: 060690002006027 | C82: 60690002006027 | D82: 1 | E82: Aromas area
A83: 82 | B83: 060690001003003 | C83: 60690001003003 | D83: 2 | E83: Northeast area
A84: 83 | B84: 060690001001007 | C84: 60690001001007 | D84: 2 | E84: Northeast area
A85: 84 | B85: 060690001003077 | C85: 60690001003077 | D85: 3 | E85: Airport area
A86: 85 | B86: 060690001001012 | C86: 60690001001012 | D86: 2 | E86: Northeast area
A87: 86 | B87: 060690001004012 | C87: 60690001004012 | D87: 2 | E87: Northeast area
A88: 87 | B88: 060690002006002 | C88: 60690002006002 | D88: 1 | E88: Aromas area
A89: 88 | B89: 060690001003000 | C89: 60690001003000 | D89: 2 | E89: Northeast area
A90: 89 | B90: 060690002006042 | C90: 60690002006042 | D90: 1 | E90: Aromas area
A91: 90 | B91: 060690002005014 | C91: 60690002005014 | D91: 1 | E91: Aromas area
A92: 91 | B92: 060690002004054 | C92: 60690002004054 | D92: 1 | E92: Aromas area
A93: 92 | B93: 060690001004023 | C93: 60690001004023 | D93: 2 | E93: Northeast area
A94: 93 | B94: 060690001003022 | C94: 60690001003022 | D94: 2 | E94: Northeast area
A95: 94 | B95: 060690001004020 | C95: 60690001004020 | D95: 2 | E95: Northeast area
A96: 95 | B96: 060690001001032 | C96: 60690001001032 | D96: 2 | E96: Northeast area
A97: 96 | B97: 060690001003073 | C97: 60690001003073 | D97: 3 | E97: Airport area
A98: 97 | B98: 060690001001025 | C98: 60690001001025 | D98: 2 | E98: Northeast area
A99: 98 | B99: 060690001001027 | C99: 60690001001027 | D99: 2 | E99: Northeast area
A100: 99 | B100: 060690001003047 | C100: 60690001003047 | D100: 2 | E100: Northeast area
A101: 100 | B101: 060690001003016 | C101: 60690001003016 | D101: 2 | E101: Northeast area
A102: 101 | B102: 060690001004028 | C102: 60690001004028 | D102: 2 | E102: Northeast area
A103: 102 | B103: 060690001004040 | C103: 60690001004040 | D103: 2 | E103: Northeast area
A104: 103 | B104: 060690002002035 | C104: 60690002002035 | D104: 1 | E104: Aromas area
A105: 104 | B105: 060690002004048 | C105: 60690002004048 | D105: 1 | E105: Aromas area
A106: 105 | B106: 060690001001023 | C106: 60690001001023 | D106: 2 | E106: Northeast area
A107: 106 | B107: 060690001003032 | C107: 60690001003032 | D107: 2 | E107: Northeast area
A108: 107 | B108: 060690001004046 | C108: 60690001004046 | D108: 2 | E108: Northeast area
A109: 108 | B109: 060690001004025 | C109: 60690001004025 | D109: 2 | E109: Northeast area
A110: 109 | B110: 060690001004027 | C110: 60690001004027 | D110: 2 | E110: Northeast area
A111: 110 | B111: 060690001002013 | C111: 60690001002013 | D111: 3 | E111: Airport area
A112: 111 | B112: 060690001001009 | C112: 60690001001009 | D112: 2 | E112: Northeast area
A113: 112 | B113: 060690002005010 | C113: 60690002005010 | D113: 1 | E113: Aromas area
A114: 113 | B114: 060690002006047 | C114: 60690002006047 | D114: 1 | E114: Aromas area
A115: 114 | B115: 060690002002021 | C115: 60690002002021 | D115: 1 | E115: Aromas area
A116: 115 | B116: 060690002006030 | C116: 60690002006030 | D116: 1 | E116: Aromas area
A117: 116 | B117: 060690002004084 | C117: 60690002004084 | D117: 4 | E117: San Juan Canyon area
A118: 117 | B118: 060690002002030 | C118: 60690002002030 | D118: 1 | E118: Aromas area
A119: 118 | B119: 060690002006028 | C119: 60690002006028 | D119: 1 | E119: Aromas area
A120: 119 | B120: 060690002004107 | C120: 60690002004107 | D120: 4 | E120: San Juan Canyon area
A121: 120 | B121: 060690002006039 | C121: 60690002006039 | D121: 1 | E121: Aromas area
A122: 121 | B122: 060690002006008 | C122: 60690002006008 | D122: 1 | E122: Aromas area
A123: 122 | B123: 060690002006024 | C123: 60690002006024 | D123: 1 | E123: Aromas area
A124: 123 | B124: 060690001002000 | C124: 60690001002000 | D124: 2 | E124: Northeast area
A125: 124 | B125: 060690002006022 | C125: 60690002006022 | D125: 1 | E125: Aromas area
A126: 125 | B126: 060690002002036 | C126: 60690002002036 | D126: 1 | E126: Aromas area
A127: 126 | B127: 060690002006016 | C127: 60690002006016 | D127: 1 | E127: Aromas area
A128: 127 | B128: 060690002006005 | C128: 60690002006005 | D128: 1 | E128: Aromas area
A129: 128 | B129: 060690002006006 | C129: 60690002006006 | D129: 1 | E129: Aromas area
A130: 129 | B130: 060690002004115 | C130: 60690002004115 | D130: 4 | E130: San Juan Canyon area
A131: 130 | B131: 060690002006014 | C131: 60690002006014 | D131: 1 | E131: Aromas area
A132: 131 | B132: 060690002002033 | C132: 60690002002033 | D132: 1 | E132: Aromas area
A133: 132 | B133: 060690002006045 | C133: 60690002006045 | D133: 1 | E133: Aromas area
A134: 133 | B134: 060690002006046 | C134: 60690002006046 | D134: 1 | E134: Aromas area
A135: 134 | B135: 060690002006043 | C135: 60690002006043 | D135: 1 | E135: Aromas area
A136: 135 | B136: 060690002004052 | C136: 60690002004052 | D136: 1 | E136: Aromas area
A137: 136 | B137: 060690001003031 | C137: 60690001003031 | D137: 2 | E137: Northeast area
A138: 137 | B138: 060690001003002 | C138: 60690001003002 | D138: 2 | E138: Northeast area
A139: 138 | B139: 060690002005002 | C139: 60690002005002 | D139: 1 | E139: Aromas area
A140: 139 | B140: 060690001003113 | C140: 60690001003113 | D140: 3 | E140: Airport area
A141: 140 | B141: 060690002004004 | C141: 60690002004004 | D141: 5 | E141: Cienega Road area
A142: 141 | B142: 060690002002014 | C142: 60690002002014 | D142: 1 | E142: Aromas area
A143: 142 | B143: 060690002002013 | C143: 60690002002013 | D143: 1 | E143: Aromas area
A144: 143 | B144: 060690002006021 | C144: 60690002006021 | D144: 1 | E144: Aromas area
A145: 144 | B145: 060690008022006 | C145: 60690008022006 | D145: 5 | E145: Cienega Road area
A146: 145 | B146: 060690002001002 | C146: 60690002001002 | D146: 1 | E146: Aromas area
A147: 146 | B147: 060690002006040 | C147: 60690002006040 | D147: 1 | E147: Aromas area
A148: 147 | B148: 060690002002020 | C148: 60690002002020 | D148: 1 | E148: Aromas area
A149: 148 | B149: 060690002004045 | C149: 60690002004045 | D149: 1 | E149: Aromas area
A150: 149 | B150: 060690002005003 | C150: 60690002005003 | D150: 1 | E150: Aromas area
A151: 150 | B151: 060690002006036 | C151: 60690002006036 | D151: 1 | E151: Aromas area
A152: 151 | B152: 060690002006012 | C152: 60690002006012 | D152: 1 | E152: Aromas area
A153: 152 | B153: 060690002006034 | C153: 60690002006034 | D153: 1 | E153: Aromas area
A154: 153 | B154: 060690002004049 | C154: 60690002004049 | D154: 1 | E154: Aromas area
A155: 154 | B155: 060690001004015 | C155: 60690001004015 | D155: 2 | E155: Northeast area
A156: 155 | B156: 060690001003041 | C156: 60690001003041 | D156: 3 | E156: Airport area
A157: 156 | B157: 060690001003038 | C157: 60690001003038 | D157: 2 | E157: Northeast area
A158: 157 | B158: 060690002002031 | C158: 60690002002031 | D158: 1 | E158: Aromas area
A159: 158 | B159: 060690001003076 | C159: 60690001003076 | D159: 3 | E159: Airport area
A160: 159 | B160: 060690002004057 | C160: 60690002004057 | D160: 1 | E160: Aromas area
A161: 160 | B161: 060690002005004 | C161: 60690002005004 | D161: 1 | E161: Aromas area
A162: 161 | B162: 060690002006044 | C162: 60690002006044 | D162: 1 | E162: Aromas area
A163: 162 | B163: 060690001003039 | C163: 60690001003039 | D163: 3 | E163: Airport area
A164: 163 | B164: 060690001003046 | C164: 60690001003046 | D164: 2 | E164: Northeast area
A165: 164 | B165: 060690001001013 | C165: 60690001001013 | D165: 2 | E165: Northeast area
A166: 165 | B166: 060690001004042 | C166: 60690001004042 | D166: 2 | E166: Northeast area
A167: 166 | B167: 060690001003045 | C167: 60690001003045 | D167: 2 | E167: Northeast area
A168: 167 | B168: 060690001002017 | C168: 60690001002017 | D168: 3 | E168: Airport area
A169: 168 | B169: 060690001004049 | C169: 60690001004049 | D169: 2 | E169: Northeast area
A170: 169 | B170: 060690001001030 | C170: 60690001001030 | D170: 2 | E170: Northeast area
A171: 170 | B171: 060690001002008 | C171: 60690001002008 | D171: 2 | E171: Northeast area
A172: 171 | B172: 060690002006017 | C172: 60690002006017 | D172: 1 | E172: Aromas area
A173: 172 | B173: 060690002006025 | C173: 60690002006025 | D173: 1 | E173: Aromas area
A174: 173 | B174: 060690002004047 | C174: 60690002004047 | D174: 1 | E174: Aromas area
A175: 174 | B175: 60690002006011 | C175: 60690002006011 | D175: 1 | E175: Aromas area
A176: 175 | B176: 060690001004016 | C176: 60690001004016 | D176: 2 | E176: Northeast area
A177: 176 | B177: 060690001003050 | C177: 60690001003050 | D177: 3 | E177: Airport area
A178: 177 | B178: 060690001001035 | C178: 60690001001035 | D178: 2 | E178: Northeast area
A179: 178 | B179: 060690003002013 | C179: 60690003002013 | D179: 3 | E179: Airport area
A180: 179 | B180: 060690001004004 | C180: 60690001004004 | D180: 2 | E180: Northeast area
A181: 180 | B181: 060690001004053 | C181: 60690001004053 | D181: 2 | E181: Northeast area
A182: 181 | B182: 060690001003074 | C182: 60690001003074 | D182: 3 | E182: Airport area
A183: 182 | B183: 060690001001029 | C183: 60690001001029 | D183: 2 | E183: Northeast area
A184: 183 | B184: 060690001004039 | C184: 60690001004039 | D184: 2 | E184: Northeast area
A185: 184 | B185: 060690001001033 | C185: 60690001001033 | D185: 2 | E185: Northeast area
A186: 185 | B186: 060690001001008 | C186: 60690001001008 | D186: 2 | E186: Northeast area
A187: 186 | B187: 060690001004041 | C187: 60690001004041 | D187: 2 | E187: Northeast area
A188: 187 | B188: 060690007021047 | C188: 60690007021047 | D188: 5 | E188: Cienega Road area
A189: 188 | B189: 060690001003001 | C189: 60690001003001 | D189: 2 | E189: Northeast area
A190: 189 | B190: 060690001004048 | C190: 60690001004048 | D190: 2 | E190: Northeast area
A191: 190 | B191: 060690001004038 | C191: 60690001004038 | D191: 2 | E191: Northeast area
A192: 191 | B192: 060690001002005 | C192: 60690001002005 | D192: 2 | E192: Northeast area
A193: 192 | B193: 060690001004036 | C193: 60690001004036 | D193: 2 | E193: Northeast area
A194: 193 | B194: 060690001004014 | C194: 60690001004014 | D194: 2 | E194: Northeast area
A195: 194 | B195: 060690003002014 | C195: 60690003002014 | D195: 3 | E195: Airport area
A196: 195 | B196: 060690001001034 | C196: 60690001001034 | D196: 2 | E196: Northeast area
